Payment Date,Transaction Number,Net Amount,Supplier (Beneficiary) Name,Local Supplier Internal Reference,Directorate / Service Where Expenditure Incurred,Service Category Label,Service Category URI,SeRCOP Expenditure Category,SeRCOP Expenditure Code,Purpose of Spend,SeRCOP Detailed Expenditure Code,Capital/Revenue,Procurement Classification
01/04/2022,2303325,300.00,HOMECARE REFUNDS - BSS ONLY,384082,Housing Management,Housing Revenue Account,N/A,Supplies and Services,504,Miscellaneous Expenses,5034,Revenue,NON INFLUENCIBLE.INDIVIDUAL
01/04/2022,2303326,275.36,HOMECARE REFUNDS - BSS ONLY,384082,Housing Management,Housing Revenue Account,N/A,Supplies and Services,504,Miscellaneous Expenses,5034,Revenue,NON INFLUENCIBLE.INDIVIDUAL
01/04/2022,2303327,300.00,HOMECARE REFUNDS - BSS ONLY,384082,Housing Management,Housing Revenue Account,N/A,Supplies and Services,504,Miscellaneous Expenses,5034,Revenue,NON INFLUENCIBLE.INDIVIDUAL
01/04/2022,2303330,260.00,MOOR FARM SKIP HIRE,402856,"Health, Education, Care and Safeguarding",Children's & Education Services,103,Supplies and Services,504,Miscellaneous Expenses,5034,Revenue,NON INFLUENCIBLE.NON INFLUENCIBLE
01/04/2022,2303334,217.50,SOUND INDUCTION SYSTEMS LTD,402790,Capital,Capital,Capital,Supplies and Services,504,Miscellaneous Expenses,5034,Capital,TELECOMMUNICATIONS.EQUIPMENT
01/04/2022,2303335,460.00,ELLIOTT CONSULTANCY LTD,402731,Central Items,Central Services,102,Capital,Capital,Capital,Capital,Revenue,CONSULTANCY.CONSULTANCY
01/04/2022,2303337,500.00,Redacted Personal Data,334804,Capital,Capital,Capital,Capital Expenditure,Capital,Capital Expenditure,Capital,Capital,DEFAULT
01/04/2022,2303337,1520.00,Redacted Personal Data,334804,Capital,Capital,Capital,Capital Expenditure,Capital,Capital Expenditure,Capital,Capital,DEFAULT
01/04/2022,2303338,411.46,CLASSIC LIFTS (NORTH EAST)  LTD,382250,Housing Property and Construction,Housing Services,108,Capital,Capital,Capital,Capital,Revenue,REPAIRS & MAINTENANCE.REPAIRS & MAINTENANCE
01/04/2022,2303338,3043.44,CLASSIC LIFTS (NORTH EAST)  LTD,382250,Housing Property and Construction,Housing Services,108,Capital,Capital,Capital,Capital,Revenue,REPAIRS & MAINTENANCE.REPAIRS & MAINTENANCE
01/04/2022,2303340,231.80,NORTH EAST CONCRETE,382768,Housing Property and Construction,Housing Services,108,Supplies and Services,504,Equipment,5023,Revenue,BUILDING MATERIALS.GENERAL MATERIALS
01/04/2022,2303340,253.00,NORTH EAST CONCRETE,382768,Housing Property and Construction,Housing Services,108,Supplies and Services,504,Equipment,5023,Revenue,BUILDING MATERIALS.GENERAL MATERIALS
01/04/2022,2303340,318.20,NORTH EAST CONCRETE,382768,Housing Property and Construction,Housing Services,108,Supplies and Services,504,Equipment,5023,Revenue,BUILDING MATERIALS.GENERAL MATERIALS
01/04/2022,2303340,324.90,NORTH EAST CONCRETE,382768,Housing Property and Construction,Housing Services,108,Supplies and Services,504,Equipment,5023,Revenue,BUILDING MATERIALS.GENERAL MATERIALS
01/04/2022,2303342,275.00,MRM ELECTRONIC SOLUTIONS LTD T/A MRM SOLUTIONS,391641,Housing Property and Construction,Housing Services,108,Capital,Capital,Capital,Capital,Revenue,REPAIRS & MAINTENANCE.REPAIRS & MAINTENANCE
01/04/2022,2303342,490.00,MRM ELECTRONIC SOLUTIONS LTD T/A MRM SOLUTIONS,391641,Housing Property and Construction,Housing Services,108,Capital,Capital,Capital,Capital,Revenue,REPAIRS & MAINTENANCE.REPAIRS & MAINTENANCE
01/04/2022,2303343,336.39,DFP SERVICES,331933,Housing Property and Construction,Housing Services,108,Capital,Capital,Capital,Capital,Revenue,REPAIRS & MAINTENANCE.REPAIRS & MAINTENANCE
01/04/2022,2303344,16990.71,BIRCH TREE NORTHERN LTD,367315,Capital,Capital,Capital,Capital,Capital,Capital,Capital,Capital,REPAIRS & MAINTENANCE.REPAIRS & MAINTENANCE
01/04/2022,2303345,218.75,ASTRAL CONTROL SERVICES LTD,392712,Housing Property and Construction,Housing Services,108,Capital,Capital,Capital,Capital,Revenue,REPAIRS & MAINTENANCE.REPAIRS & MAINTENANCE
01/04/2022,2303345,218.75,ASTRAL CONTROL SERVICES LTD,392712,Housing Property and Construction,Housing Services,108,Capital,Capital,Capital,Capital,Revenue,REPAIRS & MAINTENANCE.REPAIRS & MAINTENANCE
01/04/2022,2303346,120.00,THE SEKURA GROUP LTD,367543,Housing Property and Construction,Housing Services,108,Capital,Capital,Capital,Capital,Revenue,REPAIRS & MAINTENANCE.REPAIRS & MAINTENANCE
01/04/2022,2303346,211.84,THE SEKURA GROUP LTD,367543,Housing Property and Construction,Housing Services,108,Capital,Capital,Capital,Capital,Revenue,REPAIRS & MAINTENANCE.REPAIRS & MAINTENANCE
01/04/2022,2303348,280.75,DYSON ENERGY SERVICES LTD,398153,Housing Property and Construction,Housing Services,108,Capital,Capital,Capital,Capital,Revenue,REPAIRS & MAINTENANCE.REPAIRS & MAINTENANCE
01/04/2022,2303348,334.40,DYSON ENERGY SERVICES LTD,398153,Housing Property and Construction,Housing Services,108,Capital,Capital,Capital,Capital,Revenue,REPAIRS & MAINTENANCE.REPAIRS & MAINTENANCE
01/04/2022,2303348,800.00,DYSON ENERGY SERVICES LTD,398153,Housing Property and Construction,Housing Services,108,Capital,Capital,Capital,Capital,Revenue,REPAIRS & MAINTENANCE.REPAIRS & MAINTENANCE
01/04/2022,2303349,685.00,DJ INSTALLATION & FABRICATION LTD,004782,Capital,Capital,Capital,Capital,Capital,Capital,Capital,Capital,REPAIRS & MAINTENANCE.REPAIRS & MAINTENANCE
01/04/2022,2303350,213.25,BOLTON GATE SERVICES LTD,366997,Housing Property and Construction,Housing Services,108,Capital,Capital,Capital,Capital,Revenue,REPAIRS & MAINTENANCE.REPAIRS & MAINTENANCE
01/04/2022,2303350,430.00,BOLTON GATE SERVICES LTD,366997,Housing Property and Construction,Housing Services,108,Capital,Capital,Capital,Capital,Revenue,REPAIRS & MAINTENANCE.REPAIRS & MAINTENANCE
01/04/2022,2303350,452.00,BOLTON GATE SERVICES LTD,366997,Housing Property and Construction,Housing Services,108,Capital,Capital,Capital,Capital,Revenue,REPAIRS & MAINTENANCE.REPAIRS & MAINTENANCE
01/04/2022,2303350,720.00,BOLTON GATE SERVICES LTD,366997,Housing Property and Construction,Housing Services,108,Capital,Capital,Capital,Capital,Revenue,REPAIRS & MAINTENANCE.REPAIRS & MAINTENANCE
01/04/2022,2303350,890.50,BOLTON GATE SERVICES LTD,366997,Housing Property and Construction,Housing Services,108,Capital,Capital,Capital,Capital,Revenue,REPAIRS & MAINTENANCE.REPAIRS & MAINTENANCE
01/04/2022,2303350,966.41,BOLTON GATE SERVICES LTD,366997,Housing Property and Construction,Housing Services,108,Capital,Capital,Capital,Capital,Revenue,REPAIRS & MAINTENANCE.REPAIRS & MAINTENANCE
01/04/2022,2303351,64480.14,CAPITA SYMONDS LTD,376582,Capital,Capital,Capital,Capital,Capital,Capital,Capital,Capital,REPAIRS & MAINTENANCE.REPAIRS & MAINTENANCE
01/04/2022,2303352,550.00,GFA GASTECH LTD,372882,Housing Property and Construction,Housing Services,108,Capital,Capital,Capital,Capital,Revenue,REPAIRS & MAINTENANCE.REPAIRS & MAINTENANCE
01/04/2022,2303352,618.46,GFA GASTECH LTD,372882,Housing Property and Construction,Housing Services,108,Capital,Capital,Capital,Capital,Revenue,REPAIRS & MAINTENANCE.REPAIRS & MAINTENANCE
01/04/2022,2303352,4156.23,GFA GASTECH LTD,372882,Housing Property and Construction,Housing Services,108,Capital,Capital,Capital,Capital,Revenue,REPAIRS & MAINTENANCE.REPAIRS & MAINTENANCE
01/04/2022,2303353,4.40,REXEL UK LTD,347413,Housing Property and Construction,Housing Services,108,Supplies and Services,504,Equipment,5023,Revenue,STATIONERY.STATIONERY
01/04/2022,2303353,5.80,REXEL UK LTD,347413,Housing Property and Construction,Housing Services,108,Supplies and Services,504,Equipment,5023,Revenue,STATIONERY.STATIONERY
01/04/2022,2303353,12.20,REXEL UK LTD,347413,Housing Property and Construction,Housing Services,108,Supplies and Services,504,Equipment,5023,Revenue,STATIONERY.STATIONERY
01/04/2022,2303353,20.60,REXEL UK LTD,347413,Housing Property and Construction,Housing Services,108,Supplies and Services,504,Equipment,5023,Revenue,STATIONERY.STATIONERY
01/04/2022,2303353,24.00,REXEL UK LTD,347413,Housing Property and Construction,Housing Services,108,Supplies and Services,504,Equipment,5023,Revenue,STATIONERY.STATIONERY
01/04/2022,2303353,32.52,REXEL UK LTD,347413,Housing Property and Construction,Housing Services,108,Supplies and Services,504,Equipment,5023,Revenue,STATIONERY.STATIONERY
01/04/2022,2303353,36.00,REXEL UK LTD,347413,Housing Property and Construction,Housing Services,108,Supplies and Services,504,Equipment,5023,Revenue,STATIONERY.STATIONERY
01/04/2022,2303353,37.00,REXEL UK LTD,347413,Housing Property and Construction,Housing Services,108,Supplies and Services,504,Equipment,5023,Revenue,STATIONERY.STATIONERY
01/04/2022,2303353,39.60,REXEL UK LTD,347413,Housing Property and Construction,Housing Services,108,Supplies and Services,504,Equipment,5023,Revenue,STATIONERY.STATIONERY
01/04/2022,2303353,44.40,REXEL UK LTD,347413,Housing Property and Construction,Housing Services,108,Supplies and Services,504,Equipment,5023,Revenue,STATIONERY.STATIONERY
01/04/2022,2303353,46.00,REXEL UK LTD,347413,Housing Property and Construction,Housing Services,108,Supplies and Services,504,Equipment,5023,Revenue,STATIONERY.STATIONERY
01/04/2022,2303353,52.00,REXEL UK LTD,347413,Housing Property and Construction,Housing Services,108,Supplies and Services,504,Equipment,5023,Revenue,STATIONERY.STATIONERY
01/04/2022,2303353,52.80,REXEL UK LTD,347413,Housing Property and Construction,Housing Services,108,Supplies and Services,504,Equipment,5023,Revenue,STATIONERY.STATIONERY
01/04/2022,2303353,54.00,REXEL UK LTD,347413,Housing Property and Construction,Housing Services,108,Supplies and Services,504,Equipment,5023,Revenue,STATIONERY.STATIONERY
01/04/2022,2303353,63.00,REXEL UK LTD,347413,Housing Property and Construction,Housing Services,108,Supplies and Services,504,Equipment,5023,Revenue,STATIONERY.STATIONERY
01/04/2022,2303353,76.50,REXEL UK LTD,347413,Housing Property and Construction,Housing Services,108,Supplies and Services,504,Equipment,5023,Revenue,STATIONERY.STATIONERY
01/04/2022,2303353,82.40,REXEL UK LTD,347413,Housing Property and Construction,Housing Services,108,Supplies and Services,504,Equipment,5023,Revenue,STATIONERY.STATIONERY
01/04/2022,2303353,110.00,REXEL UK LTD,347413,Housing Property and Construction,Housing Services,108,Supplies and Services,504,Equipment,5023,Revenue,STATIONERY.STATIONERY
01/04/2022,2303353,118.00,REXEL UK LTD,347413,Housing Property and Construction,Housing Services,108,Supplies and Services,504,Equipment,5023,Revenue,STATIONERY.STATIONERY
01/04/2022,2303353,118.40,REXEL UK LTD,347413,Housing Property and Construction,Housing Services,108,Supplies and Services,504,Equipment,5023,Revenue,STATIONERY.STATIONERY
01/04/2022,2303353,118.50,REXEL UK LTD,347413,Housing Property and Construction,Housing Services,108,Supplies and Services,504,Equipment,5023,Revenue,STATIONERY.STATIONERY
01/04/2022,2303353,120.00,REXEL UK LTD,347413,Housing Property and Construction,Housing Services,108,Supplies and Services,504,Equipment,5023,Revenue,STATIONERY.STATIONERY
01/04/2022,2303353,121.20,REXEL UK LTD,347413,Housing Property and Construction,Housing Services,108,Supplies and Services,504,Equipment,5023,Revenue,STATIONERY.STATIONERY
01/04/2022,2303353,121.50,REXEL UK LTD,347413,Housing Property and Construction,Housing Services,108,Supplies and Services,504,Equipment,5023,Revenue,STATIONERY.STATIONERY
01/04/2022,2303353,121.60,REXEL UK LTD,347413,Housing Property and Construction,Housing Services,108,Supplies and Services,504,Equipment,5023,Revenue,STATIONERY.STATIONERY
01/04/2022,2303353,136.00,REXEL UK LTD,347413,Housing Property and Construction,Housing Services,108,Supplies and Services,504,Equipment,5023,Revenue,STATIONERY.STATIONERY
01/04/2022,2303353,140.00,REXEL UK LTD,347413,Housing Property and Construction,Housing Services,108,Supplies and Services,504,Equipment,5023,Revenue,STATIONERY.STATIONERY
01/04/2022,2303353,158.00,REXEL UK LTD,347413,Housing Property and Construction,Housing Services,108,Supplies and Services,504,Equipment,5023,Revenue,STATIONERY.STATIONERY
01/04/2022,2303353,175.00,REXEL UK LTD,347413,Housing Property and Construction,Housing Services,108,Supplies and Services,504,Equipment,5023,Revenue,STATIONERY.STATIONERY
01/04/2022,2303353,195.12,REXEL UK LTD,347413,Housing Property and Construction,Housing Services,108,Supplies and Services,504,Equipment,5023,Revenue,STATIONERY.STATIONERY
01/04/2022,2303353,201.60,REXEL UK LTD,347413,Housing Property and Construction,Housing Services,108,Supplies and Services,504,Equipment,5023,Revenue,STATIONERY.STATIONERY
01/04/2022,2303353,261.60,REXEL UK LTD,347413,Housing Property and Construction,Housing Services,108,Supplies and Services,504,Equipment,5023,Revenue,STATIONERY.STATIONERY
01/04/2022,2303353,290.00,REXEL UK LTD,347413,Housing Property and Construction,Housing Services,108,Supplies and Services,504,Equipment,5023,Revenue,STATIONERY.STATIONERY
01/04/2022,2303353,310.00,REXEL UK LTD,347413,Housing Property and Construction,Housing Services,108,Supplies and Services,504,Equipment,5023,Revenue,STATIONERY.STATIONERY
01/04/2022,2303353,330.00,REXEL UK LTD,347413,Housing Property and Construction,Housing Services,108,Supplies and Services,504,Equipment,5023,Revenue,STATIONERY.STATIONERY
01/04/2022,2303353,339.20,REXEL UK LTD,347413,Housing Property and Construction,Housing Services,108,Supplies and Services,504,Equipment,5023,Revenue,STATIONERY.STATIONERY
01/04/2022,2303353,346.00,REXEL UK LTD,347413,Housing Property and Construction,Housing Services,108,Supplies and Services,504,Equipment,5023,Revenue,STATIONERY.STATIONERY
01/04/2022,2303353,429.00,REXEL UK LTD,347413,Housing Property and Construction,Housing Services,108,Supplies and Services,504,Equipment,5023,Revenue,STATIONERY.STATIONERY
01/04/2022,2303353,492.50,REXEL UK LTD,347413,Housing Property and Construction,Housing Services,108,Supplies and Services,504,Equipment,5023,Revenue,STATIONERY.STATIONERY
01/04/2022,2303353,492.50,REXEL UK LTD,347413,Housing Property and Construction,Housing Services,108,Supplies and Services,504,Equipment,5023,Revenue,STATIONERY.STATIONERY
01/04/2022,2303353,703.00,REXEL UK LTD,347413,Housing Property and Construction,Housing Services,108,Supplies and Services,504,Equipment,5023,Revenue,STATIONERY.STATIONERY
01/04/2022,2303353,858.00,REXEL UK LTD,347413,Housing Property and Construction,Housing Services,108,Supplies and Services,504,Equipment,5023,Revenue,STATIONERY.STATIONERY
01/04/2022,2303353,884.20,REXEL UK LTD,347413,Housing Property and Construction,Housing Services,108,Supplies and Services,504,Equipment,5023,Revenue,STATIONERY.STATIONERY
01/04/2022,2303353,951.50,REXEL UK LTD,347413,Housing Property and Construction,Housing Services,108,Supplies and Services,504,Equipment,5023,Revenue,STATIONERY.STATIONERY
01/04/2022,2303353,1250.00,REXEL UK LTD,347413,Housing Property and Construction,Housing Services,108,Supplies and Services,504,Equipment,5023,Revenue,STATIONERY.STATIONERY
01/04/2022,2303353,1770.00,REXEL UK LTD,347413,Housing Property and Construction,Housing Services,108,Supplies and Services,504,Equipment,5023,Revenue,STATIONERY.STATIONERY
01/04/2022,2303353,2250.00,REXEL UK LTD,347413,Housing Property and Construction,Housing Services,108,Supplies and Services,504,Equipment,5023,Revenue,STATIONERY.STATIONERY
01/04/2022,2303354,630.00,PARK ELECTRICAL DISTRIBUTORS LTD,244154,Housing Property and Construction,Housing Services,108,Supplies and Services,504,Equipment,5023,Revenue,BUILDING MATERIALS.ELECTRICAL
01/04/2022,2303355,2338.00,KD BUILDING SOLUTIONS LTD,397741,Housing Property and Construction,Housing Services,108,Capital,Capital,Capital,Capital,Revenue,REPAIRS & MAINTENANCE.REPAIRS & MAINTENANCE
01/04/2022,2303358,8.40,CROWN PAINTS LTD,397733,Housing Property and Construction,Housing Services,108,Supplies and Services,504,Equipment,5023,Revenue,REPAIRS & MAINTENANCE.REPAIRS & MAINTENANCE
01/04/2022,2303358,17.70,CROWN PAINTS LTD,397733,Housing Property and Construction,Housing Services,108,Supplies and Services,504,Equipment,5023,Revenue,REPAIRS & MAINTENANCE.REPAIRS & MAINTENANCE
01/04/2022,2303358,59.20,CROWN PAINTS LTD,397733,Housing Property and Construction,Housing Services,108,Supplies and Services,504,Equipment,5023,Revenue,REPAIRS & MAINTENANCE.REPAIRS & MAINTENANCE
01/04/2022,2303358,145.80,CROWN PAINTS LTD,397733,Housing Property and Construction,Housing Services,108,Supplies and Services,504,Equipment,5023,Revenue,REPAIRS & MAINTENANCE.REPAIRS & MAINTENANCE
01/04/2022,2303359,1534.36,SPRINGS ROOFING LTD,331651,Housing Property and Construction,Housing Services,108,Capital,Capital,Capital,Capital,Revenue,REPAIRS & MAINTENANCE.REPAIRS & MAINTENANCE
01/04/2022,2303360,295.00,NORTHERN FLOORCRAFT (GATESHEAD) LIMITED,014251,Housing Property and Construction,Housing Services,108,Capital,Capital,Capital,Capital,Revenue,FURNITURE.SOFT FURNISHINGS
01/04/2022,2303360,400.00,NORTHERN FLOORCRAFT (GATESHEAD) LIMITED,014251,Housing Property and Construction,Housing Services,108,Capital,Capital,Capital,Capital,Revenue,FURNITURE.SOFT FURNISHINGS
01/04/2022,2303360,749.91,NORTHERN FLOORCRAFT (GATESHEAD) LIMITED,014251,Capital,Capital,Capital,Capital,Capital,Capital,Capital,Capital,FURNITURE.SOFT FURNISHINGS
01/04/2022,2303360,2063.16,NORTHERN FLOORCRAFT (GATESHEAD) LIMITED,014251,Capital,Capital,Capital,Capital,Capital,Capital,Capital,Capital,FURNITURE.SOFT FURNISHINGS
01/04/2022,2303360,2188.76,NORTHERN FLOORCRAFT (GATESHEAD) LIMITED,014251,Capital,Capital,Capital,Capital,Capital,Capital,Capital,Capital,FURNITURE.SOFT FURNISHINGS
01/04/2022,2303361,4.95,J T DOVE LTD,004226,Housing Property and Construction,Housing Services,108,Supplies and Services,504,Equipment,5023,Revenue,BUILDING MATERIALS.GENERAL MATERIALS
01/04/2022,2303361,12.00,J T DOVE LTD,004226,Housing Property and Construction,Housing Services,108,Supplies and Services,504,Equipment,5023,Revenue,BUILDING MATERIALS.GENERAL MATERIALS
01/04/2022,2303361,14.70,J T DOVE LTD,004226,Housing Property and Construction,Housing Services,108,Supplies and Services,504,Equipment,5023,Revenue,BUILDING MATERIALS.GENERAL MATERIALS
01/04/2022,2303361,15.90,J T DOVE LTD,004226,Housing Property and Construction,Housing Services,108,Supplies and Services,504,Equipment,5023,Revenue,BUILDING MATERIALS.GENERAL MATERIALS
01/04/2022,2303361,19.10,J T DOVE LTD,004226,Housing Property and Construction,Housing Services,108,Supplies and Services,504,Equipment,5023,Revenue,BUILDING MATERIALS.GENERAL MATERIALS
01/04/2022,2303361,21.80,J T DOVE LTD,004226,Housing Property and Construction,Housing Services,108,Supplies and Services,504,Equipment,5023,Revenue,BUILDING MATERIALS.GENERAL MATERIALS
01/04/2022,2303361,29.80,J T DOVE LTD,004226,Housing Property and Construction,Housing Services,108,Supplies and Services,504,Equipment,5023,Revenue,BUILDING MATERIALS.GENERAL MATERIALS
01/04/2022,2303361,32.48,J T DOVE LTD,004226,Housing Property and Construction,Housing Services,108,Supplies and Services,504,Equipment,5023,Revenue,BUILDING MATERIALS.GENERAL MATERIALS
01/04/2022,2303361,49.00,J T DOVE LTD,004226,Housing Property and Construction,Housing Services,108,Supplies and Services,504,Equipment,5023,Revenue,BUILDING MATERIALS.GENERAL MATERIALS
01/04/2022,2303361,50.88,J T DOVE LTD,004226,Housing Property and Construction,Housing Services,108,Supplies and Services,504,Equipment,5023,Revenue,BUILDING MATERIALS.GENERAL MATERIALS
01/04/2022,2303361,60.00,J T DOVE LTD,004226,Housing Property and Construction,Housing Services,108,Supplies and Services,504,Equipment,5023,Revenue,BUILDING MATERIALS.GENERAL MATERIALS
01/04/2022,2303361,60.10,J T DOVE LTD,004226,Housing Property and Construction,Housing Services,108,Supplies and Services,504,Equipment,5023,Revenue,BUILDING MATERIALS.GENERAL MATERIALS
01/04/2022,2303361,62.60,J T DOVE LTD,004226,Housing Property and Construction,Housing Services,108,Supplies and Services,504,Equipment,5023,Revenue,BUILDING MATERIALS.GENERAL MATERIALS
01/04/2022,2303361,64.00,J T DOVE LTD,004226,Housing Property and Construction,Housing Services,108,Supplies and Services,504,Equipment,5023,Revenue,BUILDING MATERIALS.GENERAL MATERIALS
01/04/2022,2303361,94.00,J T DOVE LTD,004226,Housing Property and Construction,Housing Services,108,Supplies and Services,504,Equipment,5023,Revenue,BUILDING MATERIALS.GENERAL MATERIALS
01/04/2022,2303361,105.00,J T DOVE LTD,004226,Housing Property and Construction,Housing Services,108,Supplies and Services,504,Equipment,5023,Revenue,BUILDING MATERIALS.GENERAL MATERIALS
01/04/2022,2303361,254.40,J T DOVE LTD,004226,Housing Property and Construction,Housing Services,108,Supplies and Services,504,Equipment,5023,Revenue,BUILDING MATERIALS.GENERAL MATERIALS
01/04/2022,2303361,267.60,J T DOVE LTD,004226,Housing Property and Construction,Housing Services,108,Supplies and Services,504,Equipment,5023,Revenue,BUILDING MATERIALS.GENERAL MATERIALS
01/04/2022,2303361,288.60,J T DOVE LTD,004226,Housing Property and Construction,Housing Services,108,Supplies and Services,504,Equipment,5023,Revenue,BUILDING MATERIALS.GENERAL MATERIALS
01/04/2022,2303361,522.80,J T DOVE LTD,004226,Housing Property and Construction,Housing Services,108,Supplies and Services,504,Equipment,5023,Revenue,BUILDING MATERIALS.GENERAL MATERIALS
01/04/2022,2303361,772.88,J T DOVE LTD,004226,Housing Property and Construction,Housing Services,108,Supplies and Services,504,Equipment,5023,Revenue,BUILDING MATERIALS.GENERAL MATERIALS
01/04/2022,2303361,866.10,J T DOVE LTD,004226,Housing Property and Construction,Housing Services,108,Supplies and Services,504,Equipment,5023,Revenue,BUILDING MATERIALS.GENERAL MATERIALS
01/04/2022,2303361,901.80,J T DOVE LTD,004226,Housing Property and Construction,Housing Services,108,Supplies and Services,504,Equipment,5023,Revenue,BUILDING MATERIALS.GENERAL MATERIALS
01/04/2022,2303361,1129.00,J T DOVE LTD,004226,Housing Property and Construction,Housing Services,108,Supplies and Services,504,Equipment,5023,Revenue,BUILDING MATERIALS.GENERAL MATERIALS
01/04/2022,2303362,2.99,CROSSLING & CO LTD,003416,Housing Property and Construction,Housing Services,108,Supplies and Services,504,Equipment,5023,Revenue,REPAIRS & MAINTENANCE.REPAIRS & MAINTENANCE
01/04/2022,2303362,7.00,CROSSLING & CO LTD,003416,Housing Property and Construction,Housing Services,108,Supplies and Services,504,Equipment,5023,Revenue,REPAIRS & MAINTENANCE.REPAIRS & MAINTENANCE
01/04/2022,2303362,7.20,CROSSLING & CO LTD,003416,Housing Property and Construction,Housing Services,108,Supplies and Services,504,Equipment,5023,Revenue,REPAIRS & MAINTENANCE.REPAIRS & MAINTENANCE
01/04/2022,2303362,7.56,CROSSLING & CO LTD,003416,Housing Property and Construction,Housing Services,108,Supplies and Services,504,Equipment,5023,Revenue,REPAIRS & MAINTENANCE.REPAIRS & MAINTENANCE
01/04/2022,2303362,7.62,CROSSLING & CO LTD,003416,Housing Property and Construction,Housing Services,108,Supplies and Services,504,Equipment,5023,Revenue,REPAIRS & MAINTENANCE.REPAIRS & MAINTENANCE
01/04/2022,2303362,8.80,CROSSLING & CO LTD,003416,Housing Property and Construction,Housing Services,108,Supplies and Services,504,Equipment,5023,Revenue,REPAIRS & MAINTENANCE.REPAIRS & MAINTENANCE
01/04/2022,2303362,12.80,CROSSLING & CO LTD,003416,Housing Property and Construction,Housing Services,108,Supplies and Services,504,Equipment,5023,Revenue,REPAIRS & MAINTENANCE.REPAIRS & MAINTENANCE
01/04/2022,2303362,16.80,CROSSLING & CO LTD,003416,Housing Property and Construction,Housing Services,108,Supplies and Services,504,Equipment,5023,Revenue,REPAIRS & MAINTENANCE.REPAIRS & MAINTENANCE
01/04/2022,2303362,17.60,CROSSLING & CO LTD,003416,Housing Property and Construction,Housing Services,108,Supplies and Services,504,Equipment,5023,Revenue,REPAIRS & MAINTENANCE.REPAIRS & MAINTENANCE
01/04/2022,2303362,21.90,CROSSLING & CO LTD,003416,Housing Property and Construction,Housing Services,108,Supplies and Services,504,Equipment,5023,Revenue,REPAIRS & MAINTENANCE.REPAIRS & MAINTENANCE
01/04/2022,2303362,27.30,CROSSLING & CO LTD,003416,Housing Property and Construction,Housing Services,108,Supplies and Services,504,Equipment,5023,Revenue,REPAIRS & MAINTENANCE.REPAIRS & MAINTENANCE
01/04/2022,2303362,29.40,CROSSLING & CO LTD,003416,Housing Property and Construction,Housing Services,108,Supplies and Services,504,Equipment,5023,Revenue,REPAIRS & MAINTENANCE.REPAIRS & MAINTENANCE
01/04/2022,2303362,32.80,CROSSLING & CO LTD,003416,Housing Property and Construction,Housing Services,108,Supplies and Services,504,Equipment,5023,Revenue,REPAIRS & MAINTENANCE.REPAIRS & MAINTENANCE
01/04/2022,2303362,35.10,CROSSLING & CO LTD,003416,Housing Property and Construction,Housing Services,108,Supplies and Services,504,Equipment,5023,Revenue,REPAIRS & MAINTENANCE.REPAIRS & MAINTENANCE
01/04/2022,2303362,35.50,CROSSLING & CO LTD,003416,Housing Property and Construction,Housing Services,108,Supplies and Services,504,Equipment,5023,Revenue,REPAIRS & MAINTENANCE.REPAIRS & MAINTENANCE
01/04/2022,2303362,38.80,CROSSLING & CO LTD,003416,Housing Property and Construction,Housing Services,108,Supplies and Services,504,Equipment,5023,Revenue,REPAIRS & MAINTENANCE.REPAIRS & MAINTENANCE
01/04/2022,2303362,44.25,CROSSLING & CO LTD,003416,Housing Property and Construction,Housing Services,108,Supplies and Services,504,Equipment,5023,Revenue,REPAIRS & MAINTENANCE.REPAIRS & MAINTENANCE
01/04/2022,2303362,47.10,CROSSLING & CO LTD,003416,Housing Property and Construction,Housing Services,108,Supplies and Services,504,Equipment,5023,Revenue,REPAIRS & MAINTENANCE.REPAIRS & MAINTENANCE
01/04/2022,2303362,51.10,CROSSLING & CO LTD,003416,Housing Property and Construction,Housing Services,108,Supplies and Services,504,Equipment,5023,Revenue,REPAIRS & MAINTENANCE.REPAIRS & MAINTENANCE
01/04/2022,2303362,57.02,CROSSLING & CO LTD,003416,Housing Property and Construction,Housing Services,108,Supplies and Services,504,Equipment,5023,Revenue,REPAIRS & MAINTENANCE.REPAIRS & MAINTENANCE
01/04/2022,2303362,65.40,CROSSLING & CO LTD,003416,Housing Property and Construction,Housing Services,108,Supplies and Services,504,Equipment,5023,Revenue,REPAIRS & MAINTENANCE.REPAIRS & MAINTENANCE
01/04/2022,2303362,65.40,CROSSLING & CO LTD,003416,Housing Property and Construction,Housing Services,108,Supplies and Services,504,Equipment,5023,Revenue,REPAIRS & MAINTENANCE.REPAIRS & MAINTENANCE
01/04/2022,2303362,78.90,CROSSLING & CO LTD,003416,Housing Property and Construction,Housing Services,108,Supplies and Services,504,Equipment,5023,Revenue,REPAIRS & MAINTENANCE.REPAIRS & MAINTENANCE
01/04/2022,2303362,83.00,CROSSLING & CO LTD,003416,Housing Property and Construction,Housing Services,108,Supplies and Services,504,Equipment,5023,Revenue,REPAIRS & MAINTENANCE.REPAIRS & MAINTENANCE
01/04/2022,2303362,84.00,CROSSLING & CO LTD,003416,Housing Property and Construction,Housing Services,108,Supplies and Services,504,Equipment,5023,Revenue,REPAIRS & MAINTENANCE.REPAIRS & MAINTENANCE
01/04/2022,2303362,93.00,CROSSLING & CO LTD,003416,Housing Property and Construction,Housing Services,108,Supplies and Services,504,Equipment,5023,Revenue,REPAIRS & MAINTENANCE.REPAIRS & MAINTENANCE
01/04/2022,2303362,95.00,CROSSLING & CO LTD,003416,Housing Property and Construction,Housing Services,108,Supplies and Services,504,Equipment,5023,Revenue,REPAIRS & MAINTENANCE.REPAIRS & MAINTENANCE
01/04/2022,2303362,96.00,CROSSLING & CO LTD,003416,Housing Property and Construction,Housing Services,108,Supplies and Services,504,Equipment,5023,Revenue,REPAIRS & MAINTENANCE.REPAIRS & MAINTENANCE
01/04/2022,2303362,97.02,CROSSLING & CO LTD,003416,Housing Property and Construction,Housing Services,108,Supplies and Services,504,Equipment,5023,Revenue,REPAIRS & MAINTENANCE.REPAIRS & MAINTENANCE
01/04/2022,2303362,106.98,CROSSLING & CO LTD,003416,Housing Property and Construction,Housing Services,108,Supplies and Services,504,Equipment,5023,Revenue,REPAIRS & MAINTENANCE.REPAIRS & MAINTENANCE
01/04/2022,2303362,107.52,CROSSLING & CO LTD,003416,Housing Property and Construction,Housing Services,108,Supplies and Services,504,Equipment,5023,Revenue,REPAIRS & MAINTENANCE.REPAIRS & MAINTENANCE
01/04/2022,2303362,109.00,CROSSLING & CO LTD,003416,Housing Property and Construction,Housing Services,108,Supplies and Services,504,Equipment,5023,Revenue,REPAIRS & MAINTENANCE.REPAIRS & MAINTENANCE
01/04/2022,2303362,124.81,CROSSLING & CO LTD,003416,Housing Property and Construction,Housing Services,108,Supplies and Services,504,Equipment,5023,Revenue,REPAIRS & MAINTENANCE.REPAIRS & MAINTENANCE
01/04/2022,2303362,125.44,CROSSLING & CO LTD,003416,Housing Property and Construction,Housing Services,108,Supplies and Services,504,Equipment,5023,Revenue,REPAIRS & MAINTENANCE.REPAIRS & MAINTENANCE
01/04/2022,2303362,126.00,CROSSLING & CO LTD,003416,Housing Property and Construction,Housing Services,108,Supplies and Services,504,Equipment,5023,Revenue,REPAIRS & MAINTENANCE.REPAIRS & MAINTENANCE
01/04/2022,2303362,139.50,CROSSLING & CO LTD,003416,Housing Property and Construction,Housing Services,108,Supplies and Services,504,Equipment,5023,Revenue,REPAIRS & MAINTENANCE.REPAIRS & MAINTENANCE
01/04/2022,2303362,151.80,CROSSLING & CO LTD,003416,Housing Property and Construction,Housing Services,108,Supplies and Services,504,Equipment,5023,Revenue,REPAIRS & MAINTENANCE.REPAIRS & MAINTENANCE
01/04/2022,2303362,152.00,CROSSLING & CO LTD,003416,Housing Property and Construction,Housing Services,108,Supplies and Services,504,Equipment,5023,Revenue,REPAIRS & MAINTENANCE.REPAIRS & MAINTENANCE
01/04/2022,2303362,219.50,CROSSLING & CO LTD,003416,Housing Property and Construction,Housing Services,108,Supplies and Services,504,Equipment,5023,Revenue,REPAIRS & MAINTENANCE.REPAIRS & MAINTENANCE
01/04/2022,2303362,251.20,CROSSLING & CO LTD,003416,Housing Property and Construction,Housing Services,108,Supplies and Services,504,Equipment,5023,Revenue,REPAIRS & MAINTENANCE.REPAIRS & MAINTENANCE
01/04/2022,2303362,285.00,CROSSLING & CO LTD,003416,Housing Property and Construction,Housing Services,108,Supplies and Services,504,Equipment,5023,Revenue,REPAIRS & MAINTENANCE.REPAIRS & MAINTENANCE
01/04/2022,2303362,318.50,CROSSLING & CO LTD,003416,Housing Property and Construction,Housing Services,108,Supplies and Services,504,Equipment,5023,Revenue,REPAIRS & MAINTENANCE.REPAIRS & MAINTENANCE
01/04/2022,2303362,318.50,CROSSLING & CO LTD,003416,Housing Property and Construction,Housing Services,108,Supplies and Services,504,Equipment,5023,Revenue,REPAIRS & MAINTENANCE.REPAIRS & MAINTENANCE
01/04/2022,2303362,348.60,CROSSLING & CO LTD,003416,Housing Property and Construction,Housing Services,108,Supplies and Services,504,Equipment,5023,Revenue,REPAIRS & MAINTENANCE.REPAIRS & MAINTENANCE
01/04/2022,2303362,491.35,CROSSLING & CO LTD,003416,Housing Property and Construction,Housing Services,108,Supplies and Services,504,Equipment,5023,Revenue,REPAIRS & MAINTENANCE.REPAIRS & MAINTENANCE
01/04/2022,2303362,620.00,CROSSLING & CO LTD,003416,Housing Property and Construction,Housing Services,108,Supplies and Services,504,Equipment,5023,Revenue,REPAIRS & MAINTENANCE.REPAIRS & MAINTENANCE
01/04/2022,2303362,705.00,CROSSLING & CO LTD,003416,Housing Property and Construction,Housing Services,108,Supplies and Services,504,Equipment,5023,Revenue,REPAIRS & MAINTENANCE.REPAIRS & MAINTENANCE
01/04/2022,2303362,786.16,CROSSLING & CO LTD,003416,Housing Property and Construction,Housing Services,108,Supplies and Services,504,Equipment,5023,Revenue,REPAIRS & MAINTENANCE.REPAIRS & MAINTENANCE
01/04/2022,2303363,386.75,ALL FLOORS (SERVICES) LTD,397729,Housing Property and Construction,Housing Services,108,Capital,Capital,Capital,Capital,Revenue,REPAIRS & MAINTENANCE.REPAIRS & MAINTENANCE
01/04/2022,2303364,7301.85,THE BAY FOODBANK,390118,Central Items,Children's & Education Services,103,Supplies and Services,504,Grants and Subscriptions,5031,Revenue,NON INFLUENCIBLE.GRANTS
01/04/2022,2303365,700.00,A & J KEITH LTD,322019,Housing Property and Construction,Housing Services,108,Capital,Capital,Capital,Capital,Revenue,REPAIRS & MAINTENANCE.REPAIRS & MAINTENANCE
01/04/2022,2303366,324.36,NORTH TYNESIDE COUNCIL,102767,Central Items,Holding A/C,N/A,Capital,Capital,Capital,Capital,Revenue,NON INFLUENCIBLE.PUBLIC SECTOR
01/04/2022,2303366,360.00,NORTH TYNESIDE COUNCIL,102767,"Health, Education, Care and Safeguarding",Children's & Education Services,103,Transfer Payments,506,School Children and Students,5046,Revenue,NON INFLUENCIBLE.PUBLIC SECTOR
01/04/2022,2303366,400.00,NORTH TYNESIDE COUNCIL,102767,General Fund Housing,Housing Services,108,Supplies and Services,504,Expenses,5030,Revenue,NON INFLUENCIBLE.PUBLIC SECTOR
01/04/2022,2303366,496.13,NORTH TYNESIDE COUNCIL,102767,Central Items,Holding A/C,N/A,Capital,Capital,Capital,Capital,Revenue,NON INFLUENCIBLE.PUBLIC SECTOR
01/04/2022,2303366,803.87,NORTH TYNESIDE COUNCIL,102767,Central Items,Holding A/C,N/A,Capital,Capital,Capital,Capital,Revenue,NON INFLUENCIBLE.PUBLIC SECTOR
01/04/2022,2303366,964.47,NORTH TYNESIDE COUNCIL,102767,Central Items,Holding A/C,N/A,Capital,Capital,Capital,Capital,Revenue,NON INFLUENCIBLE.PUBLIC SECTOR
01/04/2022,2303367,10363.33,MGM LTD,222037,Capital,Capital,Capital,Capital,Capital,Capital,Capital,Capital,REPAIRS & MAINTENANCE.REPAIRS & MAINTENANCE
01/04/2022,2303367,15600.51,MGM LTD,222037,Capital,Capital,Capital,Capital,Capital,Capital,Capital,Capital,REPAIRS & MAINTENANCE.REPAIRS & MAINTENANCE
01/04/2022,2303367,93791.00,MGM LTD,222037,Capital,Capital,Capital,Capital,Capital,Capital,Capital,Capital,REPAIRS & MAINTENANCE.REPAIRS & MAINTENANCE
01/04/2022,2303368,716.83,E.ON,376300,General Fund Housing,Housing Services,108,Supplies and Services,504,Miscellaneous Expenses,5034,Revenue,ELECTRICITY.ELECTRICITY
01/04/2022,2303371,1613.15,NORTH TYNESIDE COUNCIL,102767,Commissioning & Asset Management,Planning Services,110,Premises-Related Expenditure,502,Rates,5008,Revenue,NON INFLUENCIBLE.PUBLIC SECTOR
01/04/2022,2303374,460.00,TOP NOTCH SERVICES UK LTD,383946,"Health, Education, Care and Safeguarding",Adult Social Care,101,Supplies and Services,504,"Printing, Stationery and General Office Expenses",5026,Revenue,WASTE.WASTE DISPOSAL
01/04/2022,2303375,1911.82,DEERNESS FENCING LTD,316249,Capital,Capital,Capital,Capital,Capital,Capital,Capital,Capital,REPAIRS & MAINTENANCE.REPAIRS & MAINTENANCE
01/04/2022,2303375,114817.34,DEERNESS FENCING LTD,316249,Capital,Capital,Capital,Capital,Capital,Capital,Capital,Capital,REPAIRS & MAINTENANCE.REPAIRS & MAINTENANCE
01/04/2022,2303376,474.11,ABCA SYSTEMS,001419,Housing Property and Construction,Housing Services,108,Capital,Capital,Capital,Capital,Revenue,OFFICE & REPROGRAPHICS EQUIPMENT.LEASING
01/04/2022,2303377,3725.12,NALA ENGINEERS LTD,401336,Capital,Capital,Capital,Capital,Capital,Capital,Capital,Capital,REPAIRS & MAINTENANCE.REPAIRS & MAINTENANCE
01/04/2022,2303379,400.00,HCS MECHANICAL SERVICES,399863,Housing Property and Construction,Housing Services,108,Capital,Capital,Capital,Capital,Revenue,ENVIRONMENTAL SERVICES.DRAINAGE & SEWAGE CLEARANCE
01/04/2022,2303379,618.20,HCS MECHANICAL SERVICES,399863,Housing Property and Construction,Housing Services,108,Capital,Capital,Capital,Capital,Revenue,ENVIRONMENTAL SERVICES.DRAINAGE & SEWAGE CLEARANCE
01/04/2022,2303381,900.17,FT LEISURE LIMITED,382088,Housing Property and Construction,Housing Services,108,Capital,Capital,Capital,Capital,Revenue,REPAIRS & MAINTENANCE.REPAIRS & MAINTENANCE
01/04/2022,2303381,1118.69,FT LEISURE LIMITED,382088,Housing Property and Construction,Housing Services,108,Capital,Capital,Capital,Capital,Revenue,REPAIRS & MAINTENANCE.REPAIRS & MAINTENANCE
01/04/2022,2303381,1455.66,FT LEISURE LIMITED,382088,Housing Property and Construction,Housing Services,108,Capital,Capital,Capital,Capital,Revenue,REPAIRS & MAINTENANCE.REPAIRS & MAINTENANCE
01/04/2022,2303382,24.00,BRYAN CRISP & SON SPECIALIST SERVICES LIMITED,399128,Housing Property and Construction,Housing Services,108,Capital,Capital,Capital,Capital,Revenue,REPAIRS & MAINTENANCE.REPAIRS & MAINTENANCE
01/04/2022,2303382,24.00,BRYAN CRISP & SON SPECIALIST SERVICES LIMITED,399128,Housing Property and Construction,Housing Services,108,Capital,Capital,Capital,Capital,Revenue,REPAIRS & MAINTENANCE.REPAIRS & MAINTENANCE
01/04/2022,2303382,54.00,BRYAN CRISP & SON SPECIALIST SERVICES LIMITED,399128,Housing Property and Construction,Housing Services,108,Capital,Capital,Capital,Capital,Revenue,REPAIRS & MAINTENANCE.REPAIRS & MAINTENANCE
01/04/2022,2303382,72.00,BRYAN CRISP & SON SPECIALIST SERVICES LIMITED,399128,Housing Property and Construction,Housing Services,108,Capital,Capital,Capital,Capital,Revenue,REPAIRS & MAINTENANCE.REPAIRS & MAINTENANCE
01/04/2022,2303382,130.00,BRYAN CRISP & SON SPECIALIST SERVICES LIMITED,399128,Housing Property and Construction,Housing Services,108,Capital,Capital,Capital,Capital,Revenue,REPAIRS & MAINTENANCE.REPAIRS & MAINTENANCE
01/04/2022,2303382,150.00,BRYAN CRISP & SON SPECIALIST SERVICES LIMITED,399128,Housing Property and Construction,Housing Services,108,Capital,Capital,Capital,Capital,Revenue,REPAIRS & MAINTENANCE.REPAIRS & MAINTENANCE
01/04/2022,2303382,360.00,BRYAN CRISP & SON SPECIALIST SERVICES LIMITED,399128,Housing Property and Construction,Housing Services,108,Capital,Capital,Capital,Capital,Revenue,REPAIRS & MAINTENANCE.REPAIRS & MAINTENANCE
01/04/2022,2303382,480.00,BRYAN CRISP & SON SPECIALIST SERVICES LIMITED,399128,Housing Property and Construction,Housing Services,108,Capital,Capital,Capital,Capital,Revenue,REPAIRS & MAINTENANCE.REPAIRS & MAINTENANCE
01/04/2022,2303383,230.00,BIFFA WASTE SERVICES LTD,002093,Capital,Capital,Capital,Transport,503,Contract Hire and Operating Leases,5018,Capital,WASTE.WASTE DISPOSAL
01/04/2022,2303384,10.00,SPEED OFFICE SUPPIES LTD,359803,Housing Property and Construction,Central Services,102,Supplies and Services,504,"Printing, Stationery and General Office Expenses",5026,Revenue,STATIONERY.PAPER
01/04/2022,2303384,1246.00,SPEED OFFICE SUPPIES LTD,359803,Housing Property and Construction,Central Services,102,Supplies and Services,504,"Printing, Stationery and General Office Expenses",5026,Revenue,STATIONERY.PAPER
01/04/2022,8001029,4000.00,Redacted Personal Data,399669,Central Items,Public Health,112,Capital,Capital,Capital,Capital,Revenue,NON INFLUENCIBLE.GRANTS
01/04/2022,8001030,2667.00,Redacted Personal Data,399669,Central Items,Public Health,112,Capital,Capital,Capital,Capital,Revenue,NON INFLUENCIBLE.GRANTS
04/04/2022,2303391,794.32,COUNCIL TAX REFUND,299993,General Fund Financing,Holding A/C,N/A,Excluded from General Fund,N/A,Collection Fund,N/A,Revenue,NON INFLUENCIBLE.NON INFLUENCIBLE
04/04/2022,2303398,-1051.64,NORTH TYNESIDE COUNCIL,102767,"Health, Education, Care and Safeguarding",Adult Social Care,101,Capital,Capital,Capital,Capital,Revenue,NON INFLUENCIBLE.PUBLIC SECTOR
04/04/2022,2303398,-300.56,NORTH TYNESIDE COUNCIL,102767,"Health, Education, Care and Safeguarding",Adult Social Care,101,Capital,Capital,Capital,Capital,Revenue,NON INFLUENCIBLE.PUBLIC SECTOR
04/04/2022,2303398,31.20,NORTH TYNESIDE COUNCIL,102767,"Health, Education, Care and Safeguarding",Adult Social Care,101,Capital,Capital,Capital,Capital,Revenue,NON INFLUENCIBLE.PUBLIC SECTOR
04/04/2022,2303398,31.20,NORTH TYNESIDE COUNCIL,102767,"Health, Education, Care and Safeguarding",Adult Social Care,101,Capital,Capital,Capital,Capital,Revenue,NON INFLUENCIBLE.PUBLIC SECTOR
04/04/2022,2303398,31.20,NORTH TYNESIDE COUNCIL,102767,"Health, Education, Care and Safeguarding",Adult Social Care,101,Capital,Capital,Capital,Capital,Revenue,NON INFLUENCIBLE.PUBLIC SECTOR
04/04/2022,2303398,31.20,NORTH TYNESIDE COUNCIL,102767,"Health, Education, Care and Safeguarding",Adult Social Care,101,Capital,Capital,Capital,Capital,Revenue,NON INFLUENCIBLE.PUBLIC SECTOR
04/04/2022,2303398,34.32,NORTH TYNESIDE COUNCIL,102767,"Health, Education, Care and Safeguarding",Adult Social Care,101,Capital,Capital,Capital,Capital,Revenue,NON INFLUENCIBLE.PUBLIC SECTOR
04/04/2022,2303398,46.80,NORTH TYNESIDE COUNCIL,102767,"Health, Education, Care and Safeguarding",Adult Social Care,101,Capital,Capital,Capital,Capital,Revenue,NON INFLUENCIBLE.PUBLIC SECTOR
04/04/2022,2303398,60.34,NORTH TYNESIDE COUNCIL,102767,"Health, Education, Care and Safeguarding",Adult Social Care,101,Capital,Capital,Capital,Capital,Revenue,NON INFLUENCIBLE.PUBLIC SECTOR
04/04/2022,2303398,78.00,NORTH TYNESIDE COUNCIL,102767,"Health, Education, Care and Safeguarding",Adult Social Care,101,Capital,Capital,Capital,Capital,Revenue,NON INFLUENCIBLE.PUBLIC SECTOR
04/04/2022,2303398,87.92,NORTH TYNESIDE COUNCIL,102767,"Health, Education, Care and Safeguarding",Adult Social Care,101,Capital,Capital,Capital,Capital,Revenue,NON INFLUENCIBLE.PUBLIC SECTOR
04/04/2022,2303398,87.92,NORTH TYNESIDE COUNCIL,102767,"Health, Education, Care and Safeguarding",Adult Social Care,101,Capital,Capital,Capital,Capital,Revenue,NON INFLUENCIBLE.PUBLIC SECTOR
04/04/2022,2303398,96.60,NORTH TYNESIDE COUNCIL,102767,"Health, Education, Care and Safeguarding",Adult Social Care,101,Capital,Capital,Capital,Capital,Revenue,NON INFLUENCIBLE.PUBLIC SECTOR
04/04/2022,2303398,96.60,NORTH TYNESIDE COUNCIL,102767,"Health, Education, Care and Safeguarding",Adult Social Care,101,Capital,Capital,Capital,Capital,Revenue,NON INFLUENCIBLE.PUBLIC SECTOR
04/04/2022,2303398,103.44,NORTH TYNESIDE COUNCIL,102767,"Health, Education, Care and Safeguarding",Adult Social Care,101,Capital,Capital,Capital,Capital,Revenue,NON INFLUENCIBLE.PUBLIC SECTOR
04/04/2022,2303398,103.44,NORTH TYNESIDE COUNCIL,102767,"Health, Education, Care and Safeguarding",Adult Social Care,101,Capital,Capital,Capital,Capital,Revenue,NON INFLUENCIBLE.PUBLIC SECTOR
04/04/2022,2303398,106.98,NORTH TYNESIDE COUNCIL,102767,"Health, Education, Care and Safeguarding",Adult Social Care,101,Capital,Capital,Capital,Capital,Revenue,NON INFLUENCIBLE.PUBLIC SECTOR
04/04/2022,2303398,109.20,NORTH TYNESIDE COUNCIL,102767,"Health, Education, Care and Safeguarding",Adult Social Care,101,Capital,Capital,Capital,Capital,Revenue,NON INFLUENCIBLE.PUBLIC SECTOR
04/04/2022,2303398,109.20,NORTH TYNESIDE COUNCIL,102767,"Health, Education, Care and Safeguarding",Adult Social Care,101,Capital,Capital,Capital,Capital,Revenue,NON INFLUENCIBLE.PUBLIC SECTOR
04/04/2022,2303398,109.20,NORTH TYNESIDE COUNCIL,102767,"Health, Education, Care and Safeguarding",Adult Social Care,101,Capital,Capital,Capital,Capital,Revenue,NON INFLUENCIBLE.PUBLIC SECTOR
04/04/2022,2303398,154.44,NORTH TYNESIDE COUNCIL,102767,"Health, Education, Care and Safeguarding",Adult Social Care,101,Capital,Capital,Capital,Capital,Revenue,NON INFLUENCIBLE.PUBLIC SECTOR
04/04/2022,2303398,180.31,NORTH TYNESIDE COUNCIL,102767,"Health, Education, Care and Safeguarding",Adult Social Care,101,Capital,Capital,Capital,Capital,Revenue,NON INFLUENCIBLE.PUBLIC SECTOR
04/04/2022,2303398,180.31,NORTH TYNESIDE COUNCIL,102767,"Health, Education, Care and Safeguarding",Adult Social Care,101,Capital,Capital,Capital,Capital,Revenue,NON INFLUENCIBLE.PUBLIC SECTOR
04/04/2022,2303398,181.02,NORTH TYNESIDE COUNCIL,102767,"Health, Education, Care and Safeguarding",Adult Social Care,101,Capital,Capital,Capital,Capital,Revenue,NON INFLUENCIBLE.PUBLIC SECTOR
04/04/2022,2303398,181.02,NORTH TYNESIDE COUNCIL,102767,"Health, Education, Care and Safeguarding",Adult Social Care,101,Capital,Capital,Capital,Capital,Revenue,NON INFLUENCIBLE.PUBLIC SECTOR
04/04/2022,2303398,181.02,NORTH TYNESIDE COUNCIL,102767,"Health, Education, Care and Safeguarding",Adult Social Care,101,Capital,Capital,Capital,Capital,Revenue,NON INFLUENCIBLE.PUBLIC SECTOR
04/04/2022,2303398,181.02,NORTH TYNESIDE COUNCIL,102767,"Health, Education, Care and Safeguarding",Adult Social Care,101,Capital,Capital,Capital,Capital,Revenue,NON INFLUENCIBLE.PUBLIC SECTOR
04/04/2022,2303398,224.12,NORTH TYNESIDE COUNCIL,102767,"Health, Education, Care and Safeguarding",Adult Social Care,101,Capital,Capital,Capital,Capital,Revenue,NON INFLUENCIBLE.PUBLIC SECTOR
04/04/2022,2303398,224.12,NORTH TYNESIDE COUNCIL,102767,"Health, Education, Care and Safeguarding",Adult Social Care,101,Capital,Capital,Capital,Capital,Revenue,NON INFLUENCIBLE.PUBLIC SECTOR
04/04/2022,2303398,241.36,NORTH TYNESIDE COUNCIL,102767,"Health, Education, Care and Safeguarding",Adult Social Care,101,Capital,Capital,Capital,Capital,Revenue,NON INFLUENCIBLE.PUBLIC SECTOR
04/04/2022,2303398,362.04,NORTH TYNESIDE COUNCIL,102767,"Health, Education, Care and Safeguarding",Adult Social Care,101,Capital,Capital,Capital,Capital,Revenue,NON INFLUENCIBLE.PUBLIC SECTOR
04/04/2022,2303398,601.12,NORTH TYNESIDE COUNCIL,102767,"Health, Education, Care and Safeguarding",Adult Social Care,101,Capital,Capital,Capital,Capital,Revenue,NON INFLUENCIBLE.PUBLIC SECTOR
04/04/2022,2303398,827.52,NORTH TYNESIDE COUNCIL,102767,"Health, Education, Care and Safeguarding",Adult Social Care,101,Capital,Capital,Capital,Capital,Revenue,NON INFLUENCIBLE.PUBLIC SECTOR
04/04/2022,2303399,187.60,ROSEBERRY CARE CENTRES - DOLPHIN VIEW,401957,"Health, Education, Care and Safeguarding",Adult Social Care,101,Third Party Payments,505,Other Establishments,5041,Revenue,SOCIAL CARE.NURSING & RESIDENTIAL CARE
04/04/2022,2303399,610.38,ROSEBERRY CARE CENTRES - DOLPHIN VIEW,401957,"Health, Education, Care and Safeguarding",Adult Social Care,101,Third Party Payments,505,Private Contractors,5042,Revenue,SOCIAL CARE.NURSING & RESIDENTIAL CARE
04/04/2022,2303402,30.00,Redacted Personal Data,395630,"Health, Education, Care and Safeguarding",Adult Social Care,101,Third Party Payments,505,Other Establishments,5041,Revenue,NON INFLUENCIBLE.INDIVIDUAL
04/04/2022,2303402,46.95,Redacted Personal Data,395630,"Health, Education, Care and Safeguarding",Adult Social Care,101,Third Party Payments,505,Other Establishments,5041,Revenue,NON INFLUENCIBLE.INDIVIDUAL
04/04/2022,2303402,99.00,Redacted Personal Data,395630,"Health, Education, Care and Safeguarding",Adult Social Care,101,Third Party Payments,505,Other Establishments,5041,Revenue,NON INFLUENCIBLE.INDIVIDUAL
04/04/2022,2303402,186.40,Redacted Personal Data,395630,"Health, Education, Care and Safeguarding",Adult Social Care,101,Third Party Payments,505,Other Establishments,5041,Revenue,NON INFLUENCIBLE.INDIVIDUAL
04/04/2022,2303402,750.85,Redacted Personal Data,395630,"Health, Education, Care and Safeguarding",Adult Social Care,101,Third Party Payments,505,Other Establishments,5041,Revenue,NON INFLUENCIBLE.INDIVIDUAL
04/04/2022,2303404,265.83,Redacted Personal Data,402812,"Health, Education, Care and Safeguarding",Adult Social Care,101,Third Party Payments,505,Other Establishments,5041,Revenue,NON INFLUENCIBLE.WELFARE
04/04/2022,2303406,3.13,Redacted Personal Data,402778,"Health, Education, Care and Safeguarding",Adult Social Care,101,Third Party Payments,505,Other Establishments,5041,Revenue,NON INFLUENCIBLE.WELFARE
04/04/2022,2303406,103.69,Redacted Personal Data,402778,"Health, Education, Care and Safeguarding",Adult Social Care,101,Third Party Payments,505,Other Establishments,5041,Revenue,NON INFLUENCIBLE.WELFARE
04/04/2022,2303406,417.67,Redacted Personal Data,402778,"Health, Education, Care and Safeguarding",Adult Social Care,101,Third Party Payments,505,Other Establishments,5041,Revenue,NON INFLUENCIBLE.WELFARE
04/04/2022,2303407,360.15,Redacted Personal Data,402749,"Health, Education, Care and Safeguarding",Adult Social Care,101,Third Party Payments,505,Other Establishments,5041,Revenue,NON INFLUENCIBLE.WELFARE
04/04/2022,2303408,23.89,Redacted Personal Data,402748,"Health, Education, Care and Safeguarding",Adult Social Care,101,Third Party Payments,505,Other Establishments,5041,Revenue,NON INFLUENCIBLE.WELFARE
04/04/2022,2303408,30.00,Redacted Personal Data,402748,"Health, Education, Care and Safeguarding",Adult Social Care,101,Third Party Payments,505,Other Establishments,5041,Revenue,NON INFLUENCIBLE.WELFARE
04/04/2022,2303408,55.45,Redacted Personal Data,402748,"Health, Education, Care and Safeguarding",Adult Social Care,101,Third Party Payments,505,Other Establishments,5041,Revenue,NON INFLUENCIBLE.WELFARE
04/04/2022,2303408,88.00,Redacted Personal Data,402748,"Health, Education, Care and Safeguarding",Adult Social Care,101,Third Party Payments,505,Other Establishments,5041,Revenue,NON INFLUENCIBLE.WELFARE
04/04/2022,2303408,96.20,Redacted Personal Data,402748,"Health, Education, Care and Safeguarding",Adult Social Care,101,Third Party Payments,505,Other Establishments,5041,Revenue,NON INFLUENCIBLE.WELFARE
04/04/2022,2303410,3.13,Redacted Personal Data,402739,"Health, Education, Care and Safeguarding",Adult Social Care,101,Third Party Payments,505,Other Establishments,5041,Revenue,SOCIAL CARE.ADULT SUPPORT SERVICES
04/04/2022,2303410,116.50,Redacted Personal Data,402739,"Health, Education, Care and Safeguarding",Adult Social Care,101,Third Party Payments,505,Other Establishments,5041,Revenue,SOCIAL CARE.ADULT SUPPORT SERVICES
04/04/2022,2303410,469.28,Redacted Personal Data,402739,"Health, Education, Care and Safeguarding",Adult Social Care,101,Third Party Payments,505,Other Establishments,5041,Revenue,SOCIAL CARE.ADULT SUPPORT SERVICES
04/04/2022,2303411,433.20,Redacted Personal Data,402690,"Health, Education, Care and Safeguarding",Adult Social Care,101,Third Party Payments,505,Other Establishments,5041,Revenue,SOCIAL CARE.ADULT SUPPORT SERVICES
04/04/2022,2303412,187.60,ATLAS CARE HOME LTD T.A HEBBURN MANOR,402689,"Health, Education, Care and Safeguarding",Adult Social Care,101,Third Party Payments,505,Other Establishments,5041,Revenue,SOCIAL CARE.CARE SERVICES
04/04/2022,2303412,639.61,ATLAS CARE HOME LTD T.A HEBBURN MANOR,402689,"Health, Education, Care and Safeguarding",Adult Social Care,101,Third Party Payments,505,Private Contractors,5042,Revenue,SOCIAL CARE.CARE SERVICES
04/04/2022,2303413,619.18,THE COURT CARE GROUP,402645,"Health, Education, Care and Safeguarding",Adult Social Care,101,Third Party Payments,505,Private Contractors,5042,Revenue,SOCIAL CARE.NURSING & RESIDENTIAL CARE
04/04/2022,2303414,418.80,Redacted Personal Data,402668,"Health, Education, Care and Safeguarding",Adult Social Care,101,Third Party Payments,505,Other Establishments,5041,Revenue,NON INFLUENCIBLE.WELFARE
04/04/2022,2303415,357.00,Redacted Personal Data,402650,"Health, Education, Care and Safeguarding",Adult Social Care,101,Third Party Payments,505,Other Establishments,5041,Revenue,SOCIAL CARE.ADULT SUPPORT SERVICES
04/04/2022,2303419,253.60,Redacted Personal Data,402562,"Health, Education, Care and Safeguarding",Adult Social Care,101,Third Party Payments,505,Other Establishments,5041,Revenue,NON INFLUENCIBLE.WELFARE
04/04/2022,2303420,613.27,Redacted Personal Data,402553,"Health, Education, Care and Safeguarding",Adult Social Care,101,Third Party Payments,505,Other Establishments,5041,Revenue,NON INFLUENCIBLE.INDIVIDUAL
04/04/2022,2303421,3.13,Redacted Personal Data,402483,"Health, Education, Care and Safeguarding",Adult Social Care,101,Third Party Payments,505,Other Establishments,5041,Revenue,NON INFLUENCIBLE.WELFARE
04/04/2022,2303421,100.19,Redacted Personal Data,402483,"Health, Education, Care and Safeguarding",Adult Social Care,101,Third Party Payments,505,Other Establishments,5041,Revenue,NON INFLUENCIBLE.WELFARE
04/04/2022,2303421,191.58,Redacted Personal Data,402483,"Health, Education, Care and Safeguarding",Adult Social Care,101,Third Party Payments,505,Other Establishments,5041,Revenue,NON INFLUENCIBLE.WELFARE
04/04/2022,2303421,215.87,Redacted Personal Data,402483,"Health, Education, Care and Safeguarding",Adult Social Care,101,Third Party Payments,505,Other Establishments,5041,Revenue,NON INFLUENCIBLE.WELFARE
04/04/2022,2303427,505.61,Redacted Personal Data,402329,"Health, Education, Care and Safeguarding",Adult Social Care,101,Third Party Payments,505,Other Establishments,5041,Revenue,NON INFLUENCIBLE.INDIVIDUAL
04/04/2022,2303427,2036.70,Redacted Personal Data,402329,"Health, Education, Care and Safeguarding",Adult Social Care,101,Third Party Payments,505,Other Establishments,5041,Revenue,NON INFLUENCIBLE.INDIVIDUAL
04/04/2022,2303428,329.34,Redacted Personal Data,396209,"Health, Education, Care and Safeguarding",Adult Social Care,101,Third Party Payments,505,Other Establishments,5041,Revenue,NON INFLUENCIBLE.WELFARE
04/04/2022,2303429,3.13,Redacted Personal Data,402212,"Health, Education, Care and Safeguarding",Adult Social Care,101,Third Party Payments,505,Other Establishments,5041,Revenue,NON INFLUENCIBLE.WELFARE
04/04/2022,2303429,129.31,Redacted Personal Data,402212,"Health, Education, Care and Safeguarding",Adult Social Care,101,Third Party Payments,505,Other Establishments,5041,Revenue,NON INFLUENCIBLE.WELFARE
04/04/2022,2303429,520.90,Redacted Personal Data,402212,"Health, Education, Care and Safeguarding",Adult Social Care,101,Third Party Payments,505,Other Establishments,5041,Revenue,NON INFLUENCIBLE.WELFARE
04/04/2022,2303436,342.00,Redacted Personal Data,398003,"Health, Education, Care and Safeguarding",Adult Social Care,101,Third Party Payments,505,Other Establishments,5041,Revenue,NON INFLUENCIBLE.WELFARE
04/04/2022,2303443,680.00,SUPPORTED LIVING SERVICES LTD,400483,"Health, Education, Care and Safeguarding",Adult Social Care,101,Third Party Payments,505,Private Contractors,5042,Revenue,SOCIAL CARE.INDEPENDENT SUPPORTED LIVING
04/04/2022,2303446,76.89,Redacted Personal Data,401551,"Health, Education, Care and Safeguarding",Adult Social Care,101,Third Party Payments,505,Other Establishments,5041,Revenue,
04/04/2022,2303446,100.00,Redacted Personal Data,401551,"Health, Education, Care and Safeguarding",Adult Social Care,101,Third Party Payments,505,Other Establishments,5041,Revenue,
04/04/2022,2303446,309.73,Redacted Personal Data,401551,"Health, Education, Care and Safeguarding",Adult Social Care,101,Third Party Payments,505,Other Establishments,5041,Revenue,
04/04/2022,2303447,3.13,Redacted Personal Data,399386,"Health, Education, Care and Safeguarding",Adult Social Care,101,Third Party Payments,505,Other Establishments,5041,Revenue,NON INFLUENCIBLE.INDIVIDUAL
04/04/2022,2303447,47.16,Redacted Personal Data,399386,"Health, Education, Care and Safeguarding",Adult Social Care,101,Third Party Payments,505,Other Establishments,5041,Revenue,NON INFLUENCIBLE.INDIVIDUAL
04/04/2022,2303447,1162.40,Redacted Personal Data,399386,"Health, Education, Care and Safeguarding",Adult Social Care,101,Third Party Payments,505,Other Establishments,5041,Revenue,NON INFLUENCIBLE.INDIVIDUAL
04/04/2022,2303448,2052.23,Redacted Personal Data,397289,"Health, Education, Care and Safeguarding",Adult Social Care,101,Third Party Payments,505,Other Establishments,5041,Revenue,NON INFLUENCIBLE.WELFARE
04/04/2022,2303449,277.78,NEWCASTLE HOME CARE ASSOCIATES LTD,382474,"Health, Education, Care and Safeguarding",Adult Social Care,101,Third Party Payments,505,Other Establishments,5041,Revenue,SOCIAL CARE.HOMECARE SERVICES
04/04/2022,2303449,639.60,NEWCASTLE HOME CARE ASSOCIATES LTD,382474,"Health, Education, Care and Safeguarding",Adult Social Care,101,Third Party Payments,505,Private Contractors,5042,Revenue,SOCIAL CARE.HOMECARE SERVICES
04/04/2022,2303450,500.50,Redacted Personal Data,376571,"Health, Education, Care and Safeguarding",Adult Social Care,101,Third Party Payments,505,Other Establishments,5041,Revenue,NON INFLUENCIBLE.NON INFLUENCIBLE
04/04/2022,2303451,669.09,SECO SUPPORT LIMITED,400384,"Health, Education, Care and Safeguarding",Adult Social Care,101,Third Party Payments,505,Private Contractors,5042,Revenue,SOCIAL CARE.CHILDCARE SERVICES
04/04/2022,2303451,2856.00,SECO SUPPORT LIMITED,400384,"Health, Education, Care and Safeguarding",Adult Social Care,101,Third Party Payments,505,Private Contractors,5042,Revenue,SOCIAL CARE.CHILDCARE SERVICES
04/04/2022,2303451,5140.80,SECO SUPPORT LIMITED,400384,"Health, Education, Care and Safeguarding",Adult Social Care,101,Third Party Payments,505,Private Contractors,5042,Revenue,SOCIAL CARE.CHILDCARE SERVICES
04/04/2022,2303453,324.00,MOTHER CLUTTER,401046,"Health, Education, Care and Safeguarding",Adult Social Care,101,Third Party Payments,505,Private Contractors,5042,Revenue,SOCIAL CARE.MENTAL HEALTH SERVICES
04/04/2022,2303457,58.84,Redacted Personal Data,396166,"Health, Education, Care and Safeguarding",Adult Social Care,101,Third Party Payments,505,Other Establishments,5041,Revenue,NON INFLUENCIBLE.INDIVIDUAL
04/04/2022,2303457,634.55,Redacted Personal Data,396166,"Health, Education, Care and Safeguarding",Adult Social Care,101,Third Party Payments,505,Other Establishments,5041,Revenue,NON INFLUENCIBLE.INDIVIDUAL
04/04/2022,2303461,479.78,Redacted Personal Data,400930,"Health, Education, Care and Safeguarding",Adult Social Care,101,Third Party Payments,505,Other Establishments,5041,Revenue,SOCIAL CARE.INDEPENDENT SUPPORTED LIVING
04/04/2022,2303462,187.60,TYNE GRANGE HEALTH CARE LTD,400916,"Health, Education, Care and Safeguarding",Adult Social Care,101,Third Party Payments,505,Other Establishments,5041,Revenue,SOCIAL CARE.NURSING & RESIDENTIAL CARE
04/04/2022,2303462,3057.75,TYNE GRANGE HEALTH CARE LTD,400916,"Health, Education, Care and Safeguarding",Public Health,112,Third Party Payments,505,Other Establishments,5041,Revenue,SOCIAL CARE.NURSING & RESIDENTIAL CARE
04/04/2022,2303462,3057.75,TYNE GRANGE HEALTH CARE LTD,400916,"Health, Education, Care and Safeguarding",Public Health,112,Third Party Payments,505,Other Establishments,5041,Revenue,SOCIAL CARE.NURSING & RESIDENTIAL CARE
04/04/2022,2303470,263.76,Redacted Personal Data,400420,"Health, Education, Care and Safeguarding",Adult Social Care,101,Third Party Payments,505,Other Establishments,5041,Revenue,NON INFLUENCIBLE.INDIVIDUAL
04/04/2022,2303471,3.75,Redacted Personal Data,400411,"Health, Education, Care and Safeguarding",Adult Social Care,101,Third Party Payments,505,Other Establishments,5041,Revenue,NON INFLUENCIBLE.INDIVIDUAL
04/04/2022,2303471,492.75,Redacted Personal Data,400411,"Health, Education, Care and Safeguarding",Adult Social Care,101,Third Party Payments,505,Other Establishments,5041,Revenue,NON INFLUENCIBLE.INDIVIDUAL
04/04/2022,2303473,-1278.75,Redacted Personal Data,400386,"Health, Education, Care and Safeguarding",Adult Social Care,101,Third Party Payments,505,Other Establishments,5041,Revenue,NON INFLUENCIBLE.WELFARE
04/04/2022,2303473,3.13,Redacted Personal Data,400386,"Health, Education, Care and Safeguarding",Adult Social Care,101,Third Party Payments,505,Other Establishments,5041,Revenue,NON INFLUENCIBLE.WELFARE
04/04/2022,2303473,3.13,Redacted Personal Data,400386,"Health, Education, Care and Safeguarding",Adult Social Care,101,Third Party Payments,505,Other Establishments,5041,Revenue,NON INFLUENCIBLE.WELFARE
04/04/2022,2303473,887.18,Redacted Personal Data,400386,"Health, Education, Care and Safeguarding",Adult Social Care,101,Third Party Payments,505,Other Establishments,5041,Revenue,NON INFLUENCIBLE.WELFARE
04/04/2022,2303473,887.18,Redacted Personal Data,400386,"Health, Education, Care and Safeguarding",Adult Social Care,101,Third Party Payments,505,Other Establishments,5041,Revenue,NON INFLUENCIBLE.WELFARE
04/04/2022,2303476,675.00,AVERY HOMES WEYBRIDGE LTD,400264,"Health, Education, Care and Safeguarding",Adult Social Care,101,Third Party Payments,505,Private Contractors,5042,Revenue,SOCIAL CARE.NURSING & RESIDENTIAL CARE
04/04/2022,2303478,663.00,Redacted Personal Data,381577,"Health, Education, Care and Safeguarding",Adult Social Care,101,Third Party Payments,505,Other Establishments,5041,Revenue,NON INFLUENCIBLE.INDIVIDUAL
04/04/2022,2303479,495.34,Redacted Personal Data,400221,"Health, Education, Care and Safeguarding",Adult Social Care,101,Third Party Payments,505,Other Establishments,5041,Revenue,NON INFLUENCIBLE.INDIVIDUAL
04/04/2022,2303480,297.21,Redacted Personal Data,385449,"Health, Education, Care and Safeguarding",Adult Social Care,101,Third Party Payments,505,Other Establishments,5041,Revenue,NON INFLUENCIBLE.NON INFLUENCIBLE
04/04/2022,2303481,454.77,Redacted Personal Data,387221,"Health, Education, Care and Safeguarding",Adult Social Care,101,Third Party Payments,505,Other Establishments,5041,Revenue,NON INFLUENCIBLE.INDIVIDUAL
04/04/2022,2303486,2487.00,CARE UK LEARNING DISABILITIES SERVICES LTD,387528,"Health, Education, Care and Safeguarding",Adult Social Care,101,Third Party Payments,505,Private Contractors,5042,Revenue,SOCIAL CARE.NURSING & RESIDENTIAL CARE
04/04/2022,2303487,550.00,Redacted Personal Data,399978,"Health, Education, Care and Safeguarding",Adult Social Care,101,Third Party Payments,505,Other Establishments,5041,Revenue,NON INFLUENCIBLE.WELFARE
04/04/2022,2303488,328.50,Redacted Personal Data,367921,"Health, Education, Care and Safeguarding",Adult Social Care,101,Third Party Payments,505,Other Establishments,5041,Revenue,NON INFLUENCIBLE.NON INFLUENCIBLE
04/04/2022,2303490,451.91,Redacted Personal Data,388825,"Health, Education, Care and Safeguarding",Adult Social Care,101,Third Party Payments,505,Other Establishments,5041,Revenue,NON INFLUENCIBLE.NON INFLUENCIBLE
04/04/2022,2303490,1176.30,Redacted Personal Data,388825,"Health, Education, Care and Safeguarding",Adult Social Care,101,Third Party Payments,505,Other Establishments,5041,Revenue,NON INFLUENCIBLE.NON INFLUENCIBLE
04/04/2022,2303493,187.60,HILL CARE 4 LIMITED,399680,"Health, Education, Care and Safeguarding",Adult Social Care,101,Third Party Payments,505,Other Establishments,5041,Revenue,SOCIAL CARE.NURSING & RESIDENTIAL CARE
04/04/2022,2303493,654.53,HILL CARE 4 LIMITED,399680,"Health, Education, Care and Safeguarding",Adult Social Care,101,Third Party Payments,505,Private Contractors,5042,Revenue,SOCIAL CARE.NURSING & RESIDENTIAL CARE
04/04/2022,2303493,654.53,HILL CARE 4 LIMITED,399680,"Health, Education, Care and Safeguarding",Adult Social Care,101,Third Party Payments,505,Private Contractors,5042,Revenue,SOCIAL CARE.NURSING & RESIDENTIAL CARE
04/04/2022,2303494,66.64,Redacted Personal Data,356587,"Health, Education, Care and Safeguarding",Adult Social Care,101,Third Party Payments,505,Other Establishments,5041,Revenue,NON INFLUENCIBLE.INDIVIDUAL
04/04/2022,2303494,282.00,Redacted Personal Data,356587,"Health, Education, Care and Safeguarding",Adult Social Care,101,Third Party Payments,505,Other Establishments,5041,Revenue,NON INFLUENCIBLE.INDIVIDUAL
04/04/2022,2303496,135.63,Redacted Personal Data,399630,"Health, Education, Care and Safeguarding",Adult Social Care,101,Third Party Payments,505,Other Establishments,5041,Revenue,NON INFLUENCIBLE.INDIVIDUAL
04/04/2022,2303496,483.37,Redacted Personal Data,399630,"Health, Education, Care and Safeguarding",Adult Social Care,101,Third Party Payments,505,Other Establishments,5041,Revenue,NON INFLUENCIBLE.INDIVIDUAL
04/04/2022,2303498,666.75,HC ONE LIMITED - MELBURY COURT,399517,"Health, Education, Care and Safeguarding",Adult Social Care,101,Third Party Payments,505,Private Contractors,5042,Revenue,SOCIAL CARE.NURSING & RESIDENTIAL CARE
04/04/2022,2303499,-303.48,TYNEMOUTH VILLAGE DAY CENTRE,101190,"Health, Education, Care and Safeguarding",Adult Social Care,101,Third Party Payments,505,Private Contractors,5042,Revenue,SOCIAL CARE.DAY CARE
04/04/2022,2303499,-236.04,TYNEMOUTH VILLAGE DAY CENTRE,101190,"Health, Education, Care and Safeguarding",Adult Social Care,101,Third Party Payments,505,Private Contractors,5042,Revenue,SOCIAL CARE.DAY CARE
04/04/2022,2303499,-28.56,TYNEMOUTH VILLAGE DAY CENTRE,101190,"Health, Education, Care and Safeguarding",Adult Social Care,101,Third Party Payments,505,Private Contractors,5042,Revenue,SOCIAL CARE.DAY CARE
04/04/2022,2303499,-21.42,TYNEMOUTH VILLAGE DAY CENTRE,101190,"Health, Education, Care and Safeguarding",Adult Social Care,101,Third Party Payments,505,Private Contractors,5042,Revenue,SOCIAL CARE.DAY CARE
04/04/2022,2303501,291.89,THE MANOR HOUSE,385703,Central Items,Planning Services,110,Third Party Payments,505,Private Contractors,5042,Revenue,SOCIAL CARE.NURSING & RESIDENTIAL CARE
04/04/2022,2303501,716.03,THE MANOR HOUSE,385703,"Health, Education, Care and Safeguarding",Adult Social Care,101,Third Party Payments,505,Private Contractors,5042,Revenue,SOCIAL CARE.NURSING & RESIDENTIAL CARE
04/04/2022,2303502,442.78,Redacted Personal Data,399422,"Health, Education, Care and Safeguarding",Adult Social Care,101,Third Party Payments,505,Other Establishments,5041,Revenue,NON INFLUENCIBLE.INDIVIDUAL
04/04/2022,2303504,85.81,Redacted Personal Data,399318,"Health, Education, Care and Safeguarding",Adult Social Care,101,Third Party Payments,505,Other Establishments,5041,Revenue,NON INFLUENCIBLE.PUBLIC SECTOR
04/04/2022,2303504,187.60,Redacted Personal Data,399318,"Health, Education, Care and Safeguarding",Adult Social Care,101,Third Party Payments,505,Other Establishments,5041,Revenue,NON INFLUENCIBLE.PUBLIC SECTOR
04/04/2022,2303504,187.60,Redacted Personal Data,399318,"Health, Education, Care and Safeguarding",Adult Social Care,101,Third Party Payments,505,Other Establishments,5041,Revenue,NON INFLUENCIBLE.PUBLIC SECTOR
04/04/2022,2303504,187.60,Redacted Personal Data,399318,"Health, Education, Care and Safeguarding",Adult Social Care,101,Third Party Payments,505,Other Establishments,5041,Revenue,NON INFLUENCIBLE.PUBLIC SECTOR
04/04/2022,2303504,187.60,Redacted Personal Data,399318,"Health, Education, Care and Safeguarding",Adult Social Care,101,Third Party Payments,505,Other Establishments,5041,Revenue,NON INFLUENCIBLE.PUBLIC SECTOR
04/04/2022,2303504,187.60,Redacted Personal Data,399318,"Health, Education, Care and Safeguarding",Adult Social Care,101,Third Party Payments,505,Other Establishments,5041,Revenue,NON INFLUENCIBLE.PUBLIC SECTOR
04/04/2022,2303504,187.60,Redacted Personal Data,399318,"Health, Education, Care and Safeguarding",Adult Social Care,101,Third Party Payments,505,Other Establishments,5041,Revenue,NON INFLUENCIBLE.PUBLIC SECTOR
04/04/2022,2303504,187.60,Redacted Personal Data,399318,"Health, Education, Care and Safeguarding",Adult Social Care,101,Third Party Payments,505,Other Establishments,5041,Revenue,NON INFLUENCIBLE.PUBLIC SECTOR
04/04/2022,2303504,187.60,Redacted Personal Data,399318,"Health, Education, Care and Safeguarding",Adult Social Care,101,Third Party Payments,505,Other Establishments,5041,Revenue,NON INFLUENCIBLE.PUBLIC SECTOR
04/04/2022,2303504,187.60,Redacted Personal Data,399318,"Health, Education, Care and Safeguarding",Adult Social Care,101,Third Party Payments,505,Other Establishments,5041,Revenue,NON INFLUENCIBLE.PUBLIC SECTOR
04/04/2022,2303504,187.60,Redacted Personal Data,399318,"Health, Education, Care and Safeguarding",Adult Social Care,101,Third Party Payments,505,Other Establishments,5041,Revenue,NON INFLUENCIBLE.PUBLIC SECTOR
04/04/2022,2303504,187.60,Redacted Personal Data,399318,"Health, Education, Care and Safeguarding",Adult Social Care,101,Third Party Payments,505,Other Establishments,5041,Revenue,NON INFLUENCIBLE.PUBLIC SECTOR
04/04/2022,2303504,604.33,Redacted Personal Data,399318,"Health, Education, Care and Safeguarding",Adult Social Care,101,Third Party Payments,505,Private Contractors,5042,Revenue,NON INFLUENCIBLE.PUBLIC SECTOR
04/04/2022,2303504,604.33,Redacted Personal Data,399318,"Health, Education, Care and Safeguarding",Adult Social Care,101,Third Party Payments,505,Other Establishments,5041,Revenue,NON INFLUENCIBLE.PUBLIC SECTOR
04/04/2022,2303504,604.33,Redacted Personal Data,399318,"Health, Education, Care and Safeguarding",Adult Social Care,101,Third Party Payments,505,Private Contractors,5042,Revenue,NON INFLUENCIBLE.PUBLIC SECTOR
04/04/2022,2303504,604.33,Redacted Personal Data,399318,"Health, Education, Care and Safeguarding",Adult Social Care,101,Third Party Payments,505,Private Contractors,5042,Revenue,NON INFLUENCIBLE.PUBLIC SECTOR
04/04/2022,2303504,604.33,Redacted Personal Data,399318,"Health, Education, Care and Safeguarding",Adult Social Care,101,Third Party Payments,505,Private Contractors,5042,Revenue,NON INFLUENCIBLE.PUBLIC SECTOR
04/04/2022,2303504,604.33,Redacted Personal Data,399318,"Health, Education, Care and Safeguarding",Adult Social Care,101,Third Party Payments,505,Private Contractors,5042,Revenue,NON INFLUENCIBLE.PUBLIC SECTOR
04/04/2022,2303504,604.33,Redacted Personal Data,399318,"Health, Education, Care and Safeguarding",Adult Social Care,101,Third Party Payments,505,Private Contractors,5042,Revenue,NON INFLUENCIBLE.PUBLIC SECTOR
04/04/2022,2303504,604.33,Redacted Personal Data,399318,"Health, Education, Care and Safeguarding",Adult Social Care,101,Third Party Payments,505,Private Contractors,5042,Revenue,NON INFLUENCIBLE.PUBLIC SECTOR
04/04/2022,2303504,604.33,Redacted Personal Data,399318,"Health, Education, Care and Safeguarding",Adult Social Care,101,Third Party Payments,505,Private Contractors,5042,Revenue,NON INFLUENCIBLE.PUBLIC SECTOR
04/04/2022,2303504,604.33,Redacted Personal Data,399318,"Health, Education, Care and Safeguarding",Adult Social Care,101,Third Party Payments,505,Private Contractors,5042,Revenue,NON INFLUENCIBLE.PUBLIC SECTOR
04/04/2022,2303504,604.33,Redacted Personal Data,399318,"Health, Education, Care and Safeguarding",Adult Social Care,101,Third Party Payments,505,Private Contractors,5042,Revenue,NON INFLUENCIBLE.PUBLIC SECTOR
04/04/2022,2303504,604.33,Redacted Personal Data,399318,"Health, Education, Care and Safeguarding",Adult Social Care,101,Third Party Payments,505,Private Contractors,5042,Revenue,NON INFLUENCIBLE.PUBLIC SECTOR
04/04/2022,2303504,604.33,Redacted Personal Data,399318,"Health, Education, Care and Safeguarding",Adult Social Care,101,Third Party Payments,505,Private Contractors,5042,Revenue,NON INFLUENCIBLE.PUBLIC SECTOR
04/04/2022,2303504,604.33,Redacted Personal Data,399318,"Health, Education, Care and Safeguarding",Adult Social Care,101,Third Party Payments,505,Private Contractors,5042,Revenue,NON INFLUENCIBLE.PUBLIC SECTOR
04/04/2022,2303504,604.33,Redacted Personal Data,399318,"Health, Education, Care and Safeguarding",Adult Social Care,101,Third Party Payments,505,Private Contractors,5042,Revenue,NON INFLUENCIBLE.PUBLIC SECTOR
04/04/2022,2303504,604.33,Redacted Personal Data,399318,"Health, Education, Care and Safeguarding",Adult Social Care,101,Third Party Payments,505,Private Contractors,5042,Revenue,NON INFLUENCIBLE.PUBLIC SECTOR
04/04/2022,2303504,604.33,Redacted Personal Data,399318,"Health, Education, Care and Safeguarding",Adult Social Care,101,Third Party Payments,505,Private Contractors,5042,Revenue,NON INFLUENCIBLE.PUBLIC SECTOR
04/04/2022,2303504,604.33,Redacted Personal Data,399318,"Health, Education, Care and Safeguarding",Adult Social Care,101,Third Party Payments,505,Private Contractors,5042,Revenue,NON INFLUENCIBLE.PUBLIC SECTOR
04/04/2022,2303504,604.33,Redacted Personal Data,399318,"Health, Education, Care and Safeguarding",Adult Social Care,101,Third Party Payments,505,Private Contractors,5042,Revenue,NON INFLUENCIBLE.PUBLIC SECTOR
04/04/2022,2303504,604.33,Redacted Personal Data,399318,"Health, Education, Care and Safeguarding",Adult Social Care,101,Third Party Payments,505,Private Contractors,5042,Revenue,NON INFLUENCIBLE.PUBLIC SECTOR
04/04/2022,2303504,639.55,Redacted Personal Data,399318,"Health, Education, Care and Safeguarding",Adult Social Care,101,Third Party Payments,505,Private Contractors,5042,Revenue,NON INFLUENCIBLE.PUBLIC SECTOR
04/04/2022,2303504,639.55,Redacted Personal Data,399318,"Health, Education, Care and Safeguarding",Adult Social Care,101,Third Party Payments,505,Private Contractors,5042,Revenue,NON INFLUENCIBLE.PUBLIC SECTOR
04/04/2022,2303504,639.55,Redacted Personal Data,399318,"Health, Education, Care and Safeguarding",Adult Social Care,101,Third Party Payments,505,Private Contractors,5042,Revenue,NON INFLUENCIBLE.PUBLIC SECTOR
04/04/2022,2303504,639.55,Redacted Personal Data,399318,"Health, Education, Care and Safeguarding",Adult Social Care,101,Third Party Payments,505,Private Contractors,5042,Revenue,NON INFLUENCIBLE.PUBLIC SECTOR
04/04/2022,2303504,639.55,Redacted Personal Data,399318,"Health, Education, Care and Safeguarding",Adult Social Care,101,Third Party Payments,505,Private Contractors,5042,Revenue,NON INFLUENCIBLE.PUBLIC SECTOR
04/04/2022,2303505,275.55,ROSEBERRY CARE CENTRES � WILLOW COURT,399300,"Health, Education, Care and Safeguarding",Adult Social Care,101,Third Party Payments,505,Private Contractors,5042,Revenue,SOCIAL CARE.NURSING & RESIDENTIAL CARE
04/04/2022,2303505,275.55,ROSEBERRY CARE CENTRES � WILLOW COURT,399300,Central Items,Planning Services,110,Third Party Payments,505,Private Contractors,5042,Revenue,SOCIAL CARE.NURSING & RESIDENTIAL CARE
04/04/2022,2303505,367.40,ROSEBERRY CARE CENTRES � WILLOW COURT,399300,"Health, Education, Care and Safeguarding",Adult Social Care,101,Third Party Payments,505,Private Contractors,5042,Revenue,SOCIAL CARE.NURSING & RESIDENTIAL CARE
04/04/2022,2303505,367.40,ROSEBERRY CARE CENTRES � WILLOW COURT,399300,"Health, Education, Care and Safeguarding",Adult Social Care,101,Third Party Payments,505,Private Contractors,5042,Revenue,SOCIAL CARE.NURSING & RESIDENTIAL CARE
04/04/2022,2303505,367.41,ROSEBERRY CARE CENTRES � WILLOW COURT,399300,Central Items,Planning Services,110,Third Party Payments,505,Private Contractors,5042,Revenue,SOCIAL CARE.NURSING & RESIDENTIAL CARE
04/04/2022,2303505,640.78,ROSEBERRY CARE CENTRES � WILLOW COURT,399300,"Health, Education, Care and Safeguarding",Adult Social Care,101,Third Party Payments,505,Private Contractors,5042,Revenue,SOCIAL CARE.NURSING & RESIDENTIAL CARE
04/04/2022,2303505,642.96,ROSEBERRY CARE CENTRES � WILLOW COURT,399300,"Health, Education, Care and Safeguarding",Adult Social Care,101,Third Party Payments,505,Private Contractors,5042,Revenue,SOCIAL CARE.NURSING & RESIDENTIAL CARE
04/04/2022,2303505,642.96,ROSEBERRY CARE CENTRES � WILLOW COURT,399300,"Health, Education, Care and Safeguarding",Adult Social Care,101,Third Party Payments,505,Private Contractors,5042,Revenue,SOCIAL CARE.NURSING & RESIDENTIAL CARE
04/04/2022,2303505,642.96,ROSEBERRY CARE CENTRES � WILLOW COURT,399300,"Health, Education, Care and Safeguarding",Adult Social Care,101,Third Party Payments,505,Private Contractors,5042,Revenue,SOCIAL CARE.NURSING & RESIDENTIAL CARE
04/04/2022,2303505,642.96,ROSEBERRY CARE CENTRES � WILLOW COURT,399300,"Health, Education, Care and Safeguarding",Adult Social Care,101,Third Party Payments,505,Private Contractors,5042,Revenue,SOCIAL CARE.NURSING & RESIDENTIAL CARE
04/04/2022,2303505,642.96,ROSEBERRY CARE CENTRES � WILLOW COURT,399300,"Health, Education, Care and Safeguarding",Adult Social Care,101,Third Party Payments,505,Private Contractors,5042,Revenue,SOCIAL CARE.NURSING & RESIDENTIAL CARE
04/04/2022,2303505,642.96,ROSEBERRY CARE CENTRES � WILLOW COURT,399300,"Health, Education, Care and Safeguarding",Adult Social Care,101,Third Party Payments,505,Private Contractors,5042,Revenue,SOCIAL CARE.NURSING & RESIDENTIAL CARE
04/04/2022,2303505,642.96,ROSEBERRY CARE CENTRES � WILLOW COURT,399300,"Health, Education, Care and Safeguarding",Adult Social Care,101,Third Party Payments,505,Private Contractors,5042,Revenue,SOCIAL CARE.NURSING & RESIDENTIAL CARE
04/04/2022,2303505,642.96,ROSEBERRY CARE CENTRES � WILLOW COURT,399300,"Health, Education, Care and Safeguarding",Adult Social Care,101,Third Party Payments,505,Private Contractors,5042,Revenue,SOCIAL CARE.NURSING & RESIDENTIAL CARE
04/04/2022,2303505,642.96,ROSEBERRY CARE CENTRES � WILLOW COURT,399300,"Health, Education, Care and Safeguarding",Adult Social Care,101,Third Party Payments,505,Private Contractors,5042,Revenue,SOCIAL CARE.NURSING & RESIDENTIAL CARE
04/04/2022,2303505,642.96,ROSEBERRY CARE CENTRES � WILLOW COURT,399300,"Health, Education, Care and Safeguarding",Adult Social Care,101,Third Party Payments,505,Private Contractors,5042,Revenue,SOCIAL CARE.NURSING & RESIDENTIAL CARE
04/04/2022,2303505,642.96,ROSEBERRY CARE CENTRES � WILLOW COURT,399300,"Health, Education, Care and Safeguarding",Adult Social Care,101,Third Party Payments,505,Private Contractors,5042,Revenue,SOCIAL CARE.NURSING & RESIDENTIAL CARE
04/04/2022,2303505,642.96,ROSEBERRY CARE CENTRES � WILLOW COURT,399300,"Health, Education, Care and Safeguarding",Adult Social Care,101,Third Party Payments,505,Private Contractors,5042,Revenue,SOCIAL CARE.NURSING & RESIDENTIAL CARE
04/04/2022,2303505,642.96,ROSEBERRY CARE CENTRES � WILLOW COURT,399300,"Health, Education, Care and Safeguarding",Adult Social Care,101,Third Party Payments,505,Private Contractors,5042,Revenue,SOCIAL CARE.NURSING & RESIDENTIAL CARE
04/04/2022,2303505,642.96,ROSEBERRY CARE CENTRES � WILLOW COURT,399300,"Health, Education, Care and Safeguarding",Adult Social Care,101,Third Party Payments,505,Private Contractors,5042,Revenue,SOCIAL CARE.NURSING & RESIDENTIAL CARE
04/04/2022,2303505,642.96,ROSEBERRY CARE CENTRES � WILLOW COURT,399300,"Health, Education, Care and Safeguarding",Adult Social Care,101,Third Party Payments,505,Private Contractors,5042,Revenue,SOCIAL CARE.NURSING & RESIDENTIAL CARE
04/04/2022,2303505,642.96,ROSEBERRY CARE CENTRES � WILLOW COURT,399300,Central Items,Planning Services,110,Third Party Payments,505,Private Contractors,5042,Revenue,SOCIAL CARE.NURSING & RESIDENTIAL CARE
04/04/2022,2303505,642.96,ROSEBERRY CARE CENTRES � WILLOW COURT,399300,Central Items,Planning Services,110,Third Party Payments,505,Private Contractors,5042,Revenue,SOCIAL CARE.NURSING & RESIDENTIAL CARE
04/04/2022,2303505,679.62,ROSEBERRY CARE CENTRES � WILLOW COURT,399300,"Health, Education, Care and Safeguarding",Adult Social Care,101,Third Party Payments,505,Private Contractors,5042,Revenue,SOCIAL CARE.NURSING & RESIDENTIAL CARE
04/04/2022,2303505,679.62,ROSEBERRY CARE CENTRES � WILLOW COURT,399300,"Health, Education, Care and Safeguarding",Adult Social Care,101,Third Party Payments,505,Private Contractors,5042,Revenue,SOCIAL CARE.NURSING & RESIDENTIAL CARE
04/04/2022,2303505,679.62,ROSEBERRY CARE CENTRES � WILLOW COURT,399300,"Health, Education, Care and Safeguarding",Adult Social Care,101,Third Party Payments,505,Private Contractors,5042,Revenue,SOCIAL CARE.NURSING & RESIDENTIAL CARE
04/04/2022,2303505,679.62,ROSEBERRY CARE CENTRES � WILLOW COURT,399300,"Health, Education, Care and Safeguarding",Adult Social Care,101,Third Party Payments,505,Private Contractors,5042,Revenue,SOCIAL CARE.NURSING & RESIDENTIAL CARE
04/04/2022,2303505,679.62,ROSEBERRY CARE CENTRES � WILLOW COURT,399300,"Health, Education, Care and Safeguarding",Adult Social Care,101,Third Party Payments,505,Private Contractors,5042,Revenue,SOCIAL CARE.NURSING & RESIDENTIAL CARE
04/04/2022,2303505,679.62,ROSEBERRY CARE CENTRES � WILLOW COURT,399300,"Health, Education, Care and Safeguarding",Adult Social Care,101,Third Party Payments,505,Private Contractors,5042,Revenue,SOCIAL CARE.NURSING & RESIDENTIAL CARE
04/04/2022,2303505,679.62,ROSEBERRY CARE CENTRES � WILLOW COURT,399300,"Health, Education, Care and Safeguarding",Adult Social Care,101,Third Party Payments,505,Private Contractors,5042,Revenue,SOCIAL CARE.NURSING & RESIDENTIAL CARE
04/04/2022,2303505,679.62,ROSEBERRY CARE CENTRES � WILLOW COURT,399300,"Health, Education, Care and Safeguarding",Adult Social Care,101,Third Party Payments,505,Private Contractors,5042,Revenue,SOCIAL CARE.NURSING & RESIDENTIAL CARE
04/04/2022,2303505,679.62,ROSEBERRY CARE CENTRES � WILLOW COURT,399300,"Health, Education, Care and Safeguarding",Adult Social Care,101,Third Party Payments,505,Private Contractors,5042,Revenue,SOCIAL CARE.NURSING & RESIDENTIAL CARE
04/04/2022,2303505,679.62,ROSEBERRY CARE CENTRES � WILLOW COURT,399300,"Health, Education, Care and Safeguarding",Adult Social Care,101,Third Party Payments,505,Private Contractors,5042,Revenue,SOCIAL CARE.NURSING & RESIDENTIAL CARE
04/04/2022,2303505,679.62,ROSEBERRY CARE CENTRES � WILLOW COURT,399300,"Health, Education, Care and Safeguarding",Adult Social Care,101,Third Party Payments,505,Private Contractors,5042,Revenue,SOCIAL CARE.NURSING & RESIDENTIAL CARE
04/04/2022,2303505,679.62,ROSEBERRY CARE CENTRES � WILLOW COURT,399300,"Health, Education, Care and Safeguarding",Adult Social Care,101,Third Party Payments,505,Private Contractors,5042,Revenue,SOCIAL CARE.NURSING & RESIDENTIAL CARE
04/04/2022,2303506,-2284.11,ROSEBERRY CARE CENTRES - ROSEMOUNT,399299,Central Items,Planning Services,110,Third Party Payments,505,Private Contractors,5042,Revenue,SOCIAL CARE.NURSING & RESIDENTIAL CARE
04/04/2022,2303506,36.78,ROSEBERRY CARE CENTRES - ROSEMOUNT,399299,"Health, Education, Care and Safeguarding",Adult Social Care,101,Third Party Payments,505,Other Establishments,5041,Revenue,SOCIAL CARE.NURSING & RESIDENTIAL CARE
04/04/2022,2303506,80.40,ROSEBERRY CARE CENTRES - ROSEMOUNT,399299,"Health, Education, Care and Safeguarding",Adult Social Care,101,Third Party Payments,505,Other Establishments,5041,Revenue,SOCIAL CARE.NURSING & RESIDENTIAL CARE
04/04/2022,2303506,80.40,ROSEBERRY CARE CENTRES - ROSEMOUNT,399299,"Health, Education, Care and Safeguarding",Adult Social Care,101,Third Party Payments,505,Other Establishments,5041,Revenue,SOCIAL CARE.NURSING & RESIDENTIAL CARE
04/04/2022,2303506,85.81,ROSEBERRY CARE CENTRES - ROSEMOUNT,399299,"Health, Education, Care and Safeguarding",Adult Social Care,101,Third Party Payments,505,Other Establishments,5041,Revenue,SOCIAL CARE.NURSING & RESIDENTIAL CARE
04/04/2022,2303506,85.81,ROSEBERRY CARE CENTRES - ROSEMOUNT,399299,"Health, Education, Care and Safeguarding",Adult Social Care,101,Third Party Payments,505,Other Establishments,5041,Revenue,SOCIAL CARE.NURSING & RESIDENTIAL CARE
04/04/2022,2303506,85.81,ROSEBERRY CARE CENTRES - ROSEMOUNT,399299,"Health, Education, Care and Safeguarding",Public Health,112,Third Party Payments,505,Other Establishments,5041,Revenue,SOCIAL CARE.NURSING & RESIDENTIAL CARE
04/04/2022,2303506,85.81,ROSEBERRY CARE CENTRES - ROSEMOUNT,399299,Central Items,Planning Services,110,Third Party Payments,505,Private Contractors,5042,Revenue,SOCIAL CARE.NURSING & RESIDENTIAL CARE
04/04/2022,2303506,85.81,ROSEBERRY CARE CENTRES - ROSEMOUNT,399299,Central Items,Planning Services,110,Third Party Payments,505,Private Contractors,5042,Revenue,SOCIAL CARE.NURSING & RESIDENTIAL CARE
04/04/2022,2303506,107.20,ROSEBERRY CARE CENTRES - ROSEMOUNT,399299,Central Items,Planning Services,110,Third Party Payments,505,Private Contractors,5042,Revenue,SOCIAL CARE.NURSING & RESIDENTIAL CARE
04/04/2022,2303506,107.20,ROSEBERRY CARE CENTRES - ROSEMOUNT,399299,Central Items,Planning Services,110,Third Party Payments,505,Private Contractors,5042,Revenue,SOCIAL CARE.NURSING & RESIDENTIAL CARE
04/04/2022,2303506,110.32,ROSEBERRY CARE CENTRES - ROSEMOUNT,399299,Central Items,Planning Services,110,Third Party Payments,505,Private Contractors,5042,Revenue,SOCIAL CARE.NURSING & RESIDENTIAL CARE
04/04/2022,2303506,187.60,ROSEBERRY CARE CENTRES - ROSEMOUNT,399299,"Health, Education, Care and Safeguarding",Adult Social Care,101,Third Party Payments,505,Other Establishments,5041,Revenue,SOCIAL CARE.NURSING & RESIDENTIAL CARE
04/04/2022,2303506,187.60,ROSEBERRY CARE CENTRES - ROSEMOUNT,399299,"Health, Education, Care and Safeguarding",Adult Social Care,101,Third Party Payments,505,Other Establishments,5041,Revenue,SOCIAL CARE.NURSING & RESIDENTIAL CARE
04/04/2022,2303506,187.60,ROSEBERRY CARE CENTRES - ROSEMOUNT,399299,"Health, Education, Care and Safeguarding",Adult Social Care,101,Third Party Payments,505,Other Establishments,5041,Revenue,SOCIAL CARE.NURSING & RESIDENTIAL CARE
04/04/2022,2303506,187.60,ROSEBERRY CARE CENTRES - ROSEMOUNT,399299,"Health, Education, Care and Safeguarding",Adult Social Care,101,Third Party Payments,505,Other Establishments,5041,Revenue,SOCIAL CARE.NURSING & RESIDENTIAL CARE
04/04/2022,2303506,187.60,ROSEBERRY CARE CENTRES - ROSEMOUNT,399299,"Health, Education, Care and Safeguarding",Adult Social Care,101,Third Party Payments,505,Other Establishments,5041,Revenue,SOCIAL CARE.NURSING & RESIDENTIAL CARE
04/04/2022,2303506,187.60,ROSEBERRY CARE CENTRES - ROSEMOUNT,399299,"Health, Education, Care and Safeguarding",Adult Social Care,101,Third Party Payments,505,Other Establishments,5041,Revenue,SOCIAL CARE.NURSING & RESIDENTIAL CARE
04/04/2022,2303506,187.60,ROSEBERRY CARE CENTRES - ROSEMOUNT,399299,"Health, Education, Care and Safeguarding",Adult Social Care,101,Third Party Payments,505,Other Establishments,5041,Revenue,SOCIAL CARE.NURSING & RESIDENTIAL CARE
04/04/2022,2303506,187.60,ROSEBERRY CARE CENTRES - ROSEMOUNT,399299,"Health, Education, Care and Safeguarding",Public Health,112,Third Party Payments,505,Other Establishments,5041,Revenue,SOCIAL CARE.NURSING & RESIDENTIAL CARE
04/04/2022,2303506,187.60,ROSEBERRY CARE CENTRES - ROSEMOUNT,399299,"Health, Education, Care and Safeguarding",Adult Social Care,101,Third Party Payments,505,Other Establishments,5041,Revenue,SOCIAL CARE.NURSING & RESIDENTIAL CARE
04/04/2022,2303506,187.60,ROSEBERRY CARE CENTRES - ROSEMOUNT,399299,Central Items,Planning Services,110,Third Party Payments,505,Private Contractors,5042,Revenue,SOCIAL CARE.NURSING & RESIDENTIAL CARE
04/04/2022,2303506,187.60,ROSEBERRY CARE CENTRES - ROSEMOUNT,399299,Central Items,Planning Services,110,Third Party Payments,505,Private Contractors,5042,Revenue,SOCIAL CARE.NURSING & RESIDENTIAL CARE
04/04/2022,2303506,241.20,ROSEBERRY CARE CENTRES - ROSEMOUNT,399299,Central Items,Planning Services,110,Third Party Payments,505,Private Contractors,5042,Revenue,SOCIAL CARE.NURSING & RESIDENTIAL CARE
04/04/2022,2303506,259.00,ROSEBERRY CARE CENTRES - ROSEMOUNT,399299,"Health, Education, Care and Safeguarding",Adult Social Care,101,Third Party Payments,505,Other Establishments,5041,Revenue,SOCIAL CARE.NURSING & RESIDENTIAL CARE
04/04/2022,2303506,259.00,ROSEBERRY CARE CENTRES - ROSEMOUNT,399299,"Health, Education, Care and Safeguarding",Adult Social Care,101,Third Party Payments,505,Private Contractors,5042,Revenue,SOCIAL CARE.NURSING & RESIDENTIAL CARE
04/04/2022,2303506,259.00,ROSEBERRY CARE CENTRES - ROSEMOUNT,399299,Central Items,Planning Services,110,Third Party Payments,505,Private Contractors,5042,Revenue,SOCIAL CARE.NURSING & RESIDENTIAL CARE
04/04/2022,2303506,345.33,ROSEBERRY CARE CENTRES - ROSEMOUNT,399299,Central Items,Planning Services,110,Third Party Payments,505,Private Contractors,5042,Revenue,SOCIAL CARE.NURSING & RESIDENTIAL CARE
04/04/2022,2303506,345.33,ROSEBERRY CARE CENTRES - ROSEMOUNT,399299,Central Items,Planning Services,110,Third Party Payments,505,Private Contractors,5042,Revenue,SOCIAL CARE.NURSING & RESIDENTIAL CARE
04/04/2022,2303506,604.33,ROSEBERRY CARE CENTRES - ROSEMOUNT,399299,"Health, Education, Care and Safeguarding",Adult Social Care,101,Third Party Payments,505,Other Establishments,5041,Revenue,SOCIAL CARE.NURSING & RESIDENTIAL CARE
04/04/2022,2303506,604.33,ROSEBERRY CARE CENTRES - ROSEMOUNT,399299,"Health, Education, Care and Safeguarding",Adult Social Care,101,Third Party Payments,505,Other Establishments,5041,Revenue,SOCIAL CARE.NURSING & RESIDENTIAL CARE
04/04/2022,2303506,604.33,ROSEBERRY CARE CENTRES - ROSEMOUNT,399299,"Health, Education, Care and Safeguarding",Adult Social Care,101,Third Party Payments,505,Private Contractors,5042,Revenue,SOCIAL CARE.NURSING & RESIDENTIAL CARE
04/04/2022,2303506,604.33,ROSEBERRY CARE CENTRES - ROSEMOUNT,399299,"Health, Education, Care and Safeguarding",Adult Social Care,101,Third Party Payments,505,Private Contractors,5042,Revenue,SOCIAL CARE.NURSING & RESIDENTIAL CARE
04/04/2022,2303506,604.33,ROSEBERRY CARE CENTRES - ROSEMOUNT,399299,"Health, Education, Care and Safeguarding",Adult Social Care,101,Third Party Payments,505,Private Contractors,5042,Revenue,SOCIAL CARE.NURSING & RESIDENTIAL CARE
04/04/2022,2303506,604.33,ROSEBERRY CARE CENTRES - ROSEMOUNT,399299,"Health, Education, Care and Safeguarding",Adult Social Care,101,Third Party Payments,505,Private Contractors,5042,Revenue,SOCIAL CARE.NURSING & RESIDENTIAL CARE
04/04/2022,2303506,604.33,ROSEBERRY CARE CENTRES - ROSEMOUNT,399299,"Health, Education, Care and Safeguarding",Adult Social Care,101,Third Party Payments,505,Private Contractors,5042,Revenue,SOCIAL CARE.NURSING & RESIDENTIAL CARE
04/04/2022,2303506,604.33,ROSEBERRY CARE CENTRES - ROSEMOUNT,399299,"Health, Education, Care and Safeguarding",Adult Social Care,101,Third Party Payments,505,Private Contractors,5042,Revenue,SOCIAL CARE.NURSING & RESIDENTIAL CARE
04/04/2022,2303506,604.33,ROSEBERRY CARE CENTRES - ROSEMOUNT,399299,"Health, Education, Care and Safeguarding",Adult Social Care,101,Third Party Payments,505,Private Contractors,5042,Revenue,SOCIAL CARE.NURSING & RESIDENTIAL CARE
04/04/2022,2303506,604.33,ROSEBERRY CARE CENTRES - ROSEMOUNT,399299,"Health, Education, Care and Safeguarding",Adult Social Care,101,Third Party Payments,505,Private Contractors,5042,Revenue,SOCIAL CARE.NURSING & RESIDENTIAL CARE
04/04/2022,2303506,604.33,ROSEBERRY CARE CENTRES - ROSEMOUNT,399299,"Health, Education, Care and Safeguarding",Adult Social Care,101,Third Party Payments,505,Private Contractors,5042,Revenue,SOCIAL CARE.NURSING & RESIDENTIAL CARE
04/04/2022,2303506,604.33,ROSEBERRY CARE CENTRES - ROSEMOUNT,399299,"Health, Education, Care and Safeguarding",Adult Social Care,101,Third Party Payments,505,Private Contractors,5042,Revenue,SOCIAL CARE.NURSING & RESIDENTIAL CARE
04/04/2022,2303506,604.33,ROSEBERRY CARE CENTRES - ROSEMOUNT,399299,"Health, Education, Care and Safeguarding",Adult Social Care,101,Third Party Payments,505,Private Contractors,5042,Revenue,SOCIAL CARE.NURSING & RESIDENTIAL CARE
04/04/2022,2303506,604.33,ROSEBERRY CARE CENTRES - ROSEMOUNT,399299,"Health, Education, Care and Safeguarding",Adult Social Care,101,Third Party Payments,505,Private Contractors,5042,Revenue,SOCIAL CARE.NURSING & RESIDENTIAL CARE
04/04/2022,2303506,604.33,ROSEBERRY CARE CENTRES - ROSEMOUNT,399299,"Health, Education, Care and Safeguarding",Adult Social Care,101,Third Party Payments,505,Private Contractors,5042,Revenue,SOCIAL CARE.NURSING & RESIDENTIAL CARE
04/04/2022,2303506,604.33,ROSEBERRY CARE CENTRES - ROSEMOUNT,399299,"Health, Education, Care and Safeguarding",Adult Social Care,101,Third Party Payments,505,Private Contractors,5042,Revenue,SOCIAL CARE.NURSING & RESIDENTIAL CARE
04/04/2022,2303506,604.33,ROSEBERRY CARE CENTRES - ROSEMOUNT,399299,"Health, Education, Care and Safeguarding",Adult Social Care,101,Third Party Payments,505,Private Contractors,5042,Revenue,SOCIAL CARE.NURSING & RESIDENTIAL CARE
04/04/2022,2303506,604.33,ROSEBERRY CARE CENTRES - ROSEMOUNT,399299,"Health, Education, Care and Safeguarding",Adult Social Care,101,Third Party Payments,505,Private Contractors,5042,Revenue,SOCIAL CARE.NURSING & RESIDENTIAL CARE
04/04/2022,2303506,604.33,ROSEBERRY CARE CENTRES - ROSEMOUNT,399299,"Health, Education, Care and Safeguarding",Adult Social Care,101,Third Party Payments,505,Private Contractors,5042,Revenue,SOCIAL CARE.NURSING & RESIDENTIAL CARE
04/04/2022,2303506,604.33,ROSEBERRY CARE CENTRES - ROSEMOUNT,399299,"Health, Education, Care and Safeguarding",Public Health,112,Third Party Payments,505,Other Establishments,5041,Revenue,SOCIAL CARE.NURSING & RESIDENTIAL CARE
04/04/2022,2303506,604.33,ROSEBERRY CARE CENTRES - ROSEMOUNT,399299,"Health, Education, Care and Safeguarding",Adult Social Care,101,Third Party Payments,505,Private Contractors,5042,Revenue,SOCIAL CARE.NURSING & RESIDENTIAL CARE
04/04/2022,2303506,604.33,ROSEBERRY CARE CENTRES - ROSEMOUNT,399299,"Health, Education, Care and Safeguarding",Adult Social Care,101,Third Party Payments,505,Private Contractors,5042,Revenue,SOCIAL CARE.NURSING & RESIDENTIAL CARE
04/04/2022,2303506,604.33,ROSEBERRY CARE CENTRES - ROSEMOUNT,399299,Central Items,Planning Services,110,Third Party Payments,505,Other Establishments,5041,Revenue,SOCIAL CARE.NURSING & RESIDENTIAL CARE
04/04/2022,2303506,604.33,ROSEBERRY CARE CENTRES - ROSEMOUNT,399299,Central Items,Planning Services,110,Third Party Payments,505,Private Contractors,5042,Revenue,SOCIAL CARE.NURSING & RESIDENTIAL CARE
04/04/2022,2303506,604.33,ROSEBERRY CARE CENTRES - ROSEMOUNT,399299,Central Items,Planning Services,110,Third Party Payments,505,Private Contractors,5042,Revenue,SOCIAL CARE.NURSING & RESIDENTIAL CARE
04/04/2022,2303506,604.33,ROSEBERRY CARE CENTRES - ROSEMOUNT,399299,Central Items,Planning Services,110,Third Party Payments,505,Private Contractors,5042,Revenue,SOCIAL CARE.NURSING & RESIDENTIAL CARE
04/04/2022,2303506,639.55,ROSEBERRY CARE CENTRES - ROSEMOUNT,399299,"Health, Education, Care and Safeguarding",Adult Social Care,101,Third Party Payments,505,Private Contractors,5042,Revenue,SOCIAL CARE.NURSING & RESIDENTIAL CARE
04/04/2022,2303506,639.55,ROSEBERRY CARE CENTRES - ROSEMOUNT,399299,"Health, Education, Care and Safeguarding",Adult Social Care,101,Third Party Payments,505,Private Contractors,5042,Revenue,SOCIAL CARE.NURSING & RESIDENTIAL CARE
04/04/2022,2303506,639.55,ROSEBERRY CARE CENTRES - ROSEMOUNT,399299,"Health, Education, Care and Safeguarding",Adult Social Care,101,Third Party Payments,505,Private Contractors,5042,Revenue,SOCIAL CARE.NURSING & RESIDENTIAL CARE
04/04/2022,2303506,639.55,ROSEBERRY CARE CENTRES - ROSEMOUNT,399299,"Health, Education, Care and Safeguarding",Adult Social Care,101,Third Party Payments,505,Private Contractors,5042,Revenue,SOCIAL CARE.NURSING & RESIDENTIAL CARE
04/04/2022,2303506,639.55,ROSEBERRY CARE CENTRES - ROSEMOUNT,399299,"Health, Education, Care and Safeguarding",Adult Social Care,101,Third Party Payments,505,Private Contractors,5042,Revenue,SOCIAL CARE.NURSING & RESIDENTIAL CARE
04/04/2022,2303506,639.55,ROSEBERRY CARE CENTRES - ROSEMOUNT,399299,"Health, Education, Care and Safeguarding",Adult Social Care,101,Third Party Payments,505,Private Contractors,5042,Revenue,SOCIAL CARE.NURSING & RESIDENTIAL CARE
04/04/2022,2303506,639.55,ROSEBERRY CARE CENTRES - ROSEMOUNT,399299,"Health, Education, Care and Safeguarding",Adult Social Care,101,Third Party Payments,505,Private Contractors,5042,Revenue,SOCIAL CARE.NURSING & RESIDENTIAL CARE
04/04/2022,2303506,639.55,ROSEBERRY CARE CENTRES - ROSEMOUNT,399299,"Health, Education, Care and Safeguarding",Adult Social Care,101,Third Party Payments,505,Private Contractors,5042,Revenue,SOCIAL CARE.NURSING & RESIDENTIAL CARE
04/04/2022,2303506,639.55,ROSEBERRY CARE CENTRES - ROSEMOUNT,399299,"Health, Education, Care and Safeguarding",Adult Social Care,101,Third Party Payments,505,Private Contractors,5042,Revenue,SOCIAL CARE.NURSING & RESIDENTIAL CARE
04/04/2022,2303506,639.55,ROSEBERRY CARE CENTRES - ROSEMOUNT,399299,Central Items,Planning Services,110,Third Party Payments,505,Private Contractors,5042,Revenue,SOCIAL CARE.NURSING & RESIDENTIAL CARE
04/04/2022,2303506,776.99,ROSEBERRY CARE CENTRES - ROSEMOUNT,399299,Central Items,Planning Services,110,Third Party Payments,505,Private Contractors,5042,Revenue,SOCIAL CARE.NURSING & RESIDENTIAL CARE
04/04/2022,2303506,1005.01,ROSEBERRY CARE CENTRES - ROSEMOUNT,399299,"Health, Education, Care and Safeguarding",Adult Social Care,101,Third Party Payments,505,Private Contractors,5042,Revenue,SOCIAL CARE.NURSING & RESIDENTIAL CARE
04/04/2022,2303507,583.48,ROSEBERRY CARE CENTRES � SOUTH QUAY,399298,"Health, Education, Care and Safeguarding",Adult Social Care,101,Third Party Payments,505,Private Contractors,5042,Revenue,SOCIAL CARE.NURSING & RESIDENTIAL CARE
04/04/2022,2303509,3.13,Redacted Personal Data,379708,"Health, Education, Care and Safeguarding",Adult Social Care,101,Third Party Payments,505,Other Establishments,5041,Revenue,NON INFLUENCIBLE.INDIVIDUAL
04/04/2022,2303509,17.50,Redacted Personal Data,379708,"Health, Education, Care and Safeguarding",Adult Social Care,101,Third Party Payments,505,Other Establishments,5041,Revenue,NON INFLUENCIBLE.INDIVIDUAL
04/04/2022,2303509,30.00,Redacted Personal Data,379708,"Health, Education, Care and Safeguarding",Adult Social Care,101,Third Party Payments,505,Other Establishments,5041,Revenue,NON INFLUENCIBLE.INDIVIDUAL
04/04/2022,2303509,162.00,Redacted Personal Data,379708,"Health, Education, Care and Safeguarding",Adult Social Care,101,Third Party Payments,505,Other Establishments,5041,Revenue,NON INFLUENCIBLE.INDIVIDUAL
04/04/2022,2303509,559.57,Redacted Personal Data,379708,"Health, Education, Care and Safeguarding",Adult Social Care,101,Third Party Payments,505,Other Establishments,5041,Revenue,NON INFLUENCIBLE.INDIVIDUAL
04/04/2022,2303509,4297.80,Redacted Personal Data,379708,"Health, Education, Care and Safeguarding",Adult Social Care,101,Third Party Payments,505,Other Establishments,5041,Revenue,NON INFLUENCIBLE.INDIVIDUAL
04/04/2022,2303510,85.81,AMICURA LTD,399160,"Health, Education, Care and Safeguarding",Public Health,112,Third Party Payments,505,Other Establishments,5041,Revenue,SOCIAL CARE.NURSING & RESIDENTIAL CARE
04/04/2022,2303510,85.81,AMICURA LTD,399160,"Health, Education, Care and Safeguarding",Public Health,112,Third Party Payments,505,Other Establishments,5041,Revenue,SOCIAL CARE.NURSING & RESIDENTIAL CARE
04/04/2022,2303510,187.60,AMICURA LTD,399160,"Health, Education, Care and Safeguarding",Adult Social Care,101,Third Party Payments,505,Other Establishments,5041,Revenue,SOCIAL CARE.NURSING & RESIDENTIAL CARE
04/04/2022,2303510,187.60,AMICURA LTD,399160,"Health, Education, Care and Safeguarding",Adult Social Care,101,Third Party Payments,505,Other Establishments,5041,Revenue,SOCIAL CARE.NURSING & RESIDENTIAL CARE
04/04/2022,2303510,187.60,AMICURA LTD,399160,"Health, Education, Care and Safeguarding",Adult Social Care,101,Third Party Payments,505,Other Establishments,5041,Revenue,SOCIAL CARE.NURSING & RESIDENTIAL CARE
04/04/2022,2303510,187.60,AMICURA LTD,399160,"Health, Education, Care and Safeguarding",Adult Social Care,101,Third Party Payments,505,Other Establishments,5041,Revenue,SOCIAL CARE.NURSING & RESIDENTIAL CARE
04/04/2022,2303510,187.60,AMICURA LTD,399160,"Health, Education, Care and Safeguarding",Adult Social Care,101,Third Party Payments,505,Other Establishments,5041,Revenue,SOCIAL CARE.NURSING & RESIDENTIAL CARE
04/04/2022,2303510,187.60,AMICURA LTD,399160,"Health, Education, Care and Safeguarding",Adult Social Care,101,Third Party Payments,505,Other Establishments,5041,Revenue,SOCIAL CARE.NURSING & RESIDENTIAL CARE
04/04/2022,2303510,187.60,AMICURA LTD,399160,"Health, Education, Care and Safeguarding",Adult Social Care,101,Third Party Payments,505,Other Establishments,5041,Revenue,SOCIAL CARE.NURSING & RESIDENTIAL CARE
04/04/2022,2303510,187.60,AMICURA LTD,399160,"Health, Education, Care and Safeguarding",Adult Social Care,101,Third Party Payments,505,Other Establishments,5041,Revenue,SOCIAL CARE.NURSING & RESIDENTIAL CARE
04/04/2022,2303510,187.60,AMICURA LTD,399160,"Health, Education, Care and Safeguarding",Public Health,112,Third Party Payments,505,Other Establishments,5041,Revenue,SOCIAL CARE.NURSING & RESIDENTIAL CARE
04/04/2022,2303510,187.60,AMICURA LTD,399160,"Health, Education, Care and Safeguarding",Public Health,112,Third Party Payments,505,Other Establishments,5041,Revenue,SOCIAL CARE.NURSING & RESIDENTIAL CARE
04/04/2022,2303510,187.60,AMICURA LTD,399160,"Health, Education, Care and Safeguarding",Adult Social Care,101,Third Party Payments,505,Other Establishments,5041,Revenue,SOCIAL CARE.NURSING & RESIDENTIAL CARE
04/04/2022,2303510,187.60,AMICURA LTD,399160,Central Items,Planning Services,110,Third Party Payments,505,Private Contractors,5042,Revenue,SOCIAL CARE.NURSING & RESIDENTIAL CARE
04/04/2022,2303510,604.33,AMICURA LTD,399160,"Health, Education, Care and Safeguarding",Adult Social Care,101,Third Party Payments,505,Private Contractors,5042,Revenue,SOCIAL CARE.NURSING & RESIDENTIAL CARE
04/04/2022,2303510,604.33,AMICURA LTD,399160,"Health, Education, Care and Safeguarding",Adult Social Care,101,Third Party Payments,505,Private Contractors,5042,Revenue,SOCIAL CARE.NURSING & RESIDENTIAL CARE
04/04/2022,2303510,604.33,AMICURA LTD,399160,"Health, Education, Care and Safeguarding",Adult Social Care,101,Third Party Payments,505,Private Contractors,5042,Revenue,SOCIAL CARE.NURSING & RESIDENTIAL CARE
04/04/2022,2303510,604.33,AMICURA LTD,399160,"Health, Education, Care and Safeguarding",Adult Social Care,101,Third Party Payments,505,Private Contractors,5042,Revenue,SOCIAL CARE.NURSING & RESIDENTIAL CARE
04/04/2022,2303510,604.33,AMICURA LTD,399160,"Health, Education, Care and Safeguarding",Adult Social Care,101,Third Party Payments,505,Private Contractors,5042,Revenue,SOCIAL CARE.NURSING & RESIDENTIAL CARE
04/04/2022,2303510,604.33,AMICURA LTD,399160,"Health, Education, Care and Safeguarding",Adult Social Care,101,Third Party Payments,505,Private Contractors,5042,Revenue,SOCIAL CARE.NURSING & RESIDENTIAL CARE
04/04/2022,2303510,604.33,AMICURA LTD,399160,"Health, Education, Care and Safeguarding",Adult Social Care,101,Third Party Payments,505,Private Contractors,5042,Revenue,SOCIAL CARE.NURSING & RESIDENTIAL CARE
04/04/2022,2303510,604.33,AMICURA LTD,399160,"Health, Education, Care and Safeguarding",Adult Social Care,101,Third Party Payments,505,Private Contractors,5042,Revenue,SOCIAL CARE.NURSING & RESIDENTIAL CARE
04/04/2022,2303510,604.33,AMICURA LTD,399160,"Health, Education, Care and Safeguarding",Adult Social Care,101,Third Party Payments,505,Private Contractors,5042,Revenue,SOCIAL CARE.NURSING & RESIDENTIAL CARE
04/04/2022,2303510,604.33,AMICURA LTD,399160,"Health, Education, Care and Safeguarding",Adult Social Care,101,Third Party Payments,505,Private Contractors,5042,Revenue,SOCIAL CARE.NURSING & RESIDENTIAL CARE
04/04/2022,2303510,604.33,AMICURA LTD,399160,"Health, Education, Care and Safeguarding",Adult Social Care,101,Third Party Payments,505,Private Contractors,5042,Revenue,SOCIAL CARE.NURSING & RESIDENTIAL CARE
04/04/2022,2303510,604.33,AMICURA LTD,399160,"Health, Education, Care and Safeguarding",Adult Social Care,101,Third Party Payments,505,Private Contractors,5042,Revenue,SOCIAL CARE.NURSING & RESIDENTIAL CARE
04/04/2022,2303510,604.33,AMICURA LTD,399160,"Health, Education, Care and Safeguarding",Adult Social Care,101,Third Party Payments,505,Private Contractors,5042,Revenue,SOCIAL CARE.NURSING & RESIDENTIAL CARE
04/04/2022,2303510,604.33,AMICURA LTD,399160,"Health, Education, Care and Safeguarding",Public Health,112,Third Party Payments,505,Other Establishments,5041,Revenue,SOCIAL CARE.NURSING & RESIDENTIAL CARE
04/04/2022,2303510,604.33,AMICURA LTD,399160,"Health, Education, Care and Safeguarding",Public Health,112,Third Party Payments,505,Other Establishments,5041,Revenue,SOCIAL CARE.NURSING & RESIDENTIAL CARE
04/04/2022,2303510,604.33,AMICURA LTD,399160,"Health, Education, Care and Safeguarding",Adult Social Care,101,Third Party Payments,505,Private Contractors,5042,Revenue,SOCIAL CARE.NURSING & RESIDENTIAL CARE
04/04/2022,2303510,604.33,AMICURA LTD,399160,"Health, Education, Care and Safeguarding",Adult Social Care,101,Third Party Payments,505,Private Contractors,5042,Revenue,SOCIAL CARE.NURSING & RESIDENTIAL CARE
04/04/2022,2303510,604.33,AMICURA LTD,399160,Central Items,Planning Services,110,Third Party Payments,505,Private Contractors,5042,Revenue,SOCIAL CARE.NURSING & RESIDENTIAL CARE
04/04/2022,2303510,639.55,AMICURA LTD,399160,"Health, Education, Care and Safeguarding",Adult Social Care,101,Third Party Payments,505,Private Contractors,5042,Revenue,SOCIAL CARE.NURSING & RESIDENTIAL CARE
04/04/2022,2303510,639.55,AMICURA LTD,399160,"Health, Education, Care and Safeguarding",Adult Social Care,101,Third Party Payments,505,Private Contractors,5042,Revenue,SOCIAL CARE.NURSING & RESIDENTIAL CARE
04/04/2022,2303510,639.55,AMICURA LTD,399160,"Health, Education, Care and Safeguarding",Adult Social Care,101,Third Party Payments,505,Private Contractors,5042,Revenue,SOCIAL CARE.NURSING & RESIDENTIAL CARE
04/04/2022,2303510,639.55,AMICURA LTD,399160,"Health, Education, Care and Safeguarding",Adult Social Care,101,Third Party Payments,505,Private Contractors,5042,Revenue,SOCIAL CARE.NURSING & RESIDENTIAL CARE
04/04/2022,2303510,639.55,AMICURA LTD,399160,"Health, Education, Care and Safeguarding",Adult Social Care,101,Third Party Payments,505,Private Contractors,5042,Revenue,SOCIAL CARE.NURSING & RESIDENTIAL CARE
04/04/2022,2303510,639.55,AMICURA LTD,399160,"Health, Education, Care and Safeguarding",Adult Social Care,101,Third Party Payments,505,Private Contractors,5042,Revenue,SOCIAL CARE.NURSING & RESIDENTIAL CARE
04/04/2022,2303510,639.55,AMICURA LTD,399160,"Health, Education, Care and Safeguarding",Adult Social Care,101,Third Party Payments,505,Private Contractors,5042,Revenue,SOCIAL CARE.NURSING & RESIDENTIAL CARE
04/04/2022,2303510,639.55,AMICURA LTD,399160,"Health, Education, Care and Safeguarding",Adult Social Care,101,Third Party Payments,505,Private Contractors,5042,Revenue,SOCIAL CARE.NURSING & RESIDENTIAL CARE
04/04/2022,2303511,511.70,Redacted Personal Data,399052,"Health, Education, Care and Safeguarding",Adult Social Care,101,Third Party Payments,505,Other Establishments,5041,Revenue,NON INFLUENCIBLE.INDIVIDUAL
04/04/2022,2303513,37.55,Redacted Personal Data,398988,"Health, Education, Care and Safeguarding",Adult Social Care,101,Third Party Payments,505,Other Establishments,5041,Revenue,NON INFLUENCIBLE.INDIVIDUAL
04/04/2022,2303513,1471.72,Redacted Personal Data,398988,"Health, Education, Care and Safeguarding",Adult Social Care,101,Third Party Payments,505,Other Establishments,5041,Revenue,NON INFLUENCIBLE.INDIVIDUAL
04/04/2022,2303515,297.21,Redacted Personal Data,367261,"Health, Education, Care and Safeguarding",Adult Social Care,101,Third Party Payments,505,Other Establishments,5041,Revenue,NON INFLUENCIBLE.WELFARE
04/04/2022,2303522,-275.55,ST MARTINS CARE LIMITED,383318,Central Items,Planning Services,110,Third Party Payments,505,Private Contractors,5042,Revenue,SOCIAL CARE.NURSING & RESIDENTIAL CARE
04/04/2022,2303522,275.55,ST MARTINS CARE LIMITED,383318,"Health, Education, Care and Safeguarding",Adult Social Care,101,Third Party Payments,505,Private Contractors,5042,Revenue,SOCIAL CARE.NURSING & RESIDENTIAL CARE
04/04/2022,2303522,291.27,ST MARTINS CARE LIMITED,383318,Central Items,Planning Services,110,Third Party Payments,505,Private Contractors,5042,Revenue,SOCIAL CARE.NURSING & RESIDENTIAL CARE
04/04/2022,2303522,367.41,ST MARTINS CARE LIMITED,383318,Central Items,Planning Services,110,Third Party Payments,505,Private Contractors,5042,Revenue,SOCIAL CARE.NURSING & RESIDENTIAL CARE
04/04/2022,2303522,388.36,ST MARTINS CARE LIMITED,383318,"Health, Education, Care and Safeguarding",Adult Social Care,101,Third Party Payments,505,Private Contractors,5042,Revenue,SOCIAL CARE.NURSING & RESIDENTIAL CARE
04/04/2022,2303522,642.96,ST MARTINS CARE LIMITED,383318,"Health, Education, Care and Safeguarding",Adult Social Care,101,Third Party Payments,505,Private Contractors,5042,Revenue,SOCIAL CARE.NURSING & RESIDENTIAL CARE
04/04/2022,2303522,642.96,ST MARTINS CARE LIMITED,383318,"Health, Education, Care and Safeguarding",Adult Social Care,101,Third Party Payments,505,Private Contractors,5042,Revenue,SOCIAL CARE.NURSING & RESIDENTIAL CARE
04/04/2022,2303522,642.96,ST MARTINS CARE LIMITED,383318,"Health, Education, Care and Safeguarding",Adult Social Care,101,Third Party Payments,505,Private Contractors,5042,Revenue,SOCIAL CARE.NURSING & RESIDENTIAL CARE
04/04/2022,2303522,642.96,ST MARTINS CARE LIMITED,383318,"Health, Education, Care and Safeguarding",Adult Social Care,101,Third Party Payments,505,Private Contractors,5042,Revenue,SOCIAL CARE.NURSING & RESIDENTIAL CARE
04/04/2022,2303522,642.96,ST MARTINS CARE LIMITED,383318,"Health, Education, Care and Safeguarding",Adult Social Care,101,Third Party Payments,505,Private Contractors,5042,Revenue,SOCIAL CARE.NURSING & RESIDENTIAL CARE
04/04/2022,2303522,642.96,ST MARTINS CARE LIMITED,383318,"Health, Education, Care and Safeguarding",Adult Social Care,101,Third Party Payments,505,Private Contractors,5042,Revenue,SOCIAL CARE.NURSING & RESIDENTIAL CARE
04/04/2022,2303522,642.96,ST MARTINS CARE LIMITED,383318,"Health, Education, Care and Safeguarding",Adult Social Care,101,Third Party Payments,505,Private Contractors,5042,Revenue,SOCIAL CARE.NURSING & RESIDENTIAL CARE
04/04/2022,2303522,642.96,ST MARTINS CARE LIMITED,383318,"Health, Education, Care and Safeguarding",Adult Social Care,101,Third Party Payments,505,Private Contractors,5042,Revenue,SOCIAL CARE.NURSING & RESIDENTIAL CARE
04/04/2022,2303522,642.96,ST MARTINS CARE LIMITED,383318,"Health, Education, Care and Safeguarding",Adult Social Care,101,Third Party Payments,505,Private Contractors,5042,Revenue,SOCIAL CARE.NURSING & RESIDENTIAL CARE
04/04/2022,2303522,642.96,ST MARTINS CARE LIMITED,383318,"Health, Education, Care and Safeguarding",Adult Social Care,101,Third Party Payments,505,Private Contractors,5042,Revenue,SOCIAL CARE.NURSING & RESIDENTIAL CARE
04/04/2022,2303522,642.96,ST MARTINS CARE LIMITED,383318,"Health, Education, Care and Safeguarding",Adult Social Care,101,Third Party Payments,505,Private Contractors,5042,Revenue,SOCIAL CARE.NURSING & RESIDENTIAL CARE
04/04/2022,2303522,642.96,ST MARTINS CARE LIMITED,383318,"Health, Education, Care and Safeguarding",Adult Social Care,101,Third Party Payments,505,Private Contractors,5042,Revenue,SOCIAL CARE.NURSING & RESIDENTIAL CARE
04/04/2022,2303522,642.96,ST MARTINS CARE LIMITED,383318,"Health, Education, Care and Safeguarding",Adult Social Care,101,Third Party Payments,505,Private Contractors,5042,Revenue,SOCIAL CARE.NURSING & RESIDENTIAL CARE
04/04/2022,2303522,642.96,ST MARTINS CARE LIMITED,383318,"Health, Education, Care and Safeguarding",Adult Social Care,101,Third Party Payments,505,Private Contractors,5042,Revenue,SOCIAL CARE.NURSING & RESIDENTIAL CARE
04/04/2022,2303522,642.96,ST MARTINS CARE LIMITED,383318,"Health, Education, Care and Safeguarding",Adult Social Care,101,Third Party Payments,505,Private Contractors,5042,Revenue,SOCIAL CARE.NURSING & RESIDENTIAL CARE
04/04/2022,2303522,642.96,ST MARTINS CARE LIMITED,383318,"Health, Education, Care and Safeguarding",Adult Social Care,101,Third Party Payments,505,Private Contractors,5042,Revenue,SOCIAL CARE.NURSING & RESIDENTIAL CARE
04/04/2022,2303522,642.96,ST MARTINS CARE LIMITED,383318,"Health, Education, Care and Safeguarding",Adult Social Care,101,Third Party Payments,505,Private Contractors,5042,Revenue,SOCIAL CARE.NURSING & RESIDENTIAL CARE
04/04/2022,2303522,642.96,ST MARTINS CARE LIMITED,383318,"Health, Education, Care and Safeguarding",Adult Social Care,101,Third Party Payments,505,Private Contractors,5042,Revenue,SOCIAL CARE.NURSING & RESIDENTIAL CARE
04/04/2022,2303522,679.62,ST MARTINS CARE LIMITED,383318,"Health, Education, Care and Safeguarding",Adult Social Care,101,Third Party Payments,505,Private Contractors,5042,Revenue,SOCIAL CARE.NURSING & RESIDENTIAL CARE
04/04/2022,2303522,679.62,ST MARTINS CARE LIMITED,383318,"Health, Education, Care and Safeguarding",Adult Social Care,101,Third Party Payments,505,Private Contractors,5042,Revenue,SOCIAL CARE.NURSING & RESIDENTIAL CARE
04/04/2022,2303522,679.62,ST MARTINS CARE LIMITED,383318,"Health, Education, Care and Safeguarding",Adult Social Care,101,Third Party Payments,505,Private Contractors,5042,Revenue,SOCIAL CARE.NURSING & RESIDENTIAL CARE
04/04/2022,2303522,679.62,ST MARTINS CARE LIMITED,383318,"Health, Education, Care and Safeguarding",Adult Social Care,101,Third Party Payments,505,Private Contractors,5042,Revenue,SOCIAL CARE.NURSING & RESIDENTIAL CARE
04/04/2022,2303522,679.62,ST MARTINS CARE LIMITED,383318,"Health, Education, Care and Safeguarding",Adult Social Care,101,Third Party Payments,505,Private Contractors,5042,Revenue,SOCIAL CARE.NURSING & RESIDENTIAL CARE
04/04/2022,2303522,679.62,ST MARTINS CARE LIMITED,383318,"Health, Education, Care and Safeguarding",Adult Social Care,101,Third Party Payments,505,Private Contractors,5042,Revenue,SOCIAL CARE.NURSING & RESIDENTIAL CARE
04/04/2022,2303522,679.62,ST MARTINS CARE LIMITED,383318,"Health, Education, Care and Safeguarding",Adult Social Care,101,Third Party Payments,505,Private Contractors,5042,Revenue,SOCIAL CARE.NURSING & RESIDENTIAL CARE
04/04/2022,2303522,679.62,ST MARTINS CARE LIMITED,383318,"Health, Education, Care and Safeguarding",Adult Social Care,101,Third Party Payments,505,Private Contractors,5042,Revenue,SOCIAL CARE.NURSING & RESIDENTIAL CARE
04/04/2022,2303522,679.62,ST MARTINS CARE LIMITED,383318,"Health, Education, Care and Safeguarding",Adult Social Care,101,Third Party Payments,505,Private Contractors,5042,Revenue,SOCIAL CARE.NURSING & RESIDENTIAL CARE
04/04/2022,2303522,679.62,ST MARTINS CARE LIMITED,383318,"Health, Education, Care and Safeguarding",Adult Social Care,101,Third Party Payments,505,Private Contractors,5042,Revenue,SOCIAL CARE.NURSING & RESIDENTIAL CARE
04/04/2022,2303522,679.62,ST MARTINS CARE LIMITED,383318,"Health, Education, Care and Safeguarding",Adult Social Care,101,Third Party Payments,505,Private Contractors,5042,Revenue,SOCIAL CARE.NURSING & RESIDENTIAL CARE
04/04/2022,2303522,679.62,ST MARTINS CARE LIMITED,383318,"Health, Education, Care and Safeguarding",Adult Social Care,101,Third Party Payments,505,Private Contractors,5042,Revenue,SOCIAL CARE.NURSING & RESIDENTIAL CARE
04/04/2022,2303522,679.62,ST MARTINS CARE LIMITED,383318,"Health, Education, Care and Safeguarding",Adult Social Care,101,Third Party Payments,505,Private Contractors,5042,Revenue,SOCIAL CARE.NURSING & RESIDENTIAL CARE
04/04/2022,2303522,679.62,ST MARTINS CARE LIMITED,383318,"Health, Education, Care and Safeguarding",Adult Social Care,101,Third Party Payments,505,Private Contractors,5042,Revenue,SOCIAL CARE.NURSING & RESIDENTIAL CARE
04/04/2022,2303522,679.62,ST MARTINS CARE LIMITED,383318,"Health, Education, Care and Safeguarding",Adult Social Care,101,Third Party Payments,505,Private Contractors,5042,Revenue,SOCIAL CARE.NURSING & RESIDENTIAL CARE
04/04/2022,2303522,679.62,ST MARTINS CARE LIMITED,383318,"Health, Education, Care and Safeguarding",Adult Social Care,101,Third Party Payments,505,Private Contractors,5042,Revenue,SOCIAL CARE.NURSING & RESIDENTIAL CARE
04/04/2022,2303525,448.18,Redacted Personal Data,385908,"Health, Education, Care and Safeguarding",Adult Social Care,101,Third Party Payments,505,Other Establishments,5041,Revenue,SOCIAL CARE.CARE SERVICES
04/04/2022,2303526,845.00,Redacted Personal Data,398411,"Health, Education, Care and Safeguarding",Adult Social Care,101,Third Party Payments,505,Other Establishments,5041,Revenue,SOCIAL CARE.NURSING & RESIDENTIAL CARE
04/04/2022,2303529,587.00,BURLINGTON CARE LTD,401782,"Health, Education, Care and Safeguarding",Adult Social Care,101,Third Party Payments,505,Private Contractors,5042,Revenue,SOCIAL CARE.NURSING & RESIDENTIAL CARE
04/04/2022,2303532,223.51,INTERACTIVE DEVELOPMENT SUPPORT LIMITED,383543,"Health, Education, Care and Safeguarding",Adult Social Care,101,Third Party Payments,505,Private Contractors,5042,Revenue,SOCIAL CARE.CARE SERVICES
04/04/2022,2303532,223.51,INTERACTIVE DEVELOPMENT SUPPORT LIMITED,383543,"Health, Education, Care and Safeguarding",Adult Social Care,101,Third Party Payments,505,Private Contractors,5042,Revenue,SOCIAL CARE.CARE SERVICES
04/04/2022,2303532,223.51,INTERACTIVE DEVELOPMENT SUPPORT LIMITED,383543,"Health, Education, Care and Safeguarding",Adult Social Care,101,Third Party Payments,505,Private Contractors,5042,Revenue,SOCIAL CARE.CARE SERVICES
04/04/2022,2303532,299.28,INTERACTIVE DEVELOPMENT SUPPORT LIMITED,383543,"Health, Education, Care and Safeguarding",Adult Social Care,101,Third Party Payments,505,Private Contractors,5042,Revenue,SOCIAL CARE.CARE SERVICES
04/04/2022,2303532,327.80,INTERACTIVE DEVELOPMENT SUPPORT LIMITED,383543,"Health, Education, Care and Safeguarding",Adult Social Care,101,Third Party Payments,505,Other Establishments,5041,Revenue,SOCIAL CARE.CARE SERVICES
04/04/2022,2303532,335.27,INTERACTIVE DEVELOPMENT SUPPORT LIMITED,383543,"Health, Education, Care and Safeguarding",Adult Social Care,101,Third Party Payments,505,Private Contractors,5042,Revenue,SOCIAL CARE.CARE SERVICES
04/04/2022,2303532,335.27,INTERACTIVE DEVELOPMENT SUPPORT LIMITED,383543,"Health, Education, Care and Safeguarding",Adult Social Care,101,Third Party Payments,505,Private Contractors,5042,Revenue,SOCIAL CARE.CARE SERVICES
04/04/2022,2303532,382.50,INTERACTIVE DEVELOPMENT SUPPORT LIMITED,383543,"Health, Education, Care and Safeguarding",Adult Social Care,101,Third Party Payments,505,Private Contractors,5042,Revenue,SOCIAL CARE.CARE SERVICES
04/04/2022,2303532,407.64,INTERACTIVE DEVELOPMENT SUPPORT LIMITED,383543,"Health, Education, Care and Safeguarding",Adult Social Care,101,Third Party Payments,505,Private Contractors,5042,Revenue,SOCIAL CARE.CARE SERVICES
04/04/2022,2303532,407.64,INTERACTIVE DEVELOPMENT SUPPORT LIMITED,383543,"Health, Education, Care and Safeguarding",Adult Social Care,101,Third Party Payments,505,Private Contractors,5042,Revenue,SOCIAL CARE.CARE SERVICES
04/04/2022,2303532,670.51,INTERACTIVE DEVELOPMENT SUPPORT LIMITED,383543,"Health, Education, Care and Safeguarding",Adult Social Care,101,Third Party Payments,505,Private Contractors,5042,Revenue,SOCIAL CARE.CARE SERVICES
04/04/2022,2303532,758.85,INTERACTIVE DEVELOPMENT SUPPORT LIMITED,383543,"Health, Education, Care and Safeguarding",Adult Social Care,101,Third Party Payments,505,Private Contractors,5042,Revenue,SOCIAL CARE.CARE SERVICES
04/04/2022,2303532,758.85,INTERACTIVE DEVELOPMENT SUPPORT LIMITED,383543,"Health, Education, Care and Safeguarding",Adult Social Care,101,Third Party Payments,505,Private Contractors,5042,Revenue,SOCIAL CARE.CARE SERVICES
04/04/2022,2303532,1571.92,INTERACTIVE DEVELOPMENT SUPPORT LIMITED,383543,"Health, Education, Care and Safeguarding",Adult Social Care,101,Third Party Payments,505,Private Contractors,5042,Revenue,SOCIAL CARE.CARE SERVICES
04/04/2022,2303534,642.96,EOTHEN HOMES LTD,276943,"Health, Education, Care and Safeguarding",Adult Social Care,101,Third Party Payments,505,Private Contractors,5042,Revenue,SOCIAL CARE.NURSING & RESIDENTIAL CARE
04/04/2022,2303534,642.96,EOTHEN HOMES LTD,276943,"Health, Education, Care and Safeguarding",Adult Social Care,101,Third Party Payments,505,Private Contractors,5042,Revenue,SOCIAL CARE.NURSING & RESIDENTIAL CARE
04/04/2022,2303534,642.96,EOTHEN HOMES LTD,276943,"Health, Education, Care and Safeguarding",Adult Social Care,101,Third Party Payments,505,Private Contractors,5042,Revenue,SOCIAL CARE.NURSING & RESIDENTIAL CARE
04/04/2022,2303534,642.96,EOTHEN HOMES LTD,276943,"Health, Education, Care and Safeguarding",Adult Social Care,101,Third Party Payments,505,Private Contractors,5042,Revenue,SOCIAL CARE.NURSING & RESIDENTIAL CARE
04/04/2022,2303534,679.62,EOTHEN HOMES LTD,276943,"Health, Education, Care and Safeguarding",Adult Social Care,101,Third Party Payments,505,Private Contractors,5042,Revenue,SOCIAL CARE.NURSING & RESIDENTIAL CARE
04/04/2022,2303534,679.62,EOTHEN HOMES LTD,276943,"Health, Education, Care and Safeguarding",Adult Social Care,101,Third Party Payments,505,Private Contractors,5042,Revenue,SOCIAL CARE.NURSING & RESIDENTIAL CARE
04/04/2022,2303534,679.62,EOTHEN HOMES LTD,276943,"Health, Education, Care and Safeguarding",Adult Social Care,101,Third Party Payments,505,Private Contractors,5042,Revenue,SOCIAL CARE.NURSING & RESIDENTIAL CARE
04/04/2022,2303534,679.62,EOTHEN HOMES LTD,276943,"Health, Education, Care and Safeguarding",Adult Social Care,101,Third Party Payments,505,Private Contractors,5042,Revenue,SOCIAL CARE.NURSING & RESIDENTIAL CARE
04/04/2022,2303534,679.62,EOTHEN HOMES LTD,276943,"Health, Education, Care and Safeguarding",Adult Social Care,101,Third Party Payments,505,Private Contractors,5042,Revenue,SOCIAL CARE.NURSING & RESIDENTIAL CARE
04/04/2022,2303534,679.62,EOTHEN HOMES LTD,276943,"Health, Education, Care and Safeguarding",Adult Social Care,101,Third Party Payments,505,Private Contractors,5042,Revenue,SOCIAL CARE.NURSING & RESIDENTIAL CARE
04/04/2022,2303534,679.62,EOTHEN HOMES LTD,276943,"Health, Education, Care and Safeguarding",Adult Social Care,101,Third Party Payments,505,Private Contractors,5042,Revenue,SOCIAL CARE.NURSING & RESIDENTIAL CARE
04/04/2022,2303534,679.62,EOTHEN HOMES LTD,276943,"Health, Education, Care and Safeguarding",Adult Social Care,101,Third Party Payments,505,Private Contractors,5042,Revenue,SOCIAL CARE.NURSING & RESIDENTIAL CARE
04/04/2022,2303534,679.62,EOTHEN HOMES LTD,276943,"Health, Education, Care and Safeguarding",Adult Social Care,101,Third Party Payments,505,Private Contractors,5042,Revenue,SOCIAL CARE.NURSING & RESIDENTIAL CARE
04/04/2022,2303534,679.62,EOTHEN HOMES LTD,276943,"Health, Education, Care and Safeguarding",Adult Social Care,101,Third Party Payments,505,Private Contractors,5042,Revenue,SOCIAL CARE.NURSING & RESIDENTIAL CARE
04/04/2022,2303534,679.62,EOTHEN HOMES LTD,276943,"Health, Education, Care and Safeguarding",Adult Social Care,101,Third Party Payments,505,Private Contractors,5042,Revenue,SOCIAL CARE.NURSING & RESIDENTIAL CARE
04/04/2022,2303534,679.62,EOTHEN HOMES LTD,276943,"Health, Education, Care and Safeguarding",Adult Social Care,101,Third Party Payments,505,Private Contractors,5042,Revenue,SOCIAL CARE.NURSING & RESIDENTIAL CARE
04/04/2022,2303534,679.62,EOTHEN HOMES LTD,276943,"Health, Education, Care and Safeguarding",Adult Social Care,101,Third Party Payments,505,Private Contractors,5042,Revenue,SOCIAL CARE.NURSING & RESIDENTIAL CARE
04/04/2022,2303534,679.62,EOTHEN HOMES LTD,276943,"Health, Education, Care and Safeguarding",Adult Social Care,101,Third Party Payments,505,Private Contractors,5042,Revenue,SOCIAL CARE.NURSING & RESIDENTIAL CARE
04/04/2022,2303534,679.62,EOTHEN HOMES LTD,276943,"Health, Education, Care and Safeguarding",Adult Social Care,101,Third Party Payments,505,Private Contractors,5042,Revenue,SOCIAL CARE.NURSING & RESIDENTIAL CARE
04/04/2022,2303534,679.62,EOTHEN HOMES LTD,276943,"Health, Education, Care and Safeguarding",Adult Social Care,101,Third Party Payments,505,Private Contractors,5042,Revenue,SOCIAL CARE.NURSING & RESIDENTIAL CARE
04/04/2022,2303534,679.62,EOTHEN HOMES LTD,276943,"Health, Education, Care and Safeguarding",Adult Social Care,101,Third Party Payments,505,Private Contractors,5042,Revenue,SOCIAL CARE.NURSING & RESIDENTIAL CARE
04/04/2022,2303534,679.62,EOTHEN HOMES LTD,276943,"Health, Education, Care and Safeguarding",Adult Social Care,101,Third Party Payments,505,Private Contractors,5042,Revenue,SOCIAL CARE.NURSING & RESIDENTIAL CARE
04/04/2022,2303534,679.62,EOTHEN HOMES LTD,276943,"Health, Education, Care and Safeguarding",Adult Social Care,101,Third Party Payments,505,Private Contractors,5042,Revenue,SOCIAL CARE.NURSING & RESIDENTIAL CARE
04/04/2022,2303534,679.62,EOTHEN HOMES LTD,276943,"Health, Education, Care and Safeguarding",Adult Social Care,101,Third Party Payments,505,Private Contractors,5042,Revenue,SOCIAL CARE.NURSING & RESIDENTIAL CARE
04/04/2022,2303534,679.62,EOTHEN HOMES LTD,276943,"Health, Education, Care and Safeguarding",Adult Social Care,101,Third Party Payments,505,Private Contractors,5042,Revenue,SOCIAL CARE.NURSING & RESIDENTIAL CARE
04/04/2022,2303534,679.62,EOTHEN HOMES LTD,276943,"Health, Education, Care and Safeguarding",Adult Social Care,101,Third Party Payments,505,Private Contractors,5042,Revenue,SOCIAL CARE.NURSING & RESIDENTIAL CARE
04/04/2022,2303534,679.62,EOTHEN HOMES LTD,276943,"Health, Education, Care and Safeguarding",Adult Social Care,101,Third Party Payments,505,Private Contractors,5042,Revenue,SOCIAL CARE.NURSING & RESIDENTIAL CARE
04/04/2022,2303534,679.62,EOTHEN HOMES LTD,276943,"Health, Education, Care and Safeguarding",Adult Social Care,101,Third Party Payments,505,Private Contractors,5042,Revenue,SOCIAL CARE.NURSING & RESIDENTIAL CARE
04/04/2022,2303534,679.62,EOTHEN HOMES LTD,276943,"Health, Education, Care and Safeguarding",Adult Social Care,101,Third Party Payments,505,Private Contractors,5042,Revenue,SOCIAL CARE.NURSING & RESIDENTIAL CARE
04/04/2022,2303534,679.62,EOTHEN HOMES LTD,276943,"Health, Education, Care and Safeguarding",Adult Social Care,101,Third Party Payments,505,Private Contractors,5042,Revenue,SOCIAL CARE.NURSING & RESIDENTIAL CARE
04/04/2022,2303534,679.62,EOTHEN HOMES LTD,276943,"Health, Education, Care and Safeguarding",Adult Social Care,101,Third Party Payments,505,Private Contractors,5042,Revenue,SOCIAL CARE.NURSING & RESIDENTIAL CARE
04/04/2022,2303534,679.62,EOTHEN HOMES LTD,276943,"Health, Education, Care and Safeguarding",Adult Social Care,101,Third Party Payments,505,Private Contractors,5042,Revenue,SOCIAL CARE.NURSING & RESIDENTIAL CARE
04/04/2022,2303534,679.62,EOTHEN HOMES LTD,276943,"Health, Education, Care and Safeguarding",Adult Social Care,101,Third Party Payments,505,Private Contractors,5042,Revenue,SOCIAL CARE.NURSING & RESIDENTIAL CARE
04/04/2022,2303534,679.62,EOTHEN HOMES LTD,276943,"Health, Education, Care and Safeguarding",Adult Social Care,101,Third Party Payments,505,Private Contractors,5042,Revenue,SOCIAL CARE.NURSING & RESIDENTIAL CARE
04/04/2022,2303534,679.62,EOTHEN HOMES LTD,276943,"Health, Education, Care and Safeguarding",Adult Social Care,101,Third Party Payments,505,Private Contractors,5042,Revenue,SOCIAL CARE.NURSING & RESIDENTIAL CARE
04/04/2022,2303534,679.62,EOTHEN HOMES LTD,276943,"Health, Education, Care and Safeguarding",Adult Social Care,101,Third Party Payments,505,Private Contractors,5042,Revenue,SOCIAL CARE.NURSING & RESIDENTIAL CARE
04/04/2022,2303534,681.07,EOTHEN HOMES LTD,276943,"Health, Education, Care and Safeguarding",Adult Social Care,101,Third Party Payments,505,Private Contractors,5042,Revenue,SOCIAL CARE.NURSING & RESIDENTIAL CARE
04/04/2022,2303537,379.05,Redacted Personal Data,396159,"Health, Education, Care and Safeguarding",Adult Social Care,101,Third Party Payments,505,Other Establishments,5041,Revenue,NON INFLUENCIBLE.INDIVIDUAL
04/04/2022,2303538,88.00,Redacted Personal Data,398120,"Health, Education, Care and Safeguarding",Adult Social Care,101,Third Party Payments,505,Other Establishments,5041,Revenue,NON INFLUENCIBLE.WELFARE
04/04/2022,2303538,92.50,Redacted Personal Data,398120,"Health, Education, Care and Safeguarding",Adult Social Care,101,Third Party Payments,505,Other Establishments,5041,Revenue,NON INFLUENCIBLE.WELFARE
04/04/2022,2303538,174.75,Redacted Personal Data,398120,"Health, Education, Care and Safeguarding",Adult Social Care,101,Third Party Payments,505,Other Establishments,5041,Revenue,NON INFLUENCIBLE.WELFARE
04/04/2022,2303538,703.93,Redacted Personal Data,398120,"Health, Education, Care and Safeguarding",Adult Social Care,101,Third Party Payments,505,Other Establishments,5041,Revenue,NON INFLUENCIBLE.WELFARE
04/04/2022,2303540,670.53,WAYMARKS LTD,386037,"Health, Education, Care and Safeguarding",Adult Social Care,101,Third Party Payments,505,Other Establishments,5041,Revenue,SOCIAL CARE.CARE SERVICES
04/04/2022,2303540,1634.64,WAYMARKS LTD,386037,"Health, Education, Care and Safeguarding",Adult Social Care,101,Third Party Payments,505,Other Establishments,5041,Revenue,SOCIAL CARE.CARE SERVICES
04/04/2022,2303541,1831.52,Redacted Personal Data,377362,"Health, Education, Care and Safeguarding",Adult Social Care,101,Third Party Payments,505,Other Establishments,5041,Revenue,NON INFLUENCIBLE.INDIVIDUAL
04/04/2022,2303544,32.80,Redacted Personal Data,377811,"Health, Education, Care and Safeguarding",Adult Social Care,101,Third Party Payments,505,Other Establishments,5041,Revenue,NON INFLUENCIBLE.INDIVIDUAL
04/04/2022,2303544,253.42,Redacted Personal Data,377811,"Health, Education, Care and Safeguarding",Adult Social Care,101,Third Party Payments,505,Other Establishments,5041,Revenue,NON INFLUENCIBLE.INDIVIDUAL
04/04/2022,2303546,677.43,Redacted Personal Data,395735,"Health, Education, Care and Safeguarding",Adult Social Care,101,Third Party Payments,505,Other Establishments,5041,Revenue,NON INFLUENCIBLE.INDIVIDUAL
04/04/2022,2303548,567.36,Redacted Personal Data,397291,"Health, Education, Care and Safeguarding",Adult Social Care,101,Third Party Payments,505,Other Establishments,5041,Revenue,NON INFLUENCIBLE.WELFARE
04/04/2022,2303551,38.00,Redacted Personal Data,386764,"Health, Education, Care and Safeguarding",Adult Social Care,101,Third Party Payments,505,Other Establishments,5041,Revenue,NON INFLUENCIBLE.NON INFLUENCIBLE
04/04/2022,2303551,150.17,Redacted Personal Data,386764,"Health, Education, Care and Safeguarding",Adult Social Care,101,Third Party Payments,505,Other Establishments,5041,Revenue,NON INFLUENCIBLE.NON INFLUENCIBLE
04/04/2022,2303551,300.00,Redacted Personal Data,386764,"Health, Education, Care and Safeguarding",Adult Social Care,101,Third Party Payments,505,Other Establishments,5041,Revenue,NON INFLUENCIBLE.NON INFLUENCIBLE
04/04/2022,2303555,2783.90,DANSHELL HEALTHCARE LTD,397064,"Health, Education, Care and Safeguarding",Adult Social Care,101,Third Party Payments,505,Private Contractors,5042,Revenue,NON INFLUENCIBLE.WELFARE
04/04/2022,2303556,3245.22,ROYAL BLIND ASYLUM AND SCHOOL,018071,"Health, Education, Care and Safeguarding",Adult Social Care,101,Third Party Payments,505,Private Contractors,5042,Revenue,SOCIAL CARE.NURSING & RESIDENTIAL CARE
04/04/2022,2303558,894.53,Redacted Personal Data,396996,"Health, Education, Care and Safeguarding",Adult Social Care,101,Third Party Payments,505,Other Establishments,5041,Revenue,NON INFLUENCIBLE.INDIVIDUAL
04/04/2022,2303560,551.00,CLOVELLY HOUSE RESIDENTIAL HOME,396980,"Health, Education, Care and Safeguarding",Adult Social Care,101,Third Party Payments,505,Private Contractors,5042,Revenue,SOCIAL CARE.NURSING & RESIDENTIAL CARE
04/04/2022,2303562,297.21,Redacted Personal Data,396951,"Health, Education, Care and Safeguarding",Adult Social Care,101,Third Party Payments,505,Other Establishments,5041,Revenue,NON INFLUENCIBLE.INDIVIDUAL
04/04/2022,2303562,297.21,Redacted Personal Data,396951,"Health, Education, Care and Safeguarding",Adult Social Care,101,Third Party Payments,505,Other Establishments,5041,Revenue,NON INFLUENCIBLE.INDIVIDUAL
04/04/2022,2303563,428.00,Redacted Personal Data,012801,"Health, Education, Care and Safeguarding",Adult Social Care,101,Third Party Payments,505,Other Establishments,5041,Revenue,NON INFLUENCIBLE.WELFARE
04/04/2022,2303564,68.57,Redacted Personal Data,388154,"Health, Education, Care and Safeguarding",Adult Social Care,101,Third Party Payments,505,Other Establishments,5041,Revenue,NON INFLUENCIBLE.INDIVIDUAL
04/04/2022,2303564,274.29,Redacted Personal Data,388154,"Health, Education, Care and Safeguarding",Adult Social Care,101,Third Party Payments,505,Other Establishments,5041,Revenue,NON INFLUENCIBLE.INDIVIDUAL
04/04/2022,2303564,728.57,Redacted Personal Data,388154,"Health, Education, Care and Safeguarding",Adult Social Care,101,Third Party Payments,505,Other Establishments,5041,Revenue,NON INFLUENCIBLE.INDIVIDUAL
04/04/2022,2303565,51.26,Redacted Personal Data,374847,"Health, Education, Care and Safeguarding",Adult Social Care,101,Third Party Payments,505,Other Establishments,5041,Revenue,NON INFLUENCIBLE.NON INFLUENCIBLE
04/04/2022,2303565,206.48,Redacted Personal Data,374847,"Health, Education, Care and Safeguarding",Adult Social Care,101,Third Party Payments,505,Other Establishments,5041,Revenue,NON INFLUENCIBLE.NON INFLUENCIBLE
04/04/2022,2303566,255.00,Redacted Personal Data,396923,"Health, Education, Care and Safeguarding",Adult Social Care,101,Third Party Payments,505,Other Establishments,5041,Revenue,NON INFLUENCIBLE.INDIVIDUAL
04/04/2022,2303567,285.60,Redacted Personal Data,396158,"Health, Education, Care and Safeguarding",Adult Social Care,101,Third Party Payments,505,Other Establishments,5041,Revenue,NON INFLUENCIBLE.INDIVIDUAL
04/04/2022,2303569,841.80,Redacted Personal Data,396897,"Health, Education, Care and Safeguarding",Adult Social Care,101,Third Party Payments,505,Other Establishments,5041,Revenue,NON INFLUENCIBLE.INDIVIDUAL
04/04/2022,2303570,40.69,Redacted Personal Data,396887,"Health, Education, Care and Safeguarding",Adult Social Care,101,Third Party Payments,505,Other Establishments,5041,Revenue,NON INFLUENCIBLE.WELFARE
04/04/2022,2303570,521.92,Redacted Personal Data,396887,"Health, Education, Care and Safeguarding",Adult Social Care,101,Third Party Payments,505,Other Establishments,5041,Revenue,NON INFLUENCIBLE.WELFARE
04/04/2022,2303570,2102.40,Redacted Personal Data,396887,"Health, Education, Care and Safeguarding",Adult Social Care,101,Third Party Payments,505,Other Establishments,5041,Revenue,NON INFLUENCIBLE.WELFARE
04/04/2022,2303571,375.00,Redacted Personal Data,388989,"Health, Education, Care and Safeguarding",Adult Social Care,101,Third Party Payments,505,Other Establishments,5041,Revenue,SOCIAL CARE.CARE SERVICES
04/04/2022,2303572,538.07,Redacted Personal Data,396815,"Health, Education, Care and Safeguarding",Adult Social Care,101,Third Party Payments,505,Private Contractors,5042,Revenue,SOCIAL CARE.NURSING & RESIDENTIAL CARE
04/04/2022,2303573,-345.33,CRYSTAL CROFTDENE LIMITED T/A CROFTDENE CARE HOME,396800,"Health, Education, Care and Safeguarding",Adult Social Care,101,Third Party Payments,505,Private Contractors,5042,Revenue,SOCIAL CARE.NURSING & RESIDENTIAL CARE
04/04/2022,2303573,-274.09,CRYSTAL CROFTDENE LIMITED T/A CROFTDENE CARE HOME,396800,"Health, Education, Care and Safeguarding",Adult Social Care,101,Third Party Payments,505,Private Contractors,5042,Revenue,SOCIAL CARE.NURSING & RESIDENTIAL CARE
04/04/2022,2303573,431.67,CRYSTAL CROFTDENE LIMITED T/A CROFTDENE CARE HOME,396800,"Health, Education, Care and Safeguarding",Adult Social Care,101,Third Party Payments,505,Private Contractors,5042,Revenue,SOCIAL CARE.NURSING & RESIDENTIAL CARE
04/04/2022,2303573,431.67,CRYSTAL CROFTDENE LIMITED T/A CROFTDENE CARE HOME,396800,"Health, Education, Care and Safeguarding",Adult Social Care,101,Third Party Payments,505,Private Contractors,5042,Revenue,SOCIAL CARE.NURSING & RESIDENTIAL CARE
04/04/2022,2303573,604.33,CRYSTAL CROFTDENE LIMITED T/A CROFTDENE CARE HOME,396800,"Health, Education, Care and Safeguarding",Adult Social Care,101,Third Party Payments,505,Private Contractors,5042,Revenue,SOCIAL CARE.NURSING & RESIDENTIAL CARE
04/04/2022,2303573,604.33,CRYSTAL CROFTDENE LIMITED T/A CROFTDENE CARE HOME,396800,"Health, Education, Care and Safeguarding",Adult Social Care,101,Third Party Payments,505,Private Contractors,5042,Revenue,SOCIAL CARE.NURSING & RESIDENTIAL CARE
04/04/2022,2303573,604.33,CRYSTAL CROFTDENE LIMITED T/A CROFTDENE CARE HOME,396800,"Health, Education, Care and Safeguarding",Adult Social Care,101,Third Party Payments,505,Private Contractors,5042,Revenue,SOCIAL CARE.NURSING & RESIDENTIAL CARE
04/04/2022,2303573,604.33,CRYSTAL CROFTDENE LIMITED T/A CROFTDENE CARE HOME,396800,"Health, Education, Care and Safeguarding",Adult Social Care,101,Third Party Payments,505,Private Contractors,5042,Revenue,SOCIAL CARE.NURSING & RESIDENTIAL CARE
04/04/2022,2303573,604.33,CRYSTAL CROFTDENE LIMITED T/A CROFTDENE CARE HOME,396800,"Health, Education, Care and Safeguarding",Adult Social Care,101,Third Party Payments,505,Private Contractors,5042,Revenue,SOCIAL CARE.NURSING & RESIDENTIAL CARE
04/04/2022,2303573,604.33,CRYSTAL CROFTDENE LIMITED T/A CROFTDENE CARE HOME,396800,"Health, Education, Care and Safeguarding",Adult Social Care,101,Third Party Payments,505,Private Contractors,5042,Revenue,SOCIAL CARE.NURSING & RESIDENTIAL CARE
04/04/2022,2303573,604.33,CRYSTAL CROFTDENE LIMITED T/A CROFTDENE CARE HOME,396800,"Health, Education, Care and Safeguarding",Adult Social Care,101,Third Party Payments,505,Private Contractors,5042,Revenue,SOCIAL CARE.NURSING & RESIDENTIAL CARE
04/04/2022,2303573,604.33,CRYSTAL CROFTDENE LIMITED T/A CROFTDENE CARE HOME,396800,"Health, Education, Care and Safeguarding",Adult Social Care,101,Third Party Payments,505,Private Contractors,5042,Revenue,SOCIAL CARE.NURSING & RESIDENTIAL CARE
04/04/2022,2303573,604.33,CRYSTAL CROFTDENE LIMITED T/A CROFTDENE CARE HOME,396800,"Health, Education, Care and Safeguarding",Adult Social Care,101,Third Party Payments,505,Private Contractors,5042,Revenue,SOCIAL CARE.NURSING & RESIDENTIAL CARE
04/04/2022,2303573,604.33,CRYSTAL CROFTDENE LIMITED T/A CROFTDENE CARE HOME,396800,"Health, Education, Care and Safeguarding",Adult Social Care,101,Third Party Payments,505,Private Contractors,5042,Revenue,SOCIAL CARE.NURSING & RESIDENTIAL CARE
04/04/2022,2303573,604.33,CRYSTAL CROFTDENE LIMITED T/A CROFTDENE CARE HOME,396800,"Health, Education, Care and Safeguarding",Adult Social Care,101,Third Party Payments,505,Private Contractors,5042,Revenue,SOCIAL CARE.NURSING & RESIDENTIAL CARE
04/04/2022,2303573,604.33,CRYSTAL CROFTDENE LIMITED T/A CROFTDENE CARE HOME,396800,"Health, Education, Care and Safeguarding",Adult Social Care,101,Third Party Payments,505,Private Contractors,5042,Revenue,SOCIAL CARE.NURSING & RESIDENTIAL CARE
04/04/2022,2303573,604.33,CRYSTAL CROFTDENE LIMITED T/A CROFTDENE CARE HOME,396800,"Health, Education, Care and Safeguarding",Adult Social Care,101,Third Party Payments,505,Private Contractors,5042,Revenue,SOCIAL CARE.NURSING & RESIDENTIAL CARE
04/04/2022,2303573,604.33,CRYSTAL CROFTDENE LIMITED T/A CROFTDENE CARE HOME,396800,"Health, Education, Care and Safeguarding",Adult Social Care,101,Third Party Payments,505,Private Contractors,5042,Revenue,SOCIAL CARE.NURSING & RESIDENTIAL CARE
04/04/2022,2303573,604.33,CRYSTAL CROFTDENE LIMITED T/A CROFTDENE CARE HOME,396800,"Health, Education, Care and Safeguarding",Adult Social Care,101,Third Party Payments,505,Private Contractors,5042,Revenue,SOCIAL CARE.NURSING & RESIDENTIAL CARE
04/04/2022,2303573,604.33,CRYSTAL CROFTDENE LIMITED T/A CROFTDENE CARE HOME,396800,"Health, Education, Care and Safeguarding",Adult Social Care,101,Third Party Payments,505,Private Contractors,5042,Revenue,SOCIAL CARE.NURSING & RESIDENTIAL CARE
04/04/2022,2303573,604.33,CRYSTAL CROFTDENE LIMITED T/A CROFTDENE CARE HOME,396800,"Health, Education, Care and Safeguarding",Adult Social Care,101,Third Party Payments,505,Private Contractors,5042,Revenue,SOCIAL CARE.NURSING & RESIDENTIAL CARE
04/04/2022,2303573,604.33,CRYSTAL CROFTDENE LIMITED T/A CROFTDENE CARE HOME,396800,"Health, Education, Care and Safeguarding",Adult Social Care,101,Third Party Payments,505,Private Contractors,5042,Revenue,SOCIAL CARE.NURSING & RESIDENTIAL CARE
04/04/2022,2303573,604.33,CRYSTAL CROFTDENE LIMITED T/A CROFTDENE CARE HOME,396800,Central Items,Planning Services,110,Third Party Payments,505,Private Contractors,5042,Revenue,SOCIAL CARE.NURSING & RESIDENTIAL CARE
04/04/2022,2303573,639.55,CRYSTAL CROFTDENE LIMITED T/A CROFTDENE CARE HOME,396800,"Health, Education, Care and Safeguarding",Adult Social Care,101,Third Party Payments,505,Private Contractors,5042,Revenue,SOCIAL CARE.NURSING & RESIDENTIAL CARE
04/04/2022,2303573,639.55,CRYSTAL CROFTDENE LIMITED T/A CROFTDENE CARE HOME,396800,"Health, Education, Care and Safeguarding",Adult Social Care,101,Third Party Payments,505,Private Contractors,5042,Revenue,SOCIAL CARE.NURSING & RESIDENTIAL CARE
04/04/2022,2303573,639.55,CRYSTAL CROFTDENE LIMITED T/A CROFTDENE CARE HOME,396800,"Health, Education, Care and Safeguarding",Adult Social Care,101,Third Party Payments,505,Private Contractors,5042,Revenue,SOCIAL CARE.NURSING & RESIDENTIAL CARE
04/04/2022,2303573,639.55,CRYSTAL CROFTDENE LIMITED T/A CROFTDENE CARE HOME,396800,"Health, Education, Care and Safeguarding",Adult Social Care,101,Third Party Payments,505,Private Contractors,5042,Revenue,SOCIAL CARE.NURSING & RESIDENTIAL CARE
04/04/2022,2303573,639.55,CRYSTAL CROFTDENE LIMITED T/A CROFTDENE CARE HOME,396800,"Health, Education, Care and Safeguarding",Adult Social Care,101,Third Party Payments,505,Private Contractors,5042,Revenue,SOCIAL CARE.NURSING & RESIDENTIAL CARE
04/04/2022,2303573,639.55,CRYSTAL CROFTDENE LIMITED T/A CROFTDENE CARE HOME,396800,"Health, Education, Care and Safeguarding",Adult Social Care,101,Third Party Payments,505,Private Contractors,5042,Revenue,SOCIAL CARE.NURSING & RESIDENTIAL CARE
04/04/2022,2303573,639.55,CRYSTAL CROFTDENE LIMITED T/A CROFTDENE CARE HOME,396800,"Health, Education, Care and Safeguarding",Adult Social Care,101,Third Party Payments,505,Private Contractors,5042,Revenue,SOCIAL CARE.NURSING & RESIDENTIAL CARE
04/04/2022,2303573,639.55,CRYSTAL CROFTDENE LIMITED T/A CROFTDENE CARE HOME,396800,"Health, Education, Care and Safeguarding",Adult Social Care,101,Third Party Payments,505,Private Contractors,5042,Revenue,SOCIAL CARE.NURSING & RESIDENTIAL CARE
04/04/2022,2303573,639.55,CRYSTAL CROFTDENE LIMITED T/A CROFTDENE CARE HOME,396800,"Health, Education, Care and Safeguarding",Adult Social Care,101,Third Party Payments,505,Private Contractors,5042,Revenue,SOCIAL CARE.NURSING & RESIDENTIAL CARE
04/04/2022,2303573,639.55,CRYSTAL CROFTDENE LIMITED T/A CROFTDENE CARE HOME,396800,"Health, Education, Care and Safeguarding",Adult Social Care,101,Third Party Payments,505,Private Contractors,5042,Revenue,SOCIAL CARE.NURSING & RESIDENTIAL CARE
04/04/2022,2303573,639.55,CRYSTAL CROFTDENE LIMITED T/A CROFTDENE CARE HOME,396800,"Health, Education, Care and Safeguarding",Adult Social Care,101,Third Party Payments,505,Private Contractors,5042,Revenue,SOCIAL CARE.NURSING & RESIDENTIAL CARE
04/04/2022,2303573,639.55,CRYSTAL CROFTDENE LIMITED T/A CROFTDENE CARE HOME,396800,"Health, Education, Care and Safeguarding",Adult Social Care,101,Third Party Payments,505,Private Contractors,5042,Revenue,SOCIAL CARE.NURSING & RESIDENTIAL CARE
04/04/2022,2303573,639.55,CRYSTAL CROFTDENE LIMITED T/A CROFTDENE CARE HOME,396800,"Health, Education, Care and Safeguarding",Adult Social Care,101,Third Party Payments,505,Private Contractors,5042,Revenue,SOCIAL CARE.NURSING & RESIDENTIAL CARE
04/04/2022,2303575,3.25,Redacted Personal Data,387181,"Health, Education, Care and Safeguarding",Adult Social Care,101,Third Party Payments,505,Other Establishments,5041,Revenue,NON INFLUENCIBLE.INDIVIDUAL
04/04/2022,2303575,38.45,Redacted Personal Data,387181,"Health, Education, Care and Safeguarding",Adult Social Care,101,Third Party Payments,505,Other Establishments,5041,Revenue,NON INFLUENCIBLE.INDIVIDUAL
04/04/2022,2303575,154.87,Redacted Personal Data,387181,"Health, Education, Care and Safeguarding",Adult Social Care,101,Third Party Payments,505,Other Establishments,5041,Revenue,NON INFLUENCIBLE.INDIVIDUAL
04/04/2022,2303575,284.11,Redacted Personal Data,387181,"Health, Education, Care and Safeguarding",Adult Social Care,101,Third Party Payments,505,Other Establishments,5041,Revenue,NON INFLUENCIBLE.INDIVIDUAL
04/04/2022,2303575,635.18,Redacted Personal Data,387181,"Health, Education, Care and Safeguarding",Adult Social Care,101,Third Party Payments,505,Other Establishments,5041,Revenue,NON INFLUENCIBLE.INDIVIDUAL
04/04/2022,2303586,684.25,THE DEXTERS LTD,396199,"Health, Education, Care and Safeguarding",Adult Social Care,101,Third Party Payments,505,Private Contractors,5042,Revenue,SOCIAL CARE.NURSING & RESIDENTIAL CARE
04/04/2022,2303587,3.13,Redacted Personal Data,388986,"Health, Education, Care and Safeguarding",Adult Social Care,101,Third Party Payments,505,Other Establishments,5041,Revenue,NON INFLUENCIBLE.INDIVIDUAL
04/04/2022,2303587,23.30,Redacted Personal Data,388986,"Health, Education, Care and Safeguarding",Adult Social Care,101,Third Party Payments,505,Other Establishments,5041,Revenue,NON INFLUENCIBLE.INDIVIDUAL
04/04/2022,2303587,93.85,Redacted Personal Data,388986,"Health, Education, Care and Safeguarding",Adult Social Care,101,Third Party Payments,505,Other Establishments,5041,Revenue,NON INFLUENCIBLE.INDIVIDUAL
04/04/2022,2303587,160.54,Redacted Personal Data,388986,"Health, Education, Care and Safeguarding",Adult Social Care,101,Third Party Payments,505,Other Establishments,5041,Revenue,NON INFLUENCIBLE.INDIVIDUAL
04/04/2022,2303590,537.92,Redacted Personal Data,387387,"Health, Education, Care and Safeguarding",Adult Social Care,101,Third Party Payments,505,Other Establishments,5041,Revenue,NON INFLUENCIBLE.INDIVIDUAL
04/04/2022,2303593,143.29,Redacted Personal Data,395872,"Health, Education, Care and Safeguarding",Adult Social Care,101,Third Party Payments,505,Other Establishments,5041,Revenue,NON INFLUENCIBLE.INDIVIDUAL
04/04/2022,2303593,571.95,Redacted Personal Data,395872,"Health, Education, Care and Safeguarding",Adult Social Care,101,Third Party Payments,505,Other Establishments,5041,Revenue,NON INFLUENCIBLE.INDIVIDUAL
04/04/2022,2303596,379.00,Redacted Personal Data,395866,"Health, Education, Care and Safeguarding",Adult Social Care,101,Third Party Payments,505,Other Establishments,5041,Revenue,NON INFLUENCIBLE.INDIVIDUAL
04/04/2022,2303597,3.13,Redacted Personal Data,389035,"Health, Education, Care and Safeguarding",Adult Social Care,101,Third Party Payments,505,Other Establishments,5041,Revenue,NON INFLUENCIBLE.INDIVIDUAL
04/04/2022,2303597,30.00,Redacted Personal Data,389035,"Health, Education, Care and Safeguarding",Adult Social Care,101,Third Party Payments,505,Other Establishments,5041,Revenue,NON INFLUENCIBLE.INDIVIDUAL
04/04/2022,2303597,46.60,Redacted Personal Data,389035,"Health, Education, Care and Safeguarding",Adult Social Care,101,Third Party Payments,505,Other Establishments,5041,Revenue,NON INFLUENCIBLE.INDIVIDUAL
04/04/2022,2303597,187.72,Redacted Personal Data,389035,"Health, Education, Care and Safeguarding",Adult Social Care,101,Third Party Payments,505,Other Establishments,5041,Revenue,NON INFLUENCIBLE.INDIVIDUAL
04/04/2022,2303598,164.34,Redacted Personal Data,389532,"Health, Education, Care and Safeguarding",Adult Social Care,101,Third Party Payments,505,Other Establishments,5041,Revenue,NON INFLUENCIBLE.INDIVIDUAL
04/04/2022,2303598,599.85,Redacted Personal Data,389532,"Health, Education, Care and Safeguarding",Adult Social Care,101,Third Party Payments,505,Other Establishments,5041,Revenue,NON INFLUENCIBLE.INDIVIDUAL
04/04/2022,2303600,367.50,Redacted Personal Data,394993,"Health, Education, Care and Safeguarding",Adult Social Care,101,Third Party Payments,505,Other Establishments,5041,Revenue,NON INFLUENCIBLE.INDIVIDUAL
04/04/2022,2303600,633.28,Redacted Personal Data,394993,"Health, Education, Care and Safeguarding",Adult Social Care,101,Third Party Payments,505,Other Establishments,5041,Revenue,NON INFLUENCIBLE.INDIVIDUAL
04/04/2022,2303604,97.86,Redacted Personal Data,375753,"Health, Education, Care and Safeguarding",Adult Social Care,101,Third Party Payments,505,Other Establishments,5041,Revenue,NON INFLUENCIBLE.INDIVIDUAL
04/04/2022,2303604,394.20,Redacted Personal Data,375753,"Health, Education, Care and Safeguarding",Adult Social Care,101,Third Party Payments,505,Other Establishments,5041,Revenue,NON INFLUENCIBLE.INDIVIDUAL
04/04/2022,2303609,3236.32,Redacted Personal Data,387631,"Health, Education, Care and Safeguarding",Adult Social Care,101,Third Party Payments,505,Other Establishments,5041,Revenue,NON INFLUENCIBLE.INDIVIDUAL
04/04/2022,2303613,36.82,Redacted Personal Data,395814,"Health, Education, Care and Safeguarding",Adult Social Care,101,Third Party Payments,505,Other Establishments,5041,Revenue,NON INFLUENCIBLE.INDIVIDUAL
04/04/2022,2303613,1160.25,Redacted Personal Data,395814,"Health, Education, Care and Safeguarding",Adult Social Care,101,Third Party Payments,505,Other Establishments,5041,Revenue,NON INFLUENCIBLE.INDIVIDUAL
04/04/2022,2303614,670.53,Redacted Personal Data,395813,"Health, Education, Care and Safeguarding",Adult Social Care,101,Third Party Payments,505,Other Establishments,5041,Revenue,NON INFLUENCIBLE.INDIVIDUAL
04/04/2022,2303614,1517.04,Redacted Personal Data,395813,"Health, Education, Care and Safeguarding",Adult Social Care,101,Third Party Payments,505,Other Establishments,5041,Revenue,NON INFLUENCIBLE.INDIVIDUAL
04/04/2022,2303616,303.30,Redacted Personal Data,395808,"Health, Education, Care and Safeguarding",Adult Social Care,101,Third Party Payments,505,Other Establishments,5041,Revenue,NON INFLUENCIBLE.INDIVIDUAL
04/04/2022,2303617,391.44,Redacted Personal Data,395806,"Health, Education, Care and Safeguarding",Adult Social Care,101,Third Party Payments,505,Other Establishments,5041,Revenue,NON INFLUENCIBLE.INDIVIDUAL
04/04/2022,2303617,1576.80,Redacted Personal Data,395806,"Health, Education, Care and Safeguarding",Adult Social Care,101,Third Party Payments,505,Other Establishments,5041,Revenue,NON INFLUENCIBLE.INDIVIDUAL
04/04/2022,2303619,384.58,Redacted Personal Data,395797,"Health, Education, Care and Safeguarding",Adult Social Care,101,Third Party Payments,505,Other Establishments,5041,Revenue,NON INFLUENCIBLE.INDIVIDUAL
04/04/2022,2303632,558.50,Redacted Personal Data,395767,"Health, Education, Care and Safeguarding",Adult Social Care,101,Third Party Payments,505,Other Establishments,5041,Revenue,NON INFLUENCIBLE.INDIVIDUAL
04/04/2022,2303633,178.09,Redacted Personal Data,395764,"Health, Education, Care and Safeguarding",Adult Social Care,101,Third Party Payments,505,Other Establishments,5041,Revenue,NON INFLUENCIBLE.INDIVIDUAL
04/04/2022,2303633,1300.00,Redacted Personal Data,395764,"Health, Education, Care and Safeguarding",Adult Social Care,101,Third Party Payments,505,Other Establishments,5041,Revenue,NON INFLUENCIBLE.INDIVIDUAL
04/04/2022,2303636,650.00,Redacted Personal Data,387686,"Health, Education, Care and Safeguarding",Adult Social Care,101,Third Party Payments,505,Other Establishments,5041,Revenue,NON INFLUENCIBLE.INDIVIDUAL
04/04/2022,2303637,112.63,Redacted Personal Data,389075,"Health, Education, Care and Safeguarding",Adult Social Care,101,Third Party Payments,505,Other Establishments,5041,Revenue,NON INFLUENCIBLE.INDIVIDUAL
04/04/2022,2303637,150.00,Redacted Personal Data,389075,"Health, Education, Care and Safeguarding",Adult Social Care,101,Third Party Payments,505,Other Establishments,5041,Revenue,NON INFLUENCIBLE.INDIVIDUAL
04/04/2022,2303638,10104.06,HESLEY GROUP LIMITED,008273,"Health, Education, Care and Safeguarding",Adult Social Care,101,Third Party Payments,505,Private Contractors,5042,Revenue,SOCIAL CARE.CHILDCARE SERVICES
04/04/2022,2303640,-7980.00,NEW KEY SUPPORT LTD,392374,"Health, Education, Care and Safeguarding",Adult Social Care,101,Third Party Payments,505,Other Establishments,5041,Revenue,SOCIAL CARE.CARE SERVICES
04/04/2022,2303640,-1289.29,NEW KEY SUPPORT LTD,392374,"Health, Education, Care and Safeguarding",Adult Social Care,101,Third Party Payments,505,Other Establishments,5041,Revenue,SOCIAL CARE.CARE SERVICES
04/04/2022,2303640,391.92,NEW KEY SUPPORT LTD,392374,"Health, Education, Care and Safeguarding",Adult Social Care,101,Third Party Payments,505,Other Establishments,5041,Revenue,SOCIAL CARE.CARE SERVICES
04/04/2022,2303640,391.92,NEW KEY SUPPORT LTD,392374,"Health, Education, Care and Safeguarding",Adult Social Care,101,Third Party Payments,505,Other Establishments,5041,Revenue,SOCIAL CARE.CARE SERVICES
04/04/2022,2303640,5460.00,NEW KEY SUPPORT LTD,392374,"Health, Education, Care and Safeguarding",Adult Social Care,101,Third Party Payments,505,Other Establishments,5041,Revenue,SOCIAL CARE.CARE SERVICES
04/04/2022,2303640,5460.00,NEW KEY SUPPORT LTD,392374,"Health, Education, Care and Safeguarding",Adult Social Care,101,Third Party Payments,505,Other Establishments,5041,Revenue,SOCIAL CARE.CARE SERVICES
04/04/2022,2303641,1225.28,Redacted Personal Data,397357,"Health, Education, Care and Safeguarding",Adult Social Care,101,Third Party Payments,505,Other Establishments,5041,Revenue,NON INFLUENCIBLE.INDIVIDUAL
04/04/2022,2303642,670.53,Redacted Personal Data,353764,"Health, Education, Care and Safeguarding",Adult Social Care,101,Third Party Payments,505,Other Establishments,5041,Revenue,NON INFLUENCIBLE.INDIVIDUAL
04/04/2022,2303642,3143.84,Redacted Personal Data,353764,"Health, Education, Care and Safeguarding",Adult Social Care,101,Third Party Payments,505,Other Establishments,5041,Revenue,NON INFLUENCIBLE.INDIVIDUAL
04/04/2022,2303643,2845.31,Redacted Personal Data,397294,"Health, Education, Care and Safeguarding",Adult Social Care,101,Third Party Payments,505,Other Establishments,5041,Revenue,NON INFLUENCIBLE.WELFARE
04/04/2022,2303646,93.20,Redacted Personal Data,381403,"Health, Education, Care and Safeguarding",Adult Social Care,101,Third Party Payments,505,Other Establishments,5041,Revenue,NON INFLUENCIBLE.INDIVIDUAL
04/04/2022,2303646,375.43,Redacted Personal Data,381403,"Health, Education, Care and Safeguarding",Adult Social Care,101,Third Party Payments,505,Other Establishments,5041,Revenue,NON INFLUENCIBLE.INDIVIDUAL
04/04/2022,2303646,2469.60,Redacted Personal Data,381403,"Health, Education, Care and Safeguarding",Adult Social Care,101,Third Party Payments,505,Other Establishments,5041,Revenue,NON INFLUENCIBLE.INDIVIDUAL
04/04/2022,2303648,686.00,Redacted Personal Data,390088,"Health, Education, Care and Safeguarding",Adult Social Care,101,Third Party Payments,505,Other Establishments,5041,Revenue,NON INFLUENCIBLE.INDIVIDUAL
04/04/2022,2303653,12.50,Redacted Personal Data,395478,"Health, Education, Care and Safeguarding",Adult Social Care,101,Third Party Payments,505,Other Establishments,5041,Revenue,NON INFLUENCIBLE.INDIVIDUAL
04/04/2022,2303653,30.00,Redacted Personal Data,395478,"Health, Education, Care and Safeguarding",Adult Social Care,101,Third Party Payments,505,Other Establishments,5041,Revenue,NON INFLUENCIBLE.INDIVIDUAL
04/04/2022,2303653,163.10,Redacted Personal Data,395478,"Health, Education, Care and Safeguarding",Adult Social Care,101,Third Party Payments,505,Other Establishments,5041,Revenue,NON INFLUENCIBLE.INDIVIDUAL
04/04/2022,2303653,325.08,Redacted Personal Data,395478,"Health, Education, Care and Safeguarding",Adult Social Care,101,Third Party Payments,505,Other Establishments,5041,Revenue,NON INFLUENCIBLE.INDIVIDUAL
04/04/2022,2303653,614.49,Redacted Personal Data,395478,"Health, Education, Care and Safeguarding",Adult Social Care,101,Third Party Payments,505,Other Establishments,5041,Revenue,NON INFLUENCIBLE.INDIVIDUAL
04/04/2022,2303655,1706.44,NE LIFESTYLES LTD,395210,"Health, Education, Care and Safeguarding",Adult Social Care,101,Third Party Payments,505,Private Contractors,5042,Revenue,SOCIAL CARE.NURSING & RESIDENTIAL CARE
04/04/2022,2303656,297.21,Redacted Personal Data,372033,"Health, Education, Care and Safeguarding",Adult Social Care,101,Third Party Payments,505,Other Establishments,5041,Revenue,NON INFLUENCIBLE.NON INFLUENCIBLE
04/04/2022,2303657,1292.00,Redacted Personal Data,395039,"Health, Education, Care and Safeguarding",Adult Social Care,101,Third Party Payments,505,Private Contractors,5042,Revenue,SOCIAL CARE.NURSING & RESIDENTIAL CARE
04/04/2022,2303658,3.13,Redacted Personal Data,395728,"Health, Education, Care and Safeguarding",Adult Social Care,101,Third Party Payments,505,Other Establishments,5041,Revenue,NON INFLUENCIBLE.INDIVIDUAL
04/04/2022,2303658,7.00,Redacted Personal Data,395728,"Health, Education, Care and Safeguarding",Adult Social Care,101,Third Party Payments,505,Other Establishments,5041,Revenue,NON INFLUENCIBLE.INDIVIDUAL
04/04/2022,2303658,64.07,Redacted Personal Data,395728,"Health, Education, Care and Safeguarding",Adult Social Care,101,Third Party Payments,505,Other Establishments,5041,Revenue,NON INFLUENCIBLE.INDIVIDUAL
04/04/2022,2303658,258.10,Redacted Personal Data,395728,"Health, Education, Care and Safeguarding",Adult Social Care,101,Third Party Payments,505,Other Establishments,5041,Revenue,NON INFLUENCIBLE.INDIVIDUAL
04/04/2022,2303660,4.38,Redacted Personal Data,385427,"Health, Education, Care and Safeguarding",Adult Social Care,101,Third Party Payments,505,Other Establishments,5041,Revenue,NON INFLUENCIBLE.INDIVIDUAL
04/04/2022,2303660,79.22,Redacted Personal Data,385427,"Health, Education, Care and Safeguarding",Adult Social Care,101,Third Party Payments,505,Other Establishments,5041,Revenue,NON INFLUENCIBLE.INDIVIDUAL
04/04/2022,2303660,191.58,Redacted Personal Data,385427,"Health, Education, Care and Safeguarding",Adult Social Care,101,Third Party Payments,505,Other Establishments,5041,Revenue,NON INFLUENCIBLE.INDIVIDUAL
04/04/2022,2303660,524.20,Redacted Personal Data,385427,"Health, Education, Care and Safeguarding",Adult Social Care,101,Third Party Payments,505,Other Establishments,5041,Revenue,NON INFLUENCIBLE.INDIVIDUAL
04/04/2022,2303663,197.10,Redacted Personal Data,389470,"Health, Education, Care and Safeguarding",Adult Social Care,101,Third Party Payments,505,Other Establishments,5041,Revenue,NON INFLUENCIBLE.INDIVIDUAL
04/04/2022,2303663,383.16,Redacted Personal Data,389470,"Health, Education, Care and Safeguarding",Adult Social Care,101,Third Party Payments,505,Other Establishments,5041,Revenue,NON INFLUENCIBLE.INDIVIDUAL
04/04/2022,2303663,588.00,Redacted Personal Data,389470,"Health, Education, Care and Safeguarding",Adult Social Care,101,Third Party Payments,505,Other Establishments,5041,Revenue,NON INFLUENCIBLE.INDIVIDUAL
04/04/2022,2303666,666.40,Redacted Personal Data,386762,"Health, Education, Care and Safeguarding",Adult Social Care,101,Third Party Payments,505,Other Establishments,5041,Revenue,NON INFLUENCIBLE.INDIVIDUAL
04/04/2022,2303667,168.32,Redacted Personal Data,395719,"Health, Education, Care and Safeguarding",Adult Social Care,101,Third Party Payments,505,Other Establishments,5041,Revenue,NON INFLUENCIBLE.INDIVIDUAL
04/04/2022,2303667,672.00,Redacted Personal Data,395719,"Health, Education, Care and Safeguarding",Adult Social Care,101,Third Party Payments,505,Other Establishments,5041,Revenue,NON INFLUENCIBLE.INDIVIDUAL
04/04/2022,2303668,335.26,Redacted Personal Data,395718,"Health, Education, Care and Safeguarding",Adult Social Care,101,Third Party Payments,505,Other Establishments,5041,Revenue,NON INFLUENCIBLE.INDIVIDUAL
04/04/2022,2303668,561.40,Redacted Personal Data,395718,"Health, Education, Care and Safeguarding",Adult Social Care,101,Third Party Payments,505,Other Establishments,5041,Revenue,NON INFLUENCIBLE.INDIVIDUAL
04/04/2022,2303668,1684.20,Redacted Personal Data,395718,"Health, Education, Care and Safeguarding",Adult Social Care,101,Third Party Payments,505,Other Establishments,5041,Revenue,NON INFLUENCIBLE.INDIVIDUAL
04/04/2022,2303669,442.53,Redacted Personal Data,336601,"Health, Education, Care and Safeguarding",Adult Social Care,101,Third Party Payments,505,Other Establishments,5041,Revenue,NON INFLUENCIBLE.INDIVIDUAL
04/04/2022,2303669,1797.75,Redacted Personal Data,336601,"Health, Education, Care and Safeguarding",Adult Social Care,101,Third Party Payments,505,Other Establishments,5041,Revenue,NON INFLUENCIBLE.INDIVIDUAL
04/04/2022,2303670,359.66,Redacted Personal Data,386090,"Health, Education, Care and Safeguarding",Adult Social Care,101,Third Party Payments,505,Other Establishments,5041,Revenue,NON INFLUENCIBLE.INDIVIDUAL
04/04/2022,2303671,1348.40,Redacted Personal Data,385669,"Health, Education, Care and Safeguarding",Adult Social Care,101,Third Party Payments,505,Other Establishments,5041,Revenue,NON INFLUENCIBLE.INDIVIDUAL
04/04/2022,2303673,309.55,Redacted Personal Data,386997,"Health, Education, Care and Safeguarding",Adult Social Care,101,Third Party Payments,505,Other Establishments,5041,Revenue,NON INFLUENCIBLE.INDIVIDUAL
04/04/2022,2303678,10013.19,Redacted Personal Data,395697,"Health, Education, Care and Safeguarding",Adult Social Care,101,Third Party Payments,505,Other Establishments,5041,Revenue,NON INFLUENCIBLE.INDIVIDUAL
04/04/2022,2303679,179.41,Redacted Personal Data,395694,"Health, Education, Care and Safeguarding",Adult Social Care,101,Third Party Payments,505,Other Establishments,5041,Revenue,NON INFLUENCIBLE.INDIVIDUAL
04/04/2022,2303679,722.70,Redacted Personal Data,395694,"Health, Education, Care and Safeguarding",Adult Social Care,101,Third Party Payments,505,Other Establishments,5041,Revenue,NON INFLUENCIBLE.INDIVIDUAL
04/04/2022,2303685,548.80,Redacted Personal Data,395670,"Health, Education, Care and Safeguarding",Adult Social Care,101,Third Party Payments,505,Other Establishments,5041,Revenue,NON INFLUENCIBLE.INDIVIDUAL
04/04/2022,2303689,255.09,Redacted Personal Data,381173,"Health, Education, Care and Safeguarding",Adult Social Care,101,Third Party Payments,505,Other Establishments,5041,Revenue,NON INFLUENCIBLE.INDIVIDUAL
04/04/2022,2303690,534.00,Redacted Personal Data,339103,"Health, Education, Care and Safeguarding",Adult Social Care,101,Third Party Payments,505,Other Establishments,5041,Revenue,NON INFLUENCIBLE.INDIVIDUAL
04/04/2022,2303691,78.05,Redacted Personal Data,384396,"Health, Education, Care and Safeguarding",Adult Social Care,101,Third Party Payments,505,Other Establishments,5041,Revenue,NON INFLUENCIBLE.INDIVIDUAL
04/04/2022,2303691,314.42,Redacted Personal Data,384396,"Health, Education, Care and Safeguarding",Adult Social Care,101,Third Party Payments,505,Other Establishments,5041,Revenue,NON INFLUENCIBLE.INDIVIDUAL
04/04/2022,2303693,23.30,Redacted Personal Data,369792,"Health, Education, Care and Safeguarding",Adult Social Care,101,Third Party Payments,505,Other Establishments,5041,Revenue,NON INFLUENCIBLE.INDIVIDUAL
04/04/2022,2303693,100.00,Redacted Personal Data,369792,"Health, Education, Care and Safeguarding",Adult Social Care,101,Third Party Payments,505,Other Establishments,5041,Revenue,NON INFLUENCIBLE.INDIVIDUAL
04/04/2022,2303693,332.40,Redacted Personal Data,369792,"Health, Education, Care and Safeguarding",Adult Social Care,101,Third Party Payments,505,Other Establishments,5041,Revenue,NON INFLUENCIBLE.INDIVIDUAL
04/04/2022,2303698,65.24,Redacted Personal Data,385580,"Health, Education, Care and Safeguarding",Adult Social Care,101,Third Party Payments,505,Other Establishments,5041,Revenue,NON INFLUENCIBLE.INDIVIDUAL
04/04/2022,2303698,223.51,Redacted Personal Data,385580,"Health, Education, Care and Safeguarding",Adult Social Care,101,Third Party Payments,505,Other Establishments,5041,Revenue,NON INFLUENCIBLE.INDIVIDUAL
04/04/2022,2303698,262.80,Redacted Personal Data,385580,"Health, Education, Care and Safeguarding",Adult Social Care,101,Third Party Payments,505,Other Establishments,5041,Revenue,NON INFLUENCIBLE.INDIVIDUAL
04/04/2022,2303698,635.18,Redacted Personal Data,385580,"Health, Education, Care and Safeguarding",Adult Social Care,101,Third Party Payments,505,Other Establishments,5041,Revenue,NON INFLUENCIBLE.INDIVIDUAL
04/04/2022,2303699,598.55,CROWN CARE GROUP,395635,"Health, Education, Care and Safeguarding",Adult Social Care,101,Third Party Payments,505,Private Contractors,5042,Revenue,SOCIAL CARE.NURSING & RESIDENTIAL CARE
04/04/2022,2303700,520.00,Redacted Personal Data,395631,"Health, Education, Care and Safeguarding",Adult Social Care,101,Third Party Payments,505,Other Establishments,5041,Revenue,NON INFLUENCIBLE.INDIVIDUAL
04/04/2022,2303701,179.13,Redacted Personal Data,388340,"Health, Education, Care and Safeguarding",Adult Social Care,101,Third Party Payments,505,Other Establishments,5041,Revenue,NON INFLUENCIBLE.INDIVIDUAL
04/04/2022,2303701,337.89,Redacted Personal Data,388340,"Health, Education, Care and Safeguarding",Adult Social Care,101,Third Party Payments,505,Other Establishments,5041,Revenue,NON INFLUENCIBLE.INDIVIDUAL
04/04/2022,2303701,381.00,Redacted Personal Data,388340,"Health, Education, Care and Safeguarding",Adult Social Care,101,Third Party Payments,505,Other Establishments,5041,Revenue,NON INFLUENCIBLE.INDIVIDUAL
04/04/2022,2303701,1364.90,Redacted Personal Data,388340,"Health, Education, Care and Safeguarding",Adult Social Care,101,Third Party Payments,505,Other Establishments,5041,Revenue,NON INFLUENCIBLE.INDIVIDUAL
04/04/2022,2303702,1121.60,Redacted Personal Data,387773,"Health, Education, Care and Safeguarding",Adult Social Care,101,Third Party Payments,505,Other Establishments,5041,Revenue,NON INFLUENCIBLE.INDIVIDUAL
04/04/2022,2303703,90.00,Redacted Personal Data,388501,"Health, Education, Care and Safeguarding",Adult Social Care,101,Third Party Payments,505,Other Establishments,5041,Revenue,NON INFLUENCIBLE.INDIVIDUAL
04/04/2022,2303703,360.00,Redacted Personal Data,388501,"Health, Education, Care and Safeguarding",Adult Social Care,101,Third Party Payments,505,Other Establishments,5041,Revenue,NON INFLUENCIBLE.INDIVIDUAL
04/04/2022,2303703,1872.00,Redacted Personal Data,388501,"Health, Education, Care and Safeguarding",Adult Social Care,101,Third Party Payments,505,Other Establishments,5041,Revenue,NON INFLUENCIBLE.INDIVIDUAL
04/04/2022,2303704,138.64,Redacted Personal Data,395618,"Health, Education, Care and Safeguarding",Adult Social Care,101,Third Party Payments,505,Other Establishments,5041,Revenue,NON INFLUENCIBLE.INDIVIDUAL
04/04/2022,2303704,558.45,Redacted Personal Data,395618,"Health, Education, Care and Safeguarding",Adult Social Care,101,Third Party Payments,505,Other Establishments,5041,Revenue,NON INFLUENCIBLE.INDIVIDUAL
04/04/2022,2303707,95.79,Redacted Personal Data,395610,"Health, Education, Care and Safeguarding",Adult Social Care,101,Third Party Payments,505,Other Establishments,5041,Revenue,NON INFLUENCIBLE.INDIVIDUAL
04/04/2022,2303707,465.50,Redacted Personal Data,395610,"Health, Education, Care and Safeguarding",Adult Social Care,101,Third Party Payments,505,Other Establishments,5041,Revenue,NON INFLUENCIBLE.INDIVIDUAL
04/04/2022,2303707,884.88,Redacted Personal Data,395610,"Health, Education, Care and Safeguarding",Adult Social Care,101,Third Party Payments,505,Other Establishments,5041,Revenue,NON INFLUENCIBLE.INDIVIDUAL
04/04/2022,2303708,3.13,Redacted Personal Data,395609,"Health, Education, Care and Safeguarding",Adult Social Care,101,Third Party Payments,505,Other Establishments,5041,Revenue,NON INFLUENCIBLE.INDIVIDUAL
04/04/2022,2303708,284.59,Redacted Personal Data,395609,"Health, Education, Care and Safeguarding",Adult Social Care,101,Third Party Payments,505,Other Establishments,5041,Revenue,NON INFLUENCIBLE.INDIVIDUAL
04/04/2022,2303708,422.35,Redacted Personal Data,395609,"Health, Education, Care and Safeguarding",Adult Social Care,101,Third Party Payments,505,Other Establishments,5041,Revenue,NON INFLUENCIBLE.INDIVIDUAL
04/04/2022,2303710,279.23,Redacted Personal Data,395596,"Health, Education, Care and Safeguarding",Adult Social Care,101,Third Party Payments,505,Other Establishments,5041,Revenue,NON INFLUENCIBLE.INDIVIDUAL
04/04/2022,2303711,281.57,Redacted Personal Data,395592,"Health, Education, Care and Safeguarding",Adult Social Care,101,Third Party Payments,505,Other Establishments,5041,Revenue,NON INFLUENCIBLE.INDIVIDUAL
04/04/2022,2303711,1971.43,Redacted Personal Data,395592,"Health, Education, Care and Safeguarding",Adult Social Care,101,Third Party Payments,505,Other Establishments,5041,Revenue,NON INFLUENCIBLE.INDIVIDUAL
04/04/2022,2303712,345.60,Redacted Personal Data,395590,"Health, Education, Care and Safeguarding",Adult Social Care,101,Third Party Payments,505,Other Establishments,5041,Revenue,NON INFLUENCIBLE.INDIVIDUAL
04/04/2022,2303713,270.90,LENORE SPECIALIST CARE LTD,395565,"Health, Education, Care and Safeguarding",Adult Social Care,101,Third Party Payments,505,Other Establishments,5041,Revenue,SOCIAL CARE.INDEPENDENT SUPPORTED LIVING
04/04/2022,2303713,278.64,LENORE SPECIALIST CARE LTD,395565,"Health, Education, Care and Safeguarding",Adult Social Care,101,Third Party Payments,505,Other Establishments,5041,Revenue,SOCIAL CARE.INDEPENDENT SUPPORTED LIVING
04/04/2022,2303713,325.08,LENORE SPECIALIST CARE LTD,395565,"Health, Education, Care and Safeguarding",Adult Social Care,101,Third Party Payments,505,Other Establishments,5041,Revenue,SOCIAL CARE.INDEPENDENT SUPPORTED LIVING
04/04/2022,2303713,325.08,LENORE SPECIALIST CARE LTD,395565,"Health, Education, Care and Safeguarding",Adult Social Care,101,Third Party Payments,505,Other Establishments,5041,Revenue,SOCIAL CARE.INDEPENDENT SUPPORTED LIVING
04/04/2022,2303713,361.20,LENORE SPECIALIST CARE LTD,395565,"Health, Education, Care and Safeguarding",Adult Social Care,101,Third Party Payments,505,Other Establishments,5041,Revenue,SOCIAL CARE.INDEPENDENT SUPPORTED LIVING
04/04/2022,2303713,361.20,LENORE SPECIALIST CARE LTD,395565,"Health, Education, Care and Safeguarding",Adult Social Care,101,Third Party Payments,505,Other Establishments,5041,Revenue,SOCIAL CARE.INDEPENDENT SUPPORTED LIVING
04/04/2022,2303713,361.20,LENORE SPECIALIST CARE LTD,395565,"Health, Education, Care and Safeguarding",Adult Social Care,101,Third Party Payments,505,Other Establishments,5041,Revenue,SOCIAL CARE.INDEPENDENT SUPPORTED LIVING
04/04/2022,2303713,402.48,LENORE SPECIALIST CARE LTD,395565,"Health, Education, Care and Safeguarding",Adult Social Care,101,Third Party Payments,505,Other Establishments,5041,Revenue,SOCIAL CARE.INDEPENDENT SUPPORTED LIVING
04/04/2022,2303713,541.80,LENORE SPECIALIST CARE LTD,395565,"Health, Education, Care and Safeguarding",Adult Social Care,101,Third Party Payments,505,Other Establishments,5041,Revenue,SOCIAL CARE.INDEPENDENT SUPPORTED LIVING
04/04/2022,2303713,657.37,LENORE SPECIALIST CARE LTD,395565,"Health, Education, Care and Safeguarding",Adult Social Care,101,Third Party Payments,505,Private Contractors,5042,Revenue,SOCIAL CARE.INDEPENDENT SUPPORTED LIVING
04/04/2022,2303713,670.53,LENORE SPECIALIST CARE LTD,395565,"Health, Education, Care and Safeguarding",Adult Social Care,101,Third Party Payments,505,Other Establishments,5041,Revenue,SOCIAL CARE.INDEPENDENT SUPPORTED LIVING
04/04/2022,2303713,897.84,LENORE SPECIALIST CARE LTD,395565,"Health, Education, Care and Safeguarding",Adult Social Care,101,Third Party Payments,505,Other Establishments,5041,Revenue,SOCIAL CARE.INDEPENDENT SUPPORTED LIVING
04/04/2022,2303713,1083.60,LENORE SPECIALIST CARE LTD,395565,"Health, Education, Care and Safeguarding",Adult Social Care,101,Third Party Payments,505,Other Establishments,5041,Revenue,SOCIAL CARE.INDEPENDENT SUPPORTED LIVING
04/04/2022,2303713,1199.70,LENORE SPECIALIST CARE LTD,395565,"Health, Education, Care and Safeguarding",Adult Social Care,101,Third Party Payments,505,Other Establishments,5041,Revenue,SOCIAL CARE.INDEPENDENT SUPPORTED LIVING
04/04/2022,2303713,1300.32,LENORE SPECIALIST CARE LTD,395565,"Health, Education, Care and Safeguarding",Adult Social Care,101,Third Party Payments,505,Other Establishments,5041,Revenue,SOCIAL CARE.INDEPENDENT SUPPORTED LIVING
04/04/2022,2303713,1487.64,LENORE SPECIALIST CARE LTD,395565,"Health, Education, Care and Safeguarding",Adult Social Care,101,Third Party Payments,505,Private Contractors,5042,Revenue,SOCIAL CARE.INDEPENDENT SUPPORTED LIVING
04/04/2022,2303713,1888.56,LENORE SPECIALIST CARE LTD,395565,"Health, Education, Care and Safeguarding",Adult Social Care,101,Third Party Payments,505,Other Establishments,5041,Revenue,SOCIAL CARE.INDEPENDENT SUPPORTED LIVING
04/04/2022,2303715,511.72,Redacted Personal Data,382090,"Health, Education, Care and Safeguarding",Adult Social Care,101,Third Party Payments,505,Other Establishments,5041,Revenue,NON INFLUENCIBLE.INDIVIDUAL
04/04/2022,2303716,4.95,Redacted Personal Data,385051,"Health, Education, Care and Safeguarding",Adult Social Care,101,Third Party Payments,505,Other Establishments,5041,Revenue,NON INFLUENCIBLE.INDIVIDUAL
04/04/2022,2303716,78.05,Redacted Personal Data,385051,"Health, Education, Care and Safeguarding",Adult Social Care,101,Third Party Payments,505,Other Establishments,5041,Revenue,NON INFLUENCIBLE.INDIVIDUAL
04/04/2022,2303716,121.89,Redacted Personal Data,385051,"Health, Education, Care and Safeguarding",Adult Social Care,101,Third Party Payments,505,Other Establishments,5041,Revenue,NON INFLUENCIBLE.INDIVIDUAL
04/04/2022,2303716,314.42,Redacted Personal Data,385051,"Health, Education, Care and Safeguarding",Adult Social Care,101,Third Party Payments,505,Other Establishments,5041,Revenue,NON INFLUENCIBLE.INDIVIDUAL
04/04/2022,2303716,1263.65,Redacted Personal Data,385051,"Health, Education, Care and Safeguarding",Adult Social Care,101,Third Party Payments,505,Other Establishments,5041,Revenue,NON INFLUENCIBLE.INDIVIDUAL
04/04/2022,2303717,1103.59,Redacted Personal Data,385754,"Health, Education, Care and Safeguarding",Adult Social Care,101,Third Party Payments,505,Other Establishments,5041,Revenue,NON INFLUENCIBLE.INDIVIDUAL
04/04/2022,2303718,58.25,Redacted Personal Data,386497,"Health, Education, Care and Safeguarding",Adult Social Care,101,Third Party Payments,505,Other Establishments,5041,Revenue,NON INFLUENCIBLE.INDIVIDUAL
04/04/2022,2303718,234.65,Redacted Personal Data,386497,"Health, Education, Care and Safeguarding",Adult Social Care,101,Third Party Payments,505,Other Establishments,5041,Revenue,NON INFLUENCIBLE.INDIVIDUAL
04/04/2022,2303719,4.38,Redacted Personal Data,389997,"Health, Education, Care and Safeguarding",Adult Social Care,101,Third Party Payments,505,Other Establishments,5041,Revenue,NON INFLUENCIBLE.INDIVIDUAL
04/04/2022,2303719,286.27,Redacted Personal Data,389997,"Health, Education, Care and Safeguarding",Adult Social Care,101,Third Party Payments,505,Other Establishments,5041,Revenue,NON INFLUENCIBLE.INDIVIDUAL
04/04/2022,2303719,318.41,Redacted Personal Data,389997,"Health, Education, Care and Safeguarding",Adult Social Care,101,Third Party Payments,505,Other Establishments,5041,Revenue,NON INFLUENCIBLE.INDIVIDUAL
04/04/2022,2303719,618.09,Redacted Personal Data,389997,"Health, Education, Care and Safeguarding",Adult Social Care,101,Third Party Payments,505,Other Establishments,5041,Revenue,NON INFLUENCIBLE.INDIVIDUAL
04/04/2022,2303719,670.53,Redacted Personal Data,389997,"Health, Education, Care and Safeguarding",Adult Social Care,101,Third Party Payments,505,Other Establishments,5041,Revenue,NON INFLUENCIBLE.INDIVIDUAL
04/04/2022,2303720,300.00,Redacted Personal Data,385552,"Health, Education, Care and Safeguarding",Adult Social Care,101,Third Party Payments,505,Other Establishments,5041,Revenue,NON INFLUENCIBLE.INDIVIDUAL
04/04/2022,2303721,195.25,Redacted Personal Data,364751,"Health, Education, Care and Safeguarding",Adult Social Care,101,Third Party Payments,505,Other Establishments,5041,Revenue,NON INFLUENCIBLE.INDIVIDUAL
04/04/2022,2303721,781.00,Redacted Personal Data,364751,"Health, Education, Care and Safeguarding",Adult Social Care,101,Third Party Payments,505,Other Establishments,5041,Revenue,NON INFLUENCIBLE.INDIVIDUAL
04/04/2022,2303721,1238.90,Redacted Personal Data,364751,"Health, Education, Care and Safeguarding",Adult Social Care,101,Third Party Payments,505,Other Establishments,5041,Revenue,NON INFLUENCIBLE.INDIVIDUAL
04/04/2022,2303722,13.98,Redacted Personal Data,381019,"Health, Education, Care and Safeguarding",Adult Social Care,101,Third Party Payments,505,Other Establishments,5041,Revenue,NON INFLUENCIBLE.INDIVIDUAL
04/04/2022,2303722,30.00,Redacted Personal Data,381019,"Health, Education, Care and Safeguarding",Adult Social Care,101,Third Party Payments,505,Other Establishments,5041,Revenue,NON INFLUENCIBLE.INDIVIDUAL
04/04/2022,2303722,56.32,Redacted Personal Data,381019,"Health, Education, Care and Safeguarding",Adult Social Care,101,Third Party Payments,505,Other Establishments,5041,Revenue,NON INFLUENCIBLE.INDIVIDUAL
04/04/2022,2303722,88.00,Redacted Personal Data,381019,"Health, Education, Care and Safeguarding",Adult Social Care,101,Third Party Payments,505,Other Establishments,5041,Revenue,NON INFLUENCIBLE.INDIVIDUAL
04/04/2022,2303722,310.00,Redacted Personal Data,381019,"Health, Education, Care and Safeguarding",Adult Social Care,101,Third Party Payments,505,Other Establishments,5041,Revenue,NON INFLUENCIBLE.INDIVIDUAL
04/04/2022,2303727,366.33,Redacted Personal Data,386996,"Health, Education, Care and Safeguarding",Adult Social Care,101,Third Party Payments,505,Other Establishments,5041,Revenue,NON INFLUENCIBLE.INDIVIDUAL
04/04/2022,2303728,99.00,Redacted Personal Data,326296,"Health, Education, Care and Safeguarding",Adult Social Care,101,Third Party Payments,505,Other Establishments,5041,Revenue,NON INFLUENCIBLE.INDIVIDUAL
04/04/2022,2303728,197.19,Redacted Personal Data,326296,"Health, Education, Care and Safeguarding",Adult Social Care,101,Third Party Payments,505,Other Establishments,5041,Revenue,NON INFLUENCIBLE.INDIVIDUAL
04/04/2022,2303728,737.00,Redacted Personal Data,326296,"Health, Education, Care and Safeguarding",Adult Social Care,101,Third Party Payments,505,Other Establishments,5041,Revenue,NON INFLUENCIBLE.INDIVIDUAL
04/04/2022,2303729,565.34,Redacted Personal Data,382114,"Health, Education, Care and Safeguarding",Adult Social Care,101,Third Party Payments,505,Other Establishments,5041,Revenue,NON INFLUENCIBLE.INDIVIDUAL
04/04/2022,2303730,2512.86,Redacted Personal Data,385300,"Health, Education, Care and Safeguarding",Adult Social Care,101,Third Party Payments,505,Other Establishments,5041,Revenue,NON INFLUENCIBLE.INDIVIDUAL
04/04/2022,2303731,31.44,Redacted Personal Data,360881,"Health, Education, Care and Safeguarding",Adult Social Care,101,Third Party Payments,505,Other Establishments,5041,Revenue,NON INFLUENCIBLE.INDIVIDUAL
04/04/2022,2303731,238.98,Redacted Personal Data,360881,"Health, Education, Care and Safeguarding",Adult Social Care,101,Third Party Payments,505,Other Establishments,5041,Revenue,NON INFLUENCIBLE.INDIVIDUAL
04/04/2022,2303733,41.94,Redacted Personal Data,374238,"Health, Education, Care and Safeguarding",Adult Social Care,101,Third Party Payments,505,Other Establishments,5041,Revenue,NON INFLUENCIBLE.INDIVIDUAL
04/04/2022,2303733,189.00,Redacted Personal Data,374238,"Health, Education, Care and Safeguarding",Adult Social Care,101,Third Party Payments,505,Other Establishments,5041,Revenue,NON INFLUENCIBLE.INDIVIDUAL
04/04/2022,2303733,240.10,Redacted Personal Data,374238,"Health, Education, Care and Safeguarding",Adult Social Care,101,Third Party Payments,505,Other Establishments,5041,Revenue,NON INFLUENCIBLE.INDIVIDUAL
04/04/2022,2303733,275.00,Redacted Personal Data,374238,"Health, Education, Care and Safeguarding",Adult Social Care,101,Third Party Payments,505,Other Establishments,5041,Revenue,NON INFLUENCIBLE.INDIVIDUAL
04/04/2022,2303733,2739.00,Redacted Personal Data,374238,"Health, Education, Care and Safeguarding",Adult Social Care,101,Third Party Payments,505,Other Establishments,5041,Revenue,NON INFLUENCIBLE.INDIVIDUAL
04/04/2022,2303734,258.23,Redacted Personal Data,384070,"Health, Education, Care and Safeguarding",Adult Social Care,101,Third Party Payments,505,Other Establishments,5041,Revenue,NON INFLUENCIBLE.INDIVIDUAL
04/04/2022,2303736,3.13,Redacted Personal Data,385687,"Health, Education, Care and Safeguarding",Adult Social Care,101,Third Party Payments,505,Other Establishments,5041,Revenue,NON INFLUENCIBLE.INDIVIDUAL
04/04/2022,2303736,55.92,Redacted Personal Data,385687,"Health, Education, Care and Safeguarding",Adult Social Care,101,Third Party Payments,505,Other Establishments,5041,Revenue,NON INFLUENCIBLE.INDIVIDUAL
04/04/2022,2303736,226.20,Redacted Personal Data,385687,"Health, Education, Care and Safeguarding",Adult Social Care,101,Third Party Payments,505,Other Establishments,5041,Revenue,NON INFLUENCIBLE.INDIVIDUAL
04/04/2022,2303737,30.38,Redacted Personal Data,385685,"Health, Education, Care and Safeguarding",Adult Social Care,101,Third Party Payments,505,Other Establishments,5041,Revenue,NON INFLUENCIBLE.INDIVIDUAL
04/04/2022,2303737,315.00,Redacted Personal Data,385685,"Health, Education, Care and Safeguarding",Adult Social Care,101,Third Party Payments,505,Other Establishments,5041,Revenue,NON INFLUENCIBLE.INDIVIDUAL
04/04/2022,2303738,93.85,Redacted Personal Data,388482,"Health, Education, Care and Safeguarding",Adult Social Care,101,Third Party Payments,505,Other Establishments,5041,Revenue,NON INFLUENCIBLE.INDIVIDUAL
04/04/2022,2303738,168.00,Redacted Personal Data,388482,"Health, Education, Care and Safeguarding",Adult Social Care,101,Third Party Payments,505,Other Establishments,5041,Revenue,NON INFLUENCIBLE.INDIVIDUAL
04/04/2022,2303740,15.00,Redacted Personal Data,395540,"Health, Education, Care and Safeguarding",Adult Social Care,101,Third Party Payments,505,Other Establishments,5041,Revenue,NON INFLUENCIBLE.INDIVIDUAL
04/04/2022,2303740,79.80,Redacted Personal Data,395540,"Health, Education, Care and Safeguarding",Adult Social Care,101,Third Party Payments,505,Other Establishments,5041,Revenue,NON INFLUENCIBLE.INDIVIDUAL
04/04/2022,2303740,321.46,Redacted Personal Data,395540,"Health, Education, Care and Safeguarding",Adult Social Care,101,Third Party Payments,505,Other Establishments,5041,Revenue,NON INFLUENCIBLE.INDIVIDUAL
04/04/2022,2303741,386.00,Redacted Personal Data,395539,"Health, Education, Care and Safeguarding",Adult Social Care,101,Third Party Payments,505,Other Establishments,5041,Revenue,NON INFLUENCIBLE.INDIVIDUAL
04/04/2022,2303743,253.60,Redacted Personal Data,395524,"Health, Education, Care and Safeguarding",Adult Social Care,101,Third Party Payments,505,Other Establishments,5041,Revenue,NON INFLUENCIBLE.INDIVIDUAL
04/04/2022,2303746,2807.00,Redacted Personal Data,395507,"Health, Education, Care and Safeguarding",Adult Social Care,101,Third Party Payments,505,Other Establishments,5041,Revenue,NON INFLUENCIBLE.INDIVIDUAL
04/04/2022,2303747,3.13,Redacted Personal Data,395503,"Health, Education, Care and Safeguarding",Adult Social Care,101,Third Party Payments,505,Other Establishments,5041,Revenue,NON INFLUENCIBLE.INDIVIDUAL
04/04/2022,2303747,9.32,Redacted Personal Data,395503,"Health, Education, Care and Safeguarding",Adult Social Care,101,Third Party Payments,505,Other Establishments,5041,Revenue,NON INFLUENCIBLE.INDIVIDUAL
04/04/2022,2303747,37.55,Redacted Personal Data,395503,"Health, Education, Care and Safeguarding",Adult Social Care,101,Third Party Payments,505,Other Establishments,5041,Revenue,NON INFLUENCIBLE.INDIVIDUAL
04/04/2022,2303747,432.00,Redacted Personal Data,395503,"Health, Education, Care and Safeguarding",Adult Social Care,101,Third Party Payments,505,Other Establishments,5041,Revenue,NON INFLUENCIBLE.INDIVIDUAL
04/04/2022,2303748,12.90,Redacted Personal Data,380820,"Health, Education, Care and Safeguarding",Adult Social Care,101,Third Party Payments,505,Other Establishments,5041,Revenue,NON INFLUENCIBLE.INDIVIDUAL
04/04/2022,2303748,365.60,Redacted Personal Data,380820,"Health, Education, Care and Safeguarding",Adult Social Care,101,Third Party Payments,505,Other Establishments,5041,Revenue,NON INFLUENCIBLE.INDIVIDUAL
04/04/2022,2303748,2395.17,Redacted Personal Data,380820,"Health, Education, Care and Safeguarding",Adult Social Care,101,Third Party Payments,505,Other Establishments,5041,Revenue,NON INFLUENCIBLE.INDIVIDUAL
04/04/2022,2303750,285.60,Redacted Personal Data,395731,"Health, Education, Care and Safeguarding",Adult Social Care,101,Third Party Payments,505,Other Establishments,5041,Revenue,NON INFLUENCIBLE.INDIVIDUAL
04/04/2022,2303751,670.53,Redacted Personal Data,374395,"Health, Education, Care and Safeguarding",Adult Social Care,101,Third Party Payments,505,Other Establishments,5041,Revenue,NON INFLUENCIBLE.INDIVIDUAL
04/04/2022,2303751,2136.24,Redacted Personal Data,374395,"Health, Education, Care and Safeguarding",Adult Social Care,101,Third Party Payments,505,Other Establishments,5041,Revenue,NON INFLUENCIBLE.INDIVIDUAL
04/04/2022,2303756,330.60,Redacted Personal Data,395498,"Health, Education, Care and Safeguarding",Adult Social Care,101,Third Party Payments,505,Other Establishments,5041,Revenue,NON INFLUENCIBLE.INDIVIDUAL
04/04/2022,2303759,1668.96,Redacted Personal Data,395490,"Health, Education, Care and Safeguarding",Adult Social Care,101,Third Party Payments,505,Other Establishments,5041,Revenue,NON INFLUENCIBLE.INDIVIDUAL
04/04/2022,2303762,92.23,MENCAP,276682,"Health, Education, Care and Safeguarding",Adult Social Care,101,Third Party Payments,505,Private Contractors,5042,Revenue,SOCIAL CARE.CARE SERVICES
04/04/2022,2303762,134.11,MENCAP,276682,"Health, Education, Care and Safeguarding",Adult Social Care,101,Third Party Payments,505,Private Contractors,5042,Revenue,SOCIAL CARE.CARE SERVICES
04/04/2022,2303762,134.11,MENCAP,276682,"Health, Education, Care and Safeguarding",Adult Social Care,101,Third Party Payments,505,Private Contractors,5042,Revenue,SOCIAL CARE.CARE SERVICES
04/04/2022,2303762,134.11,MENCAP,276682,"Health, Education, Care and Safeguarding",Adult Social Care,101,Third Party Payments,505,Private Contractors,5042,Revenue,SOCIAL CARE.CARE SERVICES
04/04/2022,2303762,134.11,MENCAP,276682,"Health, Education, Care and Safeguarding",Adult Social Care,101,Third Party Payments,505,Private Contractors,5042,Revenue,SOCIAL CARE.CARE SERVICES
04/04/2022,2303762,134.11,MENCAP,276682,"Health, Education, Care and Safeguarding",Adult Social Care,101,Third Party Payments,505,Private Contractors,5042,Revenue,SOCIAL CARE.CARE SERVICES
04/04/2022,2303762,192.48,MENCAP,276682,"Health, Education, Care and Safeguarding",Adult Social Care,101,Third Party Payments,505,Private Contractors,5042,Revenue,SOCIAL CARE.CARE SERVICES
04/04/2022,2303762,223.51,MENCAP,276682,"Health, Education, Care and Safeguarding",Adult Social Care,101,Third Party Payments,505,Private Contractors,5042,Revenue,SOCIAL CARE.CARE SERVICES
04/04/2022,2303762,223.51,MENCAP,276682,"Health, Education, Care and Safeguarding",Adult Social Care,101,Third Party Payments,505,Private Contractors,5042,Revenue,SOCIAL CARE.CARE SERVICES
04/04/2022,2303762,223.51,MENCAP,276682,"Health, Education, Care and Safeguarding",Adult Social Care,101,Third Party Payments,505,Private Contractors,5042,Revenue,SOCIAL CARE.CARE SERVICES
04/04/2022,2303762,232.58,MENCAP,276682,"Health, Education, Care and Safeguarding",Adult Social Care,101,Third Party Payments,505,Private Contractors,5042,Revenue,SOCIAL CARE.CARE SERVICES
04/04/2022,2303762,272.68,MENCAP,276682,"Health, Education, Care and Safeguarding",Adult Social Care,101,Third Party Payments,505,Private Contractors,5042,Revenue,SOCIAL CARE.CARE SERVICES
04/04/2022,2303762,272.68,MENCAP,276682,"Health, Education, Care and Safeguarding",Adult Social Care,101,Third Party Payments,505,Private Contractors,5042,Revenue,SOCIAL CARE.CARE SERVICES
04/04/2022,2303762,314.37,MENCAP,276682,"Health, Education, Care and Safeguarding",Adult Social Care,101,Third Party Payments,505,Private Contractors,5042,Revenue,SOCIAL CARE.CARE SERVICES
04/04/2022,2303762,314.37,MENCAP,276682,"Health, Education, Care and Safeguarding",Adult Social Care,101,Third Party Payments,505,Private Contractors,5042,Revenue,SOCIAL CARE.CARE SERVICES
04/04/2022,2303762,314.37,MENCAP,276682,"Health, Education, Care and Safeguarding",Adult Social Care,101,Third Party Payments,505,Private Contractors,5042,Revenue,SOCIAL CARE.CARE SERVICES
04/04/2022,2303762,314.37,MENCAP,276682,"Health, Education, Care and Safeguarding",Adult Social Care,101,Third Party Payments,505,Private Contractors,5042,Revenue,SOCIAL CARE.CARE SERVICES
04/04/2022,2303762,314.37,MENCAP,276682,"Health, Education, Care and Safeguarding",Adult Social Care,101,Third Party Payments,505,Private Contractors,5042,Revenue,SOCIAL CARE.CARE SERVICES
04/04/2022,2303762,320.80,MENCAP,276682,"Health, Education, Care and Safeguarding",Adult Social Care,101,Third Party Payments,505,Private Contractors,5042,Revenue,SOCIAL CARE.CARE SERVICES
04/04/2022,2303762,328.82,MENCAP,276682,"Health, Education, Care and Safeguarding",Adult Social Care,101,Third Party Payments,505,Private Contractors,5042,Revenue,SOCIAL CARE.CARE SERVICES
04/04/2022,2303762,336.84,MENCAP,276682,"Health, Education, Care and Safeguarding",Adult Social Care,101,Third Party Payments,505,Private Contractors,5042,Revenue,SOCIAL CARE.CARE SERVICES
04/04/2022,2303762,524.09,MENCAP,276682,"Health, Education, Care and Safeguarding",Adult Social Care,101,Third Party Payments,505,Private Contractors,5042,Revenue,SOCIAL CARE.CARE SERVICES
04/04/2022,2303762,524.09,MENCAP,276682,"Health, Education, Care and Safeguarding",Adult Social Care,101,Third Party Payments,505,Private Contractors,5042,Revenue,SOCIAL CARE.CARE SERVICES
04/04/2022,2303762,524.09,MENCAP,276682,"Health, Education, Care and Safeguarding",Adult Social Care,101,Third Party Payments,505,Private Contractors,5042,Revenue,SOCIAL CARE.CARE SERVICES
04/04/2022,2303763,1648.58,Redacted Personal Data,387450,"Health, Education, Care and Safeguarding",Adult Social Care,101,Third Party Payments,505,Other Establishments,5041,Revenue,NON INFLUENCIBLE.INDIVIDUAL
04/04/2022,2303764,639.61,PALMERSDENE CARE HOME,354224,"Health, Education, Care and Safeguarding",Adult Social Care,101,Third Party Payments,505,Private Contractors,5042,Revenue,SOCIAL CARE.NURSING & RESIDENTIAL CARE
04/04/2022,2303765,297.21,Redacted Personal Data,353244,"Health, Education, Care and Safeguarding",Adult Social Care,101,Third Party Payments,505,Other Establishments,5041,Revenue,NON INFLUENCIBLE.INDIVIDUAL
04/04/2022,2303768,98.48,Redacted Personal Data,387180,"Health, Education, Care and Safeguarding",Adult Social Care,101,Third Party Payments,505,Other Establishments,5041,Revenue,NON INFLUENCIBLE.NON INFLUENCIBLE
04/04/2022,2303768,634.68,Redacted Personal Data,387180,"Health, Education, Care and Safeguarding",Adult Social Care,101,Third Party Payments,505,Other Establishments,5041,Revenue,NON INFLUENCIBLE.NON INFLUENCIBLE
04/04/2022,2303768,670.53,Redacted Personal Data,387180,"Health, Education, Care and Safeguarding",Adult Social Care,101,Third Party Payments,505,Other Establishments,5041,Revenue,NON INFLUENCIBLE.NON INFLUENCIBLE
04/04/2022,2303769,-2847.39,AKARI CARE HOMES LIMITED,387465,Central Items,Planning Services,110,Third Party Payments,505,Private Contractors,5042,Revenue,SOCIAL CARE.NURSING & RESIDENTIAL CARE
04/04/2022,2303769,-1398.45,AKARI CARE HOMES LIMITED,387465,Central Items,Planning Services,110,Third Party Payments,505,Private Contractors,5042,Revenue,SOCIAL CARE.NURSING & RESIDENTIAL CARE
04/04/2022,2303769,-1102.22,AKARI CARE HOMES LIMITED,387465,Central Items,Planning Services,110,Third Party Payments,505,Private Contractors,5042,Revenue,SOCIAL CARE.NURSING & RESIDENTIAL CARE
04/04/2022,2303769,-1010.37,AKARI CARE HOMES LIMITED,387465,"Health, Education, Care and Safeguarding",Adult Social Care,101,Third Party Payments,505,Private Contractors,5042,Revenue,SOCIAL CARE.NURSING & RESIDENTIAL CARE
04/04/2022,2303769,-375.20,AKARI CARE HOMES LIMITED,387465,"Health, Education, Care and Safeguarding",Adult Social Care,101,Third Party Payments,505,Other Establishments,5041,Revenue,SOCIAL CARE.NURSING & RESIDENTIAL CARE
04/04/2022,2303769,-294.80,AKARI CARE HOMES LIMITED,387465,Central Items,Planning Services,110,Third Party Payments,505,Private Contractors,5042,Revenue,SOCIAL CARE.NURSING & RESIDENTIAL CARE
04/04/2022,2303769,-147.10,AKARI CARE HOMES LIMITED,387465,Central Items,Planning Services,110,Third Party Payments,505,Private Contractors,5042,Revenue,SOCIAL CARE.NURSING & RESIDENTIAL CARE
04/04/2022,2303769,85.81,AKARI CARE HOMES LIMITED,387465,"Health, Education, Care and Safeguarding",Adult Social Care,101,Third Party Payments,505,Other Establishments,5041,Revenue,SOCIAL CARE.NURSING & RESIDENTIAL CARE
04/04/2022,2303769,85.81,AKARI CARE HOMES LIMITED,387465,"Health, Education, Care and Safeguarding",Adult Social Care,101,Third Party Payments,505,Other Establishments,5041,Revenue,SOCIAL CARE.NURSING & RESIDENTIAL CARE
04/04/2022,2303769,85.81,AKARI CARE HOMES LIMITED,387465,"Health, Education, Care and Safeguarding",Adult Social Care,101,Third Party Payments,505,Other Establishments,5041,Revenue,SOCIAL CARE.NURSING & RESIDENTIAL CARE
04/04/2022,2303769,85.81,AKARI CARE HOMES LIMITED,387465,"Health, Education, Care and Safeguarding",Adult Social Care,101,Third Party Payments,505,Other Establishments,5041,Revenue,SOCIAL CARE.NURSING & RESIDENTIAL CARE
04/04/2022,2303769,85.81,AKARI CARE HOMES LIMITED,387465,"Health, Education, Care and Safeguarding",Adult Social Care,101,Third Party Payments,505,Other Establishments,5041,Revenue,SOCIAL CARE.NURSING & RESIDENTIAL CARE
04/04/2022,2303769,85.81,AKARI CARE HOMES LIMITED,387465,"Health, Education, Care and Safeguarding",Adult Social Care,101,Third Party Payments,505,Other Establishments,5041,Revenue,SOCIAL CARE.NURSING & RESIDENTIAL CARE
04/04/2022,2303769,85.81,AKARI CARE HOMES LIMITED,387465,"Health, Education, Care and Safeguarding",Adult Social Care,101,Third Party Payments,505,Other Establishments,5041,Revenue,SOCIAL CARE.NURSING & RESIDENTIAL CARE
04/04/2022,2303769,85.81,AKARI CARE HOMES LIMITED,387465,"Health, Education, Care and Safeguarding",Public Health,112,Third Party Payments,505,Other Establishments,5041,Revenue,SOCIAL CARE.NURSING & RESIDENTIAL CARE
04/04/2022,2303769,85.81,AKARI CARE HOMES LIMITED,387465,"Health, Education, Care and Safeguarding",Public Health,112,Third Party Payments,505,Other Establishments,5041,Revenue,SOCIAL CARE.NURSING & RESIDENTIAL CARE
04/04/2022,2303769,85.81,AKARI CARE HOMES LIMITED,387465,"Health, Education, Care and Safeguarding",Public Health,112,Third Party Payments,505,Other Establishments,5041,Revenue,SOCIAL CARE.NURSING & RESIDENTIAL CARE
04/04/2022,2303769,85.81,AKARI CARE HOMES LIMITED,387465,"Health, Education, Care and Safeguarding",Public Health,112,Third Party Payments,505,Other Establishments,5041,Revenue,SOCIAL CARE.NURSING & RESIDENTIAL CARE
04/04/2022,2303769,85.81,AKARI CARE HOMES LIMITED,387465,"Health, Education, Care and Safeguarding",Public Health,112,Third Party Payments,505,Other Establishments,5041,Revenue,SOCIAL CARE.NURSING & RESIDENTIAL CARE
04/04/2022,2303769,85.81,AKARI CARE HOMES LIMITED,387465,"Health, Education, Care and Safeguarding",Public Health,112,Third Party Payments,505,Other Establishments,5041,Revenue,SOCIAL CARE.NURSING & RESIDENTIAL CARE
04/04/2022,2303769,85.81,AKARI CARE HOMES LIMITED,387465,"Health, Education, Care and Safeguarding",Public Health,112,Third Party Payments,505,Other Establishments,5041,Revenue,SOCIAL CARE.NURSING & RESIDENTIAL CARE
04/04/2022,2303769,187.60,AKARI CARE HOMES LIMITED,387465,"Health, Education, Care and Safeguarding",Adult Social Care,101,Third Party Payments,505,Other Establishments,5041,Revenue,SOCIAL CARE.NURSING & RESIDENTIAL CARE
04/04/2022,2303769,187.60,AKARI CARE HOMES LIMITED,387465,"Health, Education, Care and Safeguarding",Adult Social Care,101,Third Party Payments,505,Other Establishments,5041,Revenue,SOCIAL CARE.NURSING & RESIDENTIAL CARE
04/04/2022,2303769,187.60,AKARI CARE HOMES LIMITED,387465,"Health, Education, Care and Safeguarding",Adult Social Care,101,Third Party Payments,505,Other Establishments,5041,Revenue,SOCIAL CARE.NURSING & RESIDENTIAL CARE
04/04/2022,2303769,187.60,AKARI CARE HOMES LIMITED,387465,"Health, Education, Care and Safeguarding",Adult Social Care,101,Third Party Payments,505,Other Establishments,5041,Revenue,SOCIAL CARE.NURSING & RESIDENTIAL CARE
04/04/2022,2303769,187.60,AKARI CARE HOMES LIMITED,387465,"Health, Education, Care and Safeguarding",Adult Social Care,101,Third Party Payments,505,Other Establishments,5041,Revenue,SOCIAL CARE.NURSING & RESIDENTIAL CARE
04/04/2022,2303769,187.60,AKARI CARE HOMES LIMITED,387465,"Health, Education, Care and Safeguarding",Adult Social Care,101,Third Party Payments,505,Other Establishments,5041,Revenue,SOCIAL CARE.NURSING & RESIDENTIAL CARE
04/04/2022,2303769,187.60,AKARI CARE HOMES LIMITED,387465,"Health, Education, Care and Safeguarding",Adult Social Care,101,Third Party Payments,505,Other Establishments,5041,Revenue,SOCIAL CARE.NURSING & RESIDENTIAL CARE
04/04/2022,2303769,187.60,AKARI CARE HOMES LIMITED,387465,"Health, Education, Care and Safeguarding",Adult Social Care,101,Third Party Payments,505,Other Establishments,5041,Revenue,SOCIAL CARE.NURSING & RESIDENTIAL CARE
04/04/2022,2303769,187.60,AKARI CARE HOMES LIMITED,387465,"Health, Education, Care and Safeguarding",Adult Social Care,101,Third Party Payments,505,Other Establishments,5041,Revenue,SOCIAL CARE.NURSING & RESIDENTIAL CARE
04/04/2022,2303769,187.60,AKARI CARE HOMES LIMITED,387465,"Health, Education, Care and Safeguarding",Adult Social Care,101,Third Party Payments,505,Other Establishments,5041,Revenue,SOCIAL CARE.NURSING & RESIDENTIAL CARE
04/04/2022,2303769,187.60,AKARI CARE HOMES LIMITED,387465,"Health, Education, Care and Safeguarding",Adult Social Care,101,Third Party Payments,505,Other Establishments,5041,Revenue,SOCIAL CARE.NURSING & RESIDENTIAL CARE
04/04/2022,2303769,187.60,AKARI CARE HOMES LIMITED,387465,"Health, Education, Care and Safeguarding",Adult Social Care,101,Third Party Payments,505,Other Establishments,5041,Revenue,SOCIAL CARE.NURSING & RESIDENTIAL CARE
04/04/2022,2303769,187.60,AKARI CARE HOMES LIMITED,387465,"Health, Education, Care and Safeguarding",Adult Social Care,101,Third Party Payments,505,Other Establishments,5041,Revenue,SOCIAL CARE.NURSING & RESIDENTIAL CARE
04/04/2022,2303769,187.60,AKARI CARE HOMES LIMITED,387465,"Health, Education, Care and Safeguarding",Adult Social Care,101,Third Party Payments,505,Other Establishments,5041,Revenue,SOCIAL CARE.NURSING & RESIDENTIAL CARE
04/04/2022,2303769,187.60,AKARI CARE HOMES LIMITED,387465,"Health, Education, Care and Safeguarding",Adult Social Care,101,Third Party Payments,505,Other Establishments,5041,Revenue,SOCIAL CARE.NURSING & RESIDENTIAL CARE
04/04/2022,2303769,187.60,AKARI CARE HOMES LIMITED,387465,"Health, Education, Care and Safeguarding",Adult Social Care,101,Third Party Payments,505,Other Establishments,5041,Revenue,SOCIAL CARE.NURSING & RESIDENTIAL CARE
04/04/2022,2303769,187.60,AKARI CARE HOMES LIMITED,387465,"Health, Education, Care and Safeguarding",Adult Social Care,101,Third Party Payments,505,Other Establishments,5041,Revenue,SOCIAL CARE.NURSING & RESIDENTIAL CARE
04/04/2022,2303769,187.60,AKARI CARE HOMES LIMITED,387465,"Health, Education, Care and Safeguarding",Adult Social Care,101,Third Party Payments,505,Other Establishments,5041,Revenue,SOCIAL CARE.NURSING & RESIDENTIAL CARE
04/04/2022,2303769,187.60,AKARI CARE HOMES LIMITED,387465,"Health, Education, Care and Safeguarding",Adult Social Care,101,Third Party Payments,505,Other Establishments,5041,Revenue,SOCIAL CARE.NURSING & RESIDENTIAL CARE
04/04/2022,2303769,187.60,AKARI CARE HOMES LIMITED,387465,"Health, Education, Care and Safeguarding",Adult Social Care,101,Third Party Payments,505,Other Establishments,5041,Revenue,SOCIAL CARE.NURSING & RESIDENTIAL CARE
04/04/2022,2303769,187.60,AKARI CARE HOMES LIMITED,387465,"Health, Education, Care and Safeguarding",Adult Social Care,101,Third Party Payments,505,Other Establishments,5041,Revenue,SOCIAL CARE.NURSING & RESIDENTIAL CARE
04/04/2022,2303769,187.60,AKARI CARE HOMES LIMITED,387465,"Health, Education, Care and Safeguarding",Adult Social Care,101,Third Party Payments,505,Other Establishments,5041,Revenue,SOCIAL CARE.NURSING & RESIDENTIAL CARE
